Workbook

Sheet plot
G1: suction side | I1: pressure side | L1: suction side | N1: pressure side | Q1: setting | BG1: -
B2: x | C2: y | D2: dy/dx | E2: Cp | G2: x | H2: y | I2: x | J2: y | L2: x | M2: y | N2: x | O2: y | Q2: alpha | R2: 21 | S2: deg
B3: =(dat!A2-0.25)*COS(RADIANS($R$2))+dat!B2*SIN(RADIANS($R$2))+0.25 -> 0.9510633213 | C3: =-(dat!A2-0.25)*SIN(RADIANS($R$2))+dat!B2*COS(RADIANS($R$2)) -> -0.2664886901 | D3: =dat!C2-RADIANS($R$2) -> 1.025586755 | E3: =interpolation1D($R$2,aXFOIL,XFOIL!D6:AR6) -> -0.1661527604 | G3: 0.9510633213 | H3: -0.2664886901 | I3: 0.04055278773 | J3: 0.0525805454 | L3: 0.9941465069 | M3: -0.1954568376 | Q3: scale | R3: 0.5 | S3: -
B4: =(dat!A3-0.25)*COS(RADIANS($R$2))+dat!B3*SIN(RADIANS($R$2))+0.25 -> 0.9423313476 | C4: =-(dat!A3-0.25)*SIN(RADIANS($R$2))+dat!B3*COS(RADIANS($R$2)) -> -0.261192457 | D4: =dat!C3-RADIANS($R$2) -> 1.035433379 | E4: =interpolation1D($R$2,aXFOIL,XFOIL!D7:AR7) -> -0.1689801365 | G4: 0.9941465069 | H4: -0.1954568376 | I4: -0.1017932688 | J4: -0.1466293841 | L4: 0.9854342295 | M4: -0.1885239412
B5: =(dat!A4-0.25)*COS(RADIANS($R$2))+dat!B4*SIN(RADIANS($R$2))+0.25 -> 0.9257063154 | C5: =-(dat!A4-0.25)*SIN(RADIANS($R$2))+dat!B4*COS(RADIANS($R$2)) -> -0.2514265296 | D5: =dat!C4-RADIANS($R$2) -> 1.048093226 | E5: =interpolation1D($R$2,aXFOIL,XFOIL!D8:AR8) -> -0.1745981127 | L5: 0.9692881102 | M5: -0.1757842636
B6: =(dat!A5-0.25)*COS(RADIANS($R$2))+dat!B5*SIN(RADIANS($R$2))+0.25 -> 0.906190815 | C6: =-(dat!A5-0.25)*SIN(RADIANS($R$2))+dat!B5*COS(RADIANS($R$2)) -> -0.2403604987 | D6: =dat!C5-RADIANS($R$2) -> 1.060974987 | E6: =interpolation1D($R$2,aXFOIL,XFOIL!D9:AR9) -> -0.1813140213 | G6: 0.9423313476 | H6: -0.261192457 | I6: 0.05136492718 | J6: 0.04523921299 | L6: 0.9504333685 | M6: -0.1612321849
B7: =(dat!A6-0.25)*COS(RADIANS($R$2))+dat!B6*SIN(RADIANS($R$2))+0.25 -> 0.8852497738 | C7: =-(dat!A6-0.25)*SIN(RADIANS($R$2))+dat!B6*COS(RADIANS($R$2)) -> -0.2288029535 | D7: =dat!C6-RADIANS($R$2) -> 1.070762481 | E7: =interpolation1D($R$2,aXFOIL,XFOIL!D10:AR10) -> -0.1886709034 | G7: 0.9854342295 | H7: -0.1885239412 | I7: -0.1618883289 | J7: -0.2874797834 | L7: 0.9304794004 | M7: -0.1460173368
B8: =(dat!A7-0.25)*COS(RADIANS($R$2))+dat!B7*SIN(RADIANS($R$2))+0.25 -> 0.8630377433 | C8: =-(dat!A7-0.25)*SIN(RADIANS($R$2))+dat!B7*COS(RADIANS($R$2)) -> -0.2167818362 | D8: =dat!C7-RADIANS($R$2) -> 1.07758804 | E8: =interpolation1D($R$2,aXFOIL,XFOIL!D11:AR11) -> -0.1966200024 | L8: 0.90958303 | M8: -0.1301885765
B9: =(dat!A8-0.25)*COS(RADIANS($R$2))+dat!B8*SIN(RADIANS($R$2))+0.25 -> 0.8405879771 | C9: =-(dat!A8-0.25)*SIN(RADIANS($R$2))+dat!B8*COS(RADIANS($R$2)) -> -0.2047962842 | D9: =dat!C8-RADIANS($R$2) -> 1.082411765 | E9: =interpolation1D($R$2,aXFOIL,XFOIL!D12:AR12) -> -0.2047889382 | G9: 0.9257063154 | H9: -0.2514265296 | I9: 0.06602386703 | J9: 0.03621803605 | L9: 0.8886314538 | M9: -0.1143725504 | Q9: Polar
B10: =(dat!A9-0.25)*COS(RADIANS($R$2))+dat!B9*SIN(RADIANS($R$2))+0.25 -> 0.8178226912 | C10: =-(dat!A9-0.25)*SIN(RADIANS($R$2))+dat!B9*COS(RADIANS($R$2)) -> -0.1927581689 | D10: =dat!C9-RADIANS($R$2) -> 1.089341101 | E10: =interpolation1D($R$2,aXFOIL,XFOIL!D13:AR13) -> -0.2131532729 | G10: 0.9692881102 | H10: -0.1757842636 | I10: -0.172872974 | J10: -0.3698271855 | L10: 0.8671750772 | M10: -0.09829695237 | Q10: alpha
B11: =(dat!A10-0.25)*COS(RADIANS($R$2))+dat!B10*SIN(RADIANS($R$2))+0.25 -> 0.7946571016 | C11: =-(dat!A10-0.25)*SIN(RADIANS($R$2))+dat!B10*COS(RADIANS($R$2)) -> -0.1807985085 | D11: =dat!C10-RADIANS($R$2) -> 1.094531719 | E11: =interpolation1D($R$2,aXFOIL,XFOIL!D14:AR14) -> -0.2218471617 | L11: 0.8455114246 | M11: -0.08221920736 | Q11: CL | R11: =interpolation1D($R$2,aXFOIL,XFOIL!D2:AR2) -> 2.051567078
B12: =(dat!A11-0.25)*COS(RADIANS($R$2))+dat!B11*SIN(RADIANS($R$2))+0.25 -> 0.7715804014 | C12: =-(dat!A11-0.25)*SIN(RADIANS($R$2))+dat!B11*COS(RADIANS($R$2)) -> -0.1689030688 | D12: =dat!C11-RADIANS($R$2) -> 1.099588568 | E12: =interpolation1D($R$2,aXFOIL,XFOIL!D15:AR15) -> -0.2303881496 | G12: 0.906190815 | H12: -0.2403604987 | I12: 0.08444243044 | J12: 0.02575088986 | L12: 0.8238742209 | M12: -0.06626276812 | Q12: CD | R12: =interpolation1D($R$2,aXFOIL,XFOIL!D3:AR3) -> 0.05008373782
B13: =(dat!A12-0.25)*COS(RADIANS($R$2))+dat!B12*SIN(RADIANS($R$2))+0.25 -> 0.7485308291 | C13: =-(dat!A12-0.25)*SIN(RADIANS($R$2))+dat!B12*COS(RADIANS($R$2)) -> -0.1572980397 | D13: =dat!C12-RADIANS($R$2) -> 1.106842341 | E13: =interpolation1D($R$2,aXFOIL,XFOIL!D16:AR16) -> -0.2388562858 | G13: 0.9504333685 | H13: -0.1612321849 | I13: -0.1561310836 | J13: -0.4102001935 | L13: 0.8019734429 | M13: -0.05049462988 | Q13: Cm | R13: =interpolation1D($R$2,aXFOIL,XFOIL!D4:AR4) -> -0.02069460601
B14: =(dat!A13-0.25)*COS(RADIANS($R$2))+dat!B13*SIN(RADIANS($R$2))+0.25 -> 0.725656324 | C14: =-(dat!A13-0.25)*SIN(RADIANS($R$2))+dat!B13*COS(RADIANS($R$2)) -> -0.1459236694 | D14: =dat!C13-RADIANS($R$2) -> 1.111545935 | E14: =interpolation1D($R$2,aXFOIL,XFOIL!D17:AR17) -> -0.2465769351 | L14: 0.7803071789 | M14: -0.03540973236
B15: =(dat!A14-0.25)*COS(RADIANS($R$2))+dat!B14*SIN(RADIANS($R$2))+0.25 -> 0.7025996957 | C15: =-(dat!A14-0.25)*SIN(RADIANS($R$2))+dat!B14*COS(RADIANS($R$2)) -> -0.1345842537 | D15: =dat!C14-RADIANS($R$2) -> 1.118733122 | E15: =interpolation1D($R$2,aXFOIL,XFOIL!D18:AR18) -> -0.2518798411 | G15: 0.8852497738 | H15: -0.2288029535 | I15: 0.10534028 | J15: 0.0145102734 | L15: 0.7576130758 | M15: -0.0212952798 | Q15: αCL=0 | R15: =interpolation1D(0,XFOIL!D2:AR2,aXFOIL) -> -2.026583512
B16: =(dat!A15-0.25)*COS(RADIANS($R$2))+dat!B15*SIN(RADIANS($R$2))+0.25 -> 0.6794542787 | C16: =-(dat!A15-0.25)*SIN(RADIANS($R$2))+dat!B15*COS(RADIANS($R$2)) -> -0.1234878603 | D16: =dat!C15-RADIANS($R$2) -> 1.125784324 | E16: =interpolation1D($R$2,aXFOIL,XFOIL!D19:AR19) -> -0.2488058507 | G16: 0.9304794004 | H16: -0.1460173368 | I16: -0.1248789395 | J16: -0.4263828032 | L16: 0.733005846 | M16: -0.01120109581 | Q16: αCL=0.5 | R16: =interpolation1D(0.5,XFOIL!D2:AR2,aXFOIL) -> 2.134074001
B17: =(dat!A16-0.25)*COS(RADIANS($R$2))+dat!B16*SIN(RADIANS($R$2))+0.25 -> 0.6563899343 | C17: =-(dat!A16-0.25)*SIN(RADIANS($R$2))+dat!B16*COS(RADIANS($R$2)) -> -0.1125460908 | D17: =dat!C16-RADIANS($R$2) -> 1.131801166 | E17: =interpolation1D($R$2,aXFOIL,XFOIL!D20:AR20) -> -0.2590685189 | L17: 0.7114458962 | M17: 0.004705627409 | Q17: αs-2 | R17: =interpolation1D(1,XFOIL!D2:AR2,aXFOIL) -> 6.503443805
B18: =(dat!A17-0.25)*COS(RADIANS($R$2))+dat!B17*SIN(RADIANS($R$2))+0.25 -> 0.6332359783 | C18: =-(dat!A17-0.25)*SIN(RADIANS($R$2))+dat!B17*COS(RADIANS($R$2)) -> -0.1017858655 | D18: =dat!C17-RADIANS($R$2) -> 1.139871167 | E18: =interpolation1D($R$2,aXFOIL,XFOIL!D21:AR21) -> -0.2904131413 | G18: 0.8630377433 | H18: -0.2167818362 | I18: 0.1272190485 | J18: 0.003410480503 | L18: 0.6938904419 | M18: 0.03014587518 | Q18: αs | R18: =INDEX(aXFOIL,1,MATCH(MAX(XFOIL!D2:AR2),XFOIL!D2:AR2,0)) -> 19
B19: =(dat!A18-0.25)*COS(RADIANS($R$2))+dat!B18*SIN(RADIANS($R$2))+0.25 -> 0.6097990617 | C19: =-(dat!A18-0.25)*SIN(RADIANS($R$2))+dat!B18*COS(RADIANS($R$2)) -> -0.09112600218 | D19: =dat!C18-RADIANS($R$2) -> 1.147251662 | E19: =interpolation1D($R$2,aXFOIL,XFOIL!D22:AR22) -> -0.3333567083 | G19: 0.90958303 | H19: -0.1301885765 | I19: -0.08838546839 | J19: -0.4302991447 | L19: 0.6783029449 | M19: 0.0608242914 | Q19: α+2 | R19: =R18+2 -> 21
B20: =(dat!A19-0.25)*COS(RADIANS($R$2))+dat!B19*SIN(RADIANS($R$2))+0.25 -> 0.5865036686 | C20: =-(dat!A19-0.25)*SIN(RADIANS($R$2))+dat!B19*COS(RADIANS($R$2)) -> -0.08071776955 | D20: =dat!C19-RADIANS($R$2) -> 1.15458955 | E20: =interpolation1D($R$2,aXFOIL,XFOIL!D23:AR23) -> -0.3858094513 | L20: 0.6644938874 | M20: 0.09571850491
B21: =(dat!A20-0.25)*COS(RADIANS($R$2))+dat!B20*SIN(RADIANS($R$2))+0.25 -> 0.563138651 | C21: =-(dat!A20-0.25)*SIN(RADIANS($R$2))+dat!B20*COS(RADIANS($R$2)) -> -0.07050068147 | D21: =dat!C20-RADIANS($R$2) -> 1.162564879 | E21: =interpolation1D($R$2,aXFOIL,XFOIL!D24:AR24) -> -0.445312053 | G21: 0.8405879771 | H21: -0.2047962842 | I21: 0.1495554801 | J21: -0.00747091857 | L21: 0.6515301386 | M21: 0.1338584413
B22: =(dat!A21-0.25)*COS(RADIANS($R$2))+dat!B21*SIN(RADIANS($R$2))+0.25 -> 0.539684382 | C22: =-(dat!A21-0.25)*SIN(RADIANS($R$2))+dat!B21*COS(RADIANS($R$2)) -> -0.06046698966 | D22: =dat!C21-RADIANS($R$2) -> 1.17009036 | E22: =interpolation1D($R$2,aXFOIL,XFOIL!D25:AR25) -> -0.5093134046 | G22: 0.8886314538 | H22: -0.1143725504 | I22: -0.0512169607 | J22: -0.4282157255 | L22: 0.6390179357 | M22: 0.1740172979
B23: =(dat!A22-0.25)*COS(RADIANS($R$2))+dat!B22*SIN(RADIANS($R$2))+0.25 -> 0.5159565368 | C23: =-(dat!A22-0.25)*SIN(RADIANS($R$2))+dat!B22*COS(RADIANS($R$2)) -> -0.05051284006 | D23: =dat!C22-RADIANS($R$2) -> 1.177491621 | E23: =interpolation1D($R$2,aXFOIL,XFOIL!D26:AR26) -> -0.5778267384 | L23: 0.6266805302 | M23: 0.2163413002
B24: =(dat!A23-0.25)*COS(RADIANS($R$2))+dat!B23*SIN(RADIANS($R$2))+0.25 -> 0.4923153145 | C24: =-(dat!A23-0.25)*SIN(RADIANS($R$2))+dat!B23*COS(RADIANS($R$2)) -> -0.04081270485 | D24: =dat!C23-RADIANS($R$2) -> 1.183335951 | E24: =interpolation1D($R$2,aXFOIL,XFOIL!D27:AR27) -> -0.6454361677 | G24: 0.8178226912 | H24: -0.1927581689 | I24: 0.1726404271 | J24: -0.01826581619 | L24: 0.6142505571 | M24: 0.2579828076
B25: =(dat!A24-0.25)*COS(RADIANS($R$2))+dat!B24*SIN(RADIANS($R$2))+0.25 -> 0.4686065326 | C25: =-(dat!A24-0.25)*SIN(RADIANS($R$2))+dat!B24*COS(RADIANS($R$2)) -> -0.0311897872 | D25: =dat!C24-RADIANS($R$2) -> 1.189618867 | E25: =interpolation1D($R$2,aXFOIL,XFOIL!D28:AR28) -> -0.7210157514 | G25: 0.8671750772 | H25: -0.09829695237 | I25: -0.01386269342 | J25: -0.4234787447 | L25: 0.602720393 | M25: 0.3034434462
B26: =(dat!A25-0.25)*COS(RADIANS($R$2))+dat!B25*SIN(RADIANS($R$2))+0.25 -> 0.4446416454 | C26: =-(dat!A25-0.25)*SIN(RADIANS($R$2))+dat!B25*COS(RADIANS($R$2)) -> -0.02170581856 | D26: =dat!C25-RADIANS($R$2) -> 1.197036369 | E26: =interpolation1D($R$2,aXFOIL,XFOIL!D29:AR29) -> -0.7939650416 | L26: 0.5895872599 | M26: 0.3478694656
B27: =(dat!A26-0.25)*COS(RADIANS($R$2))+dat!B26*SIN(RADIANS($R$2))+0.25 -> 0.4206341473 | C27: =-(dat!A26-0.25)*SIN(RADIANS($R$2))+dat!B26*COS(RADIANS($R$2)) -> -0.01237526962 | D27: =dat!C26-RADIANS($R$2) -> 1.201800383 | E27: =interpolation1D($R$2,aXFOIL,XFOIL!D30:AR30) -> -0.8684823513 | G27: 0.7946571016 | H27: -0.1807985085 | I27: 0.1957247565 | J27: -0.02872049531 | L27: 0.5772558814 | M27: 0.3926371142
B28: =(dat!A27-0.25)*COS(RADIANS($R$2))+dat!B27*SIN(RADIANS($R$2))+0.25 -> 0.3960999399 | C28: =-(dat!A27-0.25)*SIN(RADIANS($R$2))+dat!B27*COS(RADIANS($R$2)) -> -0.002934011711 | D28: =dat!C27-RADIANS($R$2) -> 1.207198184 | E28: =interpolation1D($R$2,aXFOIL,XFOIL!D31:AR31) -> -0.9564211369 | G28: 0.8455114246 | H28: -0.08221920736 | I28: 0.02190679436 | J28: -0.4175773345 | L28: 0.5661704769 | M28: 0.4440126968
B29: =(dat!A28-0.25)*COS(RADIANS($R$2))+dat!B28*SIN(RADIANS($R$2))+0.25 -> 0.3718191582 | C29: =-(dat!A28-0.25)*SIN(RADIANS($R$2))+dat!B28*COS(RADIANS($R$2)) -> 0.006199163888 | D29: =dat!C28-RADIANS($R$2) -> 1.21219837 | E29: =interpolation1D($R$2,aXFOIL,XFOIL!D32:AR32) -> -1.039061785 | L29: 0.5541546134 | M29: 0.4926825962
B30: =(dat!A29-0.25)*COS(RADIANS($R$2))+dat!B29*SIN(RADIANS($R$2))+0.25 -> 0.3472649679 | C30: =-(dat!A29-0.25)*SIN(RADIANS($R$2))+dat!B29*COS(RADIANS($R$2)) -> 0.01536959484 | D30: =dat!C29-RADIANS($R$2) -> 1.217590715 | E30: =interpolation1D($R$2,aXFOIL,XFOIL!D33:AR33) -> -1.145332694 | G30: 0.7715804014 | H30: -0.1689030688 | I30: 0.2187265551 | J30: -0.03886585305 | L30: 0.5453544406 | M30: 0.5526844986
B31: =(dat!A30-0.25)*COS(RADIANS($R$2))+dat!B30*SIN(RADIANS($R$2))+0.25 -> 0.3231069896 | C31: =-(dat!A30-0.25)*SIN(RADIANS($R$2))+dat!B30*COS(RADIANS($R$2)) -> 0.02415688826 | D31: =dat!C30-RADIANS($R$2) -> 1.223831507 | E31: =interpolation1D($R$2,aXFOIL,XFOIL!D34:AR34) -> -1.244910479 | G31: 0.8238742209 | H31: -0.06626276812 | I31: 0.05733817805 | J31: -0.4109359425 | L31: 0.5347698232 | M31: 0.6095194851
B32: =(dat!A31-0.25)*COS(RADIANS($R$2))+dat!B31*SIN(RADIANS($R$2))+0.25 -> 0.2990341704 | C32: =-(dat!A31-0.25)*SIN(RADIANS($R$2))+dat!B31*COS(RADIANS($R$2)) -> 0.03280941205 | D32: =dat!C31-RADIANS($R$2) -> 1.230019734 | E32: =interpolation1D($R$2,aXFOIL,XFOIL!D35:AR35) -> -1.371091247 | L32: 0.5281566308 | M32: 0.6789330068
B33: =(dat!A32-0.25)*COS(RADIANS($R$2))+dat!B32*SIN(RADIANS($R$2))+0.25 -> 0.2749839519 | C33: =-(dat!A32-0.25)*SIN(RADIANS($R$2))+dat!B32*COS(RADIANS($R$2)) -> 0.0412216787 | D33: =dat!C32-RADIANS($R$2) -> 1.238889067 | E33: =interpolation1D($R$2,aXFOIL,XFOIL!D36:AR36) -> -1.505418897 | G33: 0.7485308291 | H33: -0.1572980397 | I33: 0.2415667907 | J33: -0.04860417675 | L33: 0.5202519066 | M33: 0.7528501942
B34: =(dat!A33-0.25)*COS(RADIANS($R$2))+dat!B33*SIN(RADIANS($R$2))+0.25 -> 0.2510690811 | C34: =-(dat!A33-0.25)*SIN(RADIANS($R$2))+dat!B33*COS(RADIANS($R$2)) -> 0.04934055415 | D34: =dat!C33-RADIANS($R$2) -> 1.248184482 | E34: =interpolation1D($R$2,aXFOIL,XFOIL!D37:AR37) -> -1.655230522 | G34: 0.8019734429 | H34: -0.05049462988 | I34: 0.09101206524 | J34: -0.4054955717 | L34: 0.5134601468 | M34: 0.8342596258
B35: =(dat!A34-0.25)*COS(RADIANS($R$2))+dat!B34*SIN(RADIANS($R$2))+0.25 -> 0.2276322079 | C35: =-(dat!A34-0.25)*SIN(RADIANS($R$2))+dat!B34*COS(RADIANS($R$2)) -> 0.05704993193 | D35: =dat!C34-RADIANS($R$2) -> 1.258259665 | E35: =interpolation1D($R$2,aXFOIL,XFOIL!D38:AR38) -> -1.824840069 | L35: 0.5081770984 | M35: 0.9252693072
B36: =(dat!A35-0.25)*COS(RADIANS($R$2))+dat!B35*SIN(RADIANS($R$2))+0.25 -> 0.203914064 | C36: =-(dat!A35-0.25)*SIN(RADIANS($R$2))+dat!B35*COS(RADIANS($R$2)) -> 0.06457796315 | D36: =dat!C35-RADIANS($R$2) -> 1.267913796 | E36: =interpolation1D($R$2,aXFOIL,XFOIL!D39:AR39) -> -2.021110773 | G36: 0.725656324 | H36: -0.1459236694 | I36: 0.2649475989 | J36: -0.05836491301 | L36: 0.5053352105 | M36: 1.029133551
B37: =(dat!A36-0.25)*COS(RADIANS($R$2))+dat!B36*SIN(RADIANS($R$2))+0.25 -> 0.1806528165 | C37: =-(dat!A36-0.25)*SIN(RADIANS($R$2))+dat!B36*COS(RADIANS($R$2)) -> 0.07172998282 | D37: =dat!C36-RADIANS($R$2) -> 1.278643619 | E37: =interpolation1D($R$2,aXFOIL,XFOIL!D40:AR40) -> -2.271296263 | G37: 0.7803071789 | H37: -0.03540973236 | I37: 0.1244828633 | J37: -0.3990500179 | L37: 0.5077358087 | M37: 1.159256256
B38: =(dat!A37-0.25)*COS(RADIANS($R$2))+dat!B37*SIN(RADIANS($R$2))+0.25 -> 0.1573941647 | C38: =-(dat!A37-0.25)*SIN(RADIANS($R$2))+dat!B37*COS(RADIANS($R$2)) -> 0.07856898155 | D38: =dat!C37-RADIANS($R$2) -> 1.293222328 | E38: =interpolation1D($R$2,aXFOIL,XFOIL!D41:AR41) -> -2.59295392 | L38: 0.5126590809 | M38: 1.325420756
B39: =(dat!A38-0.25)*COS(RADIANS($R$2))+dat!B38*SIN(RADIANS($R$2))+0.25 -> 0.1341020906 | C39: =-(dat!A38-0.25)*SIN(RADIANS($R$2))+dat!B38*COS(RADIANS($R$2)) -> 0.08499331593 | D39: =dat!C38-RADIANS($R$2) -> 1.310044591 | E39: =interpolation1D($R$2,aXFOIL,XFOIL!D42:AR42) -> -2.995785236 | G39: 0.7025996957 | H39: -0.1345842537 | I39: 0.2885629269 | J39: -0.06798098509 | L39: 0.5202692163 | M39: 1.532251844
B40: =(dat!A39-0.25)*COS(RADIANS($R$2))+dat!B39*SIN(RADIANS($R$2))+0.25 -> 0.1115683018 | C40: =-(dat!A39-0.25)*SIN(RADIANS($R$2))+dat!B39*COS(RADIANS($R$2)) -> 0.09079376712 | D40: =dat!C39-RADIANS($R$2) -> 1.333896455 | E40: =interpolation1D($R$2,aXFOIL,XFOIL!D43:AR43) -> -3.620239496 | G40: 0.7576130758 | H40: -0.0212952798 | I40: 0.158093527 | J40: -0.3929212142 | L40: 0.5363856974 | M40: 1.850357259
B41: =(dat!A40-0.25)*COS(RADIANS($R$2))+dat!B40*SIN(RADIANS($R$2))+0.25 -> 0.09086934255 | C41: =-(dat!A40-0.25)*SIN(RADIANS($R$2))+dat!B40*COS(RADIANS($R$2)) -> 0.09541933924 | D41: =dat!C40-RADIANS($R$2) -> 1.36567686 | E41: =interpolation1D($R$2,aXFOIL,XFOIL!D44:AR44) -> -4.385828495 | L41: 0.5375311597 | M41: 2.242362775
B42: =(dat!A41-0.25)*COS(RADIANS($R$2))+dat!B41*SIN(RADIANS($R$2))+0.25 -> 0.07359154122 | C42: =-(dat!A41-0.25)*SIN(RADIANS($R$2))+dat!B41*COS(RADIANS($R$2)) -> 0.09867348869 | D42: =dat!C41-RADIANS($R$2) -> 1.402185528 | E42: =interpolation1D($R$2,aXFOIL,XFOIL!D45:AR45) -> -5.458908558 | G42: 0.6794542787 | H42: -0.1234878603 | I42: 0.3124262424 | J42: -0.07742874897 | L42: 0.5316294811 | M42: 2.789420951
B43: =(dat!A42-0.25)*COS(RADIANS($R$2))+dat!B42*SIN(RADIANS($R$2))+0.25 -> 0.0602775041 | C43: =-(dat!A42-0.25)*SIN(RADIANS($R$2))+dat!B42*COS(RADIANS($R$2)) -> 0.1005968625 | D43: =dat!C42-RADIANS($R$2) -> 1.450960915 | E43: =interpolation1D($R$2,aXFOIL,XFOIL!D46:AR46) -> -6.880149364 | G43: 0.733005846 | H43: -0.01120109581 | I43: 0.1901331452 | J43: -0.3883134093 | L43: 0.4715343089 | M43: 3.516000449
B44: =(dat!A43-0.25)*COS(RADIANS($R$2))+dat!B43*SIN(RADIANS($R$2))+0.25 -> 0.05010037609 | C44: =-(dat!A43-0.25)*SIN(RADIANS($R$2))+dat!B43*COS(RADIANS($R$2)) -> 0.1014697991 | D44: =dat!C43-RADIANS($R$2) -> 1.514952001 | E44: =interpolation1D($R$2,aXFOIL,XFOIL!D47:AR47) -> -8.595591545 | L44: 0.2899831568 | M44: 4.392565784
B45: =(dat!A44-0.25)*COS(RADIANS($R$2))+dat!B44*SIN(RADIANS($R$2))+0.25 -> 0.04222519409 | C45: =-(dat!A44-0.25)*SIN(RADIANS($R$2))+dat!B44*COS(RADIANS($R$2)) -> 0.1015760704 | D45: =dat!C44-RADIANS($R$2) -> 1.597456423 | E45: =interpolation1D($R$2,aXFOIL,XFOIL!D48:AR48) -> -10.71766949 | G45: 0.6563899343 | H45: -0.1125460908 | I45: 0.3361779723 | J45: -0.08671124728 | L45: -0.1006249331 | M45: 5.458506502
B46: =(dat!A45-0.25)*COS(RADIANS($R$2))+dat!B45*SIN(RADIANS($R$2))+0.25 -> 0.03584878961 | C46: =-(dat!A45-0.25)*SIN(RADIANS($R$2))+dat!B45*COS(RADIANS($R$2)) -> 0.1010626696 | D46: =dat!C45-RADIANS($R$2) -> 1.69185264 | E46: =interpolation1D($R$2,aXFOIL,XFOIL!D49:AR49) -> -12.70739651 | G46: 0.7114458962 | H46: 0.004705627409 | I46: 0.2222441932 | J46: -0.3816778486 | L46: -0.7314292564 | M46: 6.408262199
B47: =(dat!A46-0.25)*COS(RADIANS($R$2))+dat!B46*SIN(RADIANS($R$2))+0.25 -> 0.03058302651 | C47: =-(dat!A46-0.25)*SIN(RADIANS($R$2))+dat!B46*COS(RADIANS($R$2)) -> 0.1001390006 | D47: =dat!C46-RADIANS($R$2) -> 1.794881521 | E47: =interpolation1D($R$2,aXFOIL,XFOIL!D50:AR50) -> -15.48027897 | L47: -1.68938837 | M47: 7.646757954
B48: =(dat!A47-0.25)*COS(RADIANS($R$2))+dat!B47*SIN(RADIANS($R$2))+0.25 -> 0.0262703445 | C48: =-(dat!A47-0.25)*SIN(RADIANS($R$2))+dat!B47*COS(RADIANS($R$2)) -> 0.0988555836 | D48: =dat!C47-RADIANS($R$2) -> 1.943096563 | E48: =interpolation1D($R$2,aXFOIL,XFOIL!D51:AR51) -> -21.09053802 | G48: 0.6332359783 | H48: -0.1017858655 | I48: 0.3599977263 | J48: -0.09580370057 | L48: -3.809666653 | M48: 9.921700685
B49: =(dat!A48-0.25)*COS(RADIANS($R$2))+dat!B48*SIN(RADIANS($R$2))+0.25 -> 0.02277546666 | C49: =-(dat!A48-0.25)*SIN(RADIANS($R$2))+dat!B48*COS(RADIANS($R$2)) -> 0.09704668985 | D49: =dat!C48-RADIANS($R$2) -> 2.141762754 | E49: =interpolation1D($R$2,aXFOIL,XFOIL!D52:AR52) -> -22.52725029 | G49: 0.6938904419 | H49: 0.03014587518 | I49: 0.2544134026 | J49: -0.3759427924 | L49: -6.064599294 | M49: 9.574025108
B50: =(dat!A49-0.25)*COS(RADIANS($R$2))+dat!B49*SIN(RADIANS($R$2))+0.25 -> 0.0200228399 | C50: =-(dat!A49-0.25)*SIN(RADIANS($R$2))+dat!B49*COS(RADIANS($R$2)) -> 0.09478170364 | D50: =dat!C49-RADIANS($R$2) -> 2.346881542 | E50: =interpolation1D($R$2,aXFOIL,XFOIL!D53:AR53) -> -23.25871468 | L50: -8.126236891 | M50: 8.39420364
B51: =(dat!A50-0.25)*COS(RADIANS($R$2))+dat!B50*SIN(RADIANS($R$2))+0.25 -> 0.01799565195 | C51: =-(dat!A50-0.25)*SIN(RADIANS($R$2))+dat!B50*COS(RADIANS($R$2)) -> 0.09226545464 | D51: =dat!C50-RADIANS($R$2) -> 2.543089384 | E51: =interpolation1D($R$2,aXFOIL,XFOIL!D54:AR54) -> -22.61196136 | G51: 0.6097990617 | H51: -0.09112600218 | I51: 0.3838656677 | J51: -0.1046846764 | L51: -9.322777297 | M51: 6.462128868
B52: =(dat!A51-0.25)*COS(RADIANS($R$2))+dat!B51*SIN(RADIANS($R$2))+0.25 -> 0.01660489338 | C52: =-(dat!A51-0.25)*SIN(RADIANS($R$2))+dat!B51*COS(RADIANS($R$2)) -> 0.08959198739 | D52: =dat!C51-RADIANS($R$2) -> 2.764721337 | E52: =interpolation1D($R$2,aXFOIL,XFOIL!D55:AR55) -> -21.03421593 | G52: 0.6783029449 | H52: 0.0608242914 | I52: 0.2863957891 | J52: -0.3703046271 | L52: -9.762418546 | M52: 3.960026135
B53: =(dat!A52-0.25)*COS(RADIANS($R$2))+dat!B52*SIN(RADIANS($R$2))+0.25 -> 0.01578779465 | C53: =-(dat!A52-0.25)*SIN(RADIANS($R$2))+dat!B52*COS(RADIANS($R$2)) -> 0.08670409693 | D53: =dat!C52-RADIANS($R$2) -> 2.98635329 | E53: =interpolation1D($R$2,aXFOIL,XFOIL!D56:AR56) -> -17.97528076 | L53: -8.863772161 | M53: 1.476342399
B54: =(dat!A53-0.25)*COS(RADIANS($R$2))+dat!B53*SIN(RADIANS($R$2))+0.25 -> 0.01554197265 | C54: =-(dat!A53-0.25)*SIN(RADIANS($R$2))+dat!B53*COS(RADIANS($R$2)) -> 0.08351325746 | D54: =dat!C53-RADIANS($R$2) -> 3.180925498 | E54: =interpolation1D($R$2,aXFOIL,XFOIL!D57:AR57) -> -14.49976921 | G54: 0.5865036686 | H54: -0.08071776955 | I54: 0.4075993374 | J54: -0.1132708531 | L54: -7.228735307 | M54: -0.2015718024
B55: =(dat!A54-0.25)*COS(RADIANS($R$2))+dat!B54*SIN(RADIANS($R$2))+0.25 -> 0.01598518297 | C55: =-(dat!A54-0.25)*SIN(RADIANS($R$2))+dat!B54*COS(RADIANS($R$2)) -> 0.08001454189 | D55: =dat!C54-RADIANS($R$2) -> 3.385283417 | E55: =interpolation1D($R$2,aXFOIL,XFOIL!D58:AR58) -> -10.87616634 | G55: 0.6644938874 | H55: 0.09571850491 | I55: 0.3180358903 | J55: -0.3647273529 | L55: -5.261424693 | M55: -1.232118676
B56: =(dat!A55-0.25)*COS(RADIANS($R$2))+dat!B55*SIN(RADIANS($R$2))+0.25 -> 0.01727085867 | C56: =-(dat!A55-0.25)*SIN(RADIANS($R$2))+dat!B55*COS(RADIANS($R$2)) -> 0.07634228734 | D56: =dat!C55-RADIANS($R$2) -> 3.586539401 | E56: =interpolation1D($R$2,aXFOIL,XFOIL!D59:AR59) -> -7.163121223 | L56: -3.215566044 | M56: -1.465196547
B57: =(dat!A56-0.25)*COS(RADIANS($R$2))+dat!B56*SIN(RADIANS($R$2))+0.25 -> 0.01950895642 | C57: =-(dat!A56-0.25)*SIN(RADIANS($R$2))+dat!B56*COS(RADIANS($R$2)) -> 0.0725273375 | D57: =dat!C56-RADIANS($R$2) -> 3.741214169 | E57: =interpolation1D($R$2,aXFOIL,XFOIL!D60:AR60) -> -3.875050068 | G57: 0.563138651 | H57: -0.07050068147 | I57: 0.4308960613 | J57: -0.1214349052 | L57: -1.580013409 | M57: -1.020876274
B58: =(dat!A57-0.25)*COS(RADIANS($R$2))+dat!B57*SIN(RADIANS($R$2))+0.25 -> 0.02269690652 | C58: =-(dat!A57-0.25)*SIN(RADIANS($R$2))+dat!B57*COS(RADIANS($R$2)) -> 0.06836041301 | D58: =dat!C57-RADIANS($R$2) -> 3.847067357 | E58: =interpolation1D($R$2,aXFOIL,XFOIL!D61:AR61) -> -2.006011486 | G58: 0.6515301386 | H58: 0.1338584413 | I58: 0.348722401 | J58: -0.3597365014 | L58: -0.7408952194 | M58: -0.5819837926
B59: =(dat!A58-0.25)*COS(RADIANS($R$2))+dat!B58*SIN(RADIANS($R$2))+0.25 -> 0.02695386781 | C59: =-(dat!A58-0.25)*SIN(RADIANS($R$2))+dat!B58*COS(RADIANS($R$2)) -> 0.06375485535 | D59: =dat!C58-RADIANS($R$2) -> 3.941667046 | E59: =interpolation1D($R$2,aXFOIL,XFOIL!D62:AR62) -> -0.8523616791 | L59: -0.2699464382 | M59: -0.2419906536
B60: =(dat!A59-0.25)*COS(RADIANS($R$2))+dat!B59*SIN(RADIANS($R$2))+0.25 -> 0.0326798321 | C60: =-(dat!A59-0.25)*SIN(RADIANS($R$2))+dat!B59*COS(RADIANS($R$2)) -> 0.05862953144 | D60: =dat!C59-RADIANS($R$2) -> 4.026262001 | E60: =interpolation1D($R$2,aXFOIL,XFOIL!D63:AR63) -> -0.02687143907 | G60: 0.539684382 | H60: -0.06046698966 | I60: 0.454553987 | J60: -0.1294627538 | L60: 0.02416769428 | M60: 0.04823424072
B61: =(dat!A60-0.25)*COS(RADIANS($R$2))+dat!B60*SIN(RADIANS($R$2))+0.25 -> 0.04055278773 | C61: =-(dat!A60-0.25)*SIN(RADIANS($R$2))+dat!B60*COS(RADIANS($R$2)) -> 0.0525805454 | D61: =dat!C60-RADIANS($R$2) -> 4.091962518 | E61: =interpolation1D($R$2,aXFOIL,XFOIL!D64:AR64) -> 0.4896815121 | G61: 0.6390179357 | H61: 0.1740172979 | I61: 0.3792715893 | J61: -0.3548513102 | N61: -0.1017932688 | O61: -0.1466293841
B62: =(dat!A61-0.25)*COS(RADIANS($R$2))+dat!B61*SIN(RADIANS($R$2))+0.25 -> 0.05136492718 | C62: =-(dat!A61-0.25)*SIN(RADIANS($R$2))+dat!B61*COS(RADIANS($R$2)) -> 0.04523921299 | D62: =dat!C61-RADIANS($R$2) -> 4.142408488 | E62: =interpolation1D($R$2,aXFOIL,XFOIL!D65:AR65) -> 0.7903894782 | N62: -0.1618883289 | O62: -0.2874797834
B63: =(dat!A62-0.25)*COS(RADIANS($R$2))+dat!B62*SIN(RADIANS($R$2))+0.25 -> 0.06602386703 | C63: =-(dat!A62-0.25)*SIN(RADIANS($R$2))+dat!B62*COS(RADIANS($R$2)) -> 0.03621803605 | D63: =dat!C62-RADIANS($R$2) -> 4.180579452 | E63: =interpolation1D($R$2,aXFOIL,XFOIL!D66:AR66) -> 0.9422195554 | G63: 0.5159565368 | H63: -0.05051284006 | I63: 0.4779649671 | J63: -0.1371558724 | N63: -0.172872974 | O63: -0.3698271855
B64: =(dat!A63-0.25)*COS(RADIANS($R$2))+dat!B63*SIN(RADIANS($R$2))+0.25 -> 0.08444243044 | C64: =-(dat!A63-0.25)*SIN(RADIANS($R$2))+dat!B63*COS(RADIANS($R$2)) -> 0.02575088986 | D64: =dat!C63-RADIANS($R$2) -> 4.208137244 | E64: =interpolation1D($R$2,aXFOIL,XFOIL!D67:AR67) -> 0.9958493114 | G64: 0.6266805302 | H64: 0.2163413002 | I64: 0.4109852127 | J64: -0.3470635996 | N64: -0.1561310836 | O64: -0.4102001935
B65: =(dat!A64-0.25)*COS(RADIANS($R$2))+dat!B64*SIN(RADIANS($R$2))+0.25 -> 0.10534028 | C65: =-(dat!A64-0.25)*SIN(RADIANS($R$2))+dat!B64*COS(RADIANS($R$2)) -> 0.0145102734 | D65: =dat!C64-RADIANS($R$2) -> 4.231166501 | E65: =interpolation1D($R$2,aXFOIL,XFOIL!D68:AR68) -> 0.994761467 | N65: -0.1248789395 | O65: -0.4263828032
B66: =(dat!A65-0.25)*COS(RADIANS($R$2))+dat!B65*SIN(RADIANS($R$2))+0.25 -> 0.1272190485 | C66: =-(dat!A65-0.25)*SIN(RADIANS($R$2))+dat!B65*COS(RADIANS($R$2)) -> 0.003410480503 | D66: =dat!C65-RADIANS($R$2) -> 4.251050265 | E66: =interpolation1D($R$2,aXFOIL,XFOIL!D69:AR69) -> 0.968688488 | G66: 0.4923153145 | H66: -0.04081270485 | I66: 0.5014872996 | J66: -0.1444386408 | N66: -0.08838546839 | O66: -0.4302991447
B67: =(dat!A66-0.25)*COS(RADIANS($R$2))+dat!B66*SIN(RADIANS($R$2))+0.25 -> 0.1495554801 | C67: =-(dat!A66-0.25)*SIN(RADIANS($R$2))+dat!B66*COS(RADIANS($R$2)) -> -0.00747091857 | D67: =dat!C66-RADIANS($R$2) -> 4.267160687 | E67: =interpolation1D($R$2,aXFOIL,XFOIL!D70:AR70) -> 0.9323856831 | G67: 0.6142505571 | H67: 0.2579828076 | I67: 0.441621429 | J67: -0.3436391006 | N67: -0.0512169607 | O67: -0.4282157255
B68: =(dat!A67-0.25)*COS(RADIANS($R$2))+dat!B67*SIN(RADIANS($R$2))+0.25 -> 0.1726404271 | C68: =-(dat!A67-0.25)*SIN(RADIANS($R$2))+dat!B67*COS(RADIANS($R$2)) -> -0.01826581619 | D68: =dat!C67-RADIANS($R$2) -> 4.281036039 | E68: =interpolation1D($R$2,aXFOIL,XFOIL!D71:AR71) -> 0.8921455741 | N68: -0.01386269342 | O68: -0.4234787447
B69: =(dat!A68-0.25)*COS(RADIANS($R$2))+dat!B68*SIN(RADIANS($R$2))+0.25 -> 0.1957247565 | C69: =-(dat!A68-0.25)*SIN(RADIANS($R$2))+dat!B68*COS(RADIANS($R$2)) -> -0.02872049531 | D69: =dat!C68-RADIANS($R$2) -> 4.292034895 | E69: =interpolation1D($R$2,aXFOIL,XFOIL!D72:AR72) -> 0.8518739939 | G69: 0.4686065326 | H69: -0.0311897872 | I69: 0.5251908952 | J69: -0.151348821 | N69: 0.02190679436 | O69: -0.4175773345
B70: =(dat!A69-0.25)*COS(RADIANS($R$2))+dat!B69*SIN(RADIANS($R$2))+0.25 -> 0.2187265551 | C70: =-(dat!A69-0.25)*SIN(RADIANS($R$2))+dat!B69*COS(RADIANS($R$2)) -> -0.03886585305 | D70: =dat!C69-RADIANS($R$2) -> 4.303123678 | E70: =interpolation1D($R$2,aXFOIL,XFOIL!D73:AR73) -> 0.8111284971 | G70: 0.602720393 | H70: 0.3034434462 | I70: 0.4732840836 | J70: -0.337965727 | N70: 0.05733817805 | O70: -0.4109359425
B71: =(dat!A70-0.25)*COS(RADIANS($R$2))+dat!B70*SIN(RADIANS($R$2))+0.25 -> 0.2415667907 | C71: =-(dat!A70-0.25)*SIN(RADIANS($R$2))+dat!B70*COS(RADIANS($R$2)) -> -0.04860417675 | D71: =dat!C70-RADIANS($R$2) -> 4.313189219 | E71: =interpolation1D($R$2,aXFOIL,XFOIL!D74:AR74) -> 0.7746952772 | N71: 0.09101206524 | O71: -0.4054955717
B72: =(dat!A71-0.25)*COS(RADIANS($R$2))+dat!B71*SIN(RADIANS($R$2))+0.25 -> 0.2649475989 | C72: =-(dat!A71-0.25)*SIN(RADIANS($R$2))+dat!B71*COS(RADIANS($R$2)) -> -0.05836491301 | D72: =dat!C71-RADIANS($R$2) -> 4.321323661 | E72: =interpolation1D($R$2,aXFOIL,XFOIL!D75:AR75) -> 0.7370120287 | G72: 0.4446416454 | H72: -0.02170581856 | I72: 0.5489112445 | J72: -0.1576285295 | N72: 0.1244828633 | O72: -0.3990500179
B73: =(dat!A72-0.25)*COS(RADIANS($R$2))+dat!B72*SIN(RADIANS($R$2))+0.25 -> 0.2885629269 | C73: =-(dat!A72-0.25)*SIN(RADIANS($R$2))+dat!B72*COS(RADIANS($R$2)) -> -0.06798098509 | D73: =dat!C72-RADIANS($R$2) -> 4.330574538 | E73: =interpolation1D($R$2,aXFOIL,XFOIL!D76:AR76) -> 0.7003096938 | G73: 0.5895872599 | H73: 0.3478694656 | I73: 0.5014678205 | J73: -0.3424245352 | N73: 0.158093527 | O73: -0.3929212142
B74: =(dat!A73-0.25)*COS(RADIANS($R$2))+dat!B73*SIN(RADIANS($R$2))+0.25 -> 0.3124262424 | C74: =-(dat!A73-0.25)*SIN(RADIANS($R$2))+dat!B73*COS(RADIANS($R$2)) -> -0.07742874897 | D74: =dat!C73-RADIANS($R$2) -> 4.337610045 | E74: =interpolation1D($R$2,aXFOIL,XFOIL!D77:AR77) -> 0.6681463122 | N74: 0.1901331452 | O74: -0.3883134093
B75: =(dat!A74-0.25)*COS(RADIANS($R$2))+dat!B74*SIN(RADIANS($R$2))+0.25 -> 0.3361779723 | C75: =-(dat!A74-0.25)*SIN(RADIANS($R$2))+dat!B74*COS(RADIANS($R$2)) -> -0.08671124728 | D75: =dat!C74-RADIANS($R$2) -> 4.343783316 | E75: =interpolation1D($R$2,aXFOIL,XFOIL!D78:AR78) -> 0.6324118972 | G75: 0.4206341473 | H75: -0.01237526962 | I75: 0.572320969 | J75: -0.1634475193 | N75: 0.2222441932 | O75: -0.3816778486
B76: =(dat!A75-0.25)*COS(RADIANS($R$2))+dat!B75*SIN(RADIANS($R$2))+0.25 -> 0.3599977263 | C76: =-(dat!A75-0.25)*SIN(RADIANS($R$2))+dat!B75*COS(RADIANS($R$2)) -> -0.09580370057 | D76: =dat!C75-RADIANS($R$2) -> 4.351953911 | E76: =interpolation1D($R$2,aXFOIL,XFOIL!D79:AR79) -> 0.5987519026 | G76: 0.5772558814 | H76: 0.3926371142 | I76: 0.5279716504 | J76: -0.3461890044 | N76: 0.2544134026 | O76: -0.3759427924
B77: =(dat!A76-0.25)*COS(RADIANS($R$2))+dat!B76*SIN(RADIANS($R$2))+0.25 -> 0.3838656677 | C77: =-(dat!A76-0.25)*SIN(RADIANS($R$2))+dat!B76*COS(RADIANS($R$2)) -> -0.1046846764 | D77: =dat!C76-RADIANS($R$2) -> 4.360692338 | E77: =interpolation1D($R$2,aXFOIL,XFOIL!D80:AR80) -> 0.5658774972 | N77: 0.2863957891 | O77: -0.3703046271
B78: =(dat!A77-0.25)*COS(RADIANS($R$2))+dat!B77*SIN(RADIANS($R$2))+0.25 -> 0.4075993374 | C78: =-(dat!A77-0.25)*SIN(RADIANS($R$2))+dat!B77*COS(RADIANS($R$2)) -> -0.1132708531 | D78: =dat!C77-RADIANS($R$2) -> 4.370220398 | E78: =interpolation1D($R$2,aXFOIL,XFOIL!D81:AR81) -> 0.5338613391 | G78: 0.3960999399 | H78: -0.002934011711 | I78: 0.5956590862 | J78: -0.1689733776 | N78: 0.3180358903 | O78: -0.3647273529
B79: =(dat!A78-0.25)*COS(RADIANS($R$2))+dat!B78*SIN(RADIANS($R$2))+0.25 -> 0.4308960613 | C79: =-(dat!A78-0.25)*SIN(RADIANS($R$2))+dat!B78*COS(RADIANS($R$2)) -> -0.1214349052 | D79: =dat!C78-RADIANS($R$2) -> 4.380326902 | E79: =interpolation1D($R$2,aXFOIL,XFOIL!D82:AR82) -> 0.5041434765 | G79: 0.5661704769 | H79: 0.4440126968 | I79: 0.5540121127 | J79: -0.3494938506 | N79: 0.348722401 | O79: -0.3597365014
B80: =(dat!A79-0.25)*COS(RADIANS($R$2))+dat!B79*SIN(RADIANS($R$2))+0.25 -> 0.454553987 | C80: =-(dat!A79-0.25)*SIN(RADIANS($R$2))+dat!B79*COS(RADIANS($R$2)) -> -0.1294627538 | D80: =dat!C79-RADIANS($R$2) -> 4.390028089 | E80: =interpolation1D($R$2,aXFOIL,XFOIL!D83:AR83) -> 0.4752575755 | N80: 0.3792715893 | O80: -0.3548513102
B81: =(dat!A80-0.25)*COS(RADIANS($R$2))+dat!B80*SIN(RADIANS($R$2))+0.25 -> 0.4779649671 | C81: =-(dat!A80-0.25)*SIN(RADIANS($R$2))+dat!B80*COS(RADIANS($R$2)) -> -0.1371558724 | D81: =dat!C80-RADIANS($R$2) -> 4.403510438 | E81: =interpolation1D($R$2,aXFOIL,XFOIL!D84:AR84) -> 0.4406701326 | G81: 0.3718191582 | H81: 0.006199163888 | I81: 0.6193752744 | J81: -0.1743037397 | N81: 0.4109852127 | O81: -0.3470635996
B82: =(dat!A81-0.25)*COS(RADIANS($R$2))+dat!B81*SIN(RADIANS($R$2))+0.25 -> 0.5014872996 | C82: =-(dat!A81-0.25)*SIN(RADIANS($R$2))+dat!B81*COS(RADIANS($R$2)) -> -0.1444386408 | D82: =dat!C81-RADIANS($R$2) -> 4.420445298 | E82: =interpolation1D($R$2,aXFOIL,XFOIL!D85:AR85) -> 0.4160035849 | G82: 0.5541546134 | H82: 0.4926825962 | I82: 0.5801394686 | J82: -0.3540086458 | N82: 0.441621429 | O82: -0.3436391006
B83: =(dat!A82-0.25)*COS(RADIANS($R$2))+dat!B82*SIN(RADIANS($R$2))+0.25 -> 0.5251908952 | C83: =-(dat!A82-0.25)*SIN(RADIANS($R$2))+dat!B82*COS(RADIANS($R$2)) -> -0.151348821 | D83: =dat!C82-RADIANS($R$2) -> 4.44109999 | E83: =interpolation1D($R$2,aXFOIL,XFOIL!D86:AR86) -> 0.3874025643 | N83: 0.4732840836 | O83: -0.337965727
B84: =(dat!A83-0.25)*COS(RADIANS($R$2))+dat!B83*SIN(RADIANS($R$2))+0.25 -> 0.5489112445 | C84: =-(dat!A83-0.25)*SIN(RADIANS($R$2))+dat!B83*COS(RADIANS($R$2)) -> -0.1576285295 | D84: =dat!C83-RADIANS($R$2) -> 4.461082514 | E84: =interpolation1D($R$2,aXFOIL,XFOIL!D87:AR87) -> 0.3815779984 | G84: 0.3472649679 | H84: 0.01536959484 | I84: 0.644459214 | J84: -0.1796307366 | N84: 0.5014678205 | O84: -0.3424245352
B85: =(dat!A84-0.25)*COS(RADIANS($R$2))+dat!B84*SIN(RADIANS($R$2))+0.25 -> 0.572320969 | C85: =-(dat!A84-0.25)*SIN(RADIANS($R$2))+dat!B84*COS(RADIANS($R$2)) -> -0.1634475193 | D85: =dat!C84-RADIANS($R$2) -> 4.47430316 | E85: =interpolation1D($R$2,aXFOIL,XFOIL!D88:AR88) -> 0.3760920763 | G85: 0.5453544406 | H85: 0.5526844986 | I85: 0.6052621925 | J85: -0.3645906322 | N85: 0.5279716504 | O85: -0.3461890044
B86: =(dat!A85-0.25)*COS(RADIANS($R$2))+dat!B85*SIN(RADIANS($R$2))+0.25 -> 0.5956590862 | C86: =-(dat!A85-0.25)*SIN(RADIANS($R$2))+dat!B85*COS(RADIANS($R$2)) -> -0.1689733776 | D86: =dat!C85-RADIANS($R$2) -> 4.485651128 | E86: =interpolation1D($R$2,aXFOIL,XFOIL!D89:AR89) -> 0.3705245554 | N86: 0.5540121127 | O86: -0.3494938506
B87: =(dat!A86-0.25)*COS(RADIANS($R$2))+dat!B86*SIN(RADIANS($R$2))+0.25 -> 0.6193752744 | C87: =-(dat!A86-0.25)*SIN(RADIANS($R$2))+dat!B86*COS(RADIANS($R$2)) -> -0.1743037397 | D87: =dat!C86-RADIANS($R$2) -> 4.497427708 | E87: =interpolation1D($R$2,aXFOIL,XFOIL!D90:AR90) -> 0.3678766191 | G87: 0.3231069896 | H87: 0.02415688826 | I87: 0.67108598 | J87: -0.1852625808 | N87: 0.5801394686 | O87: -0.3540086458
B88: =(dat!A87-0.25)*COS(RADIANS($R$2))+dat!B87*SIN(RADIANS($R$2))+0.25 -> 0.644459214 | C88: =-(dat!A87-0.25)*SIN(RADIANS($R$2))+dat!B87*COS(RADIANS($R$2)) -> -0.1796307366 | D88: =dat!C87-RADIANS($R$2) -> 4.503556936 | E88: =interpolation1D($R$2,aXFOIL,XFOIL!D91:AR91) -> 0.3781352639 | G88: 0.5347698232 | H88: 0.6095194851 | I88: 0.6316412752 | J88: -0.3717448953 | N88: 0.6052621925 | O88: -0.3645906322
B89: =(dat!A88-0.25)*COS(RADIANS($R$2))+dat!B88*SIN(RADIANS($R$2))+0.25 -> 0.67108598 | C89: =-(dat!A88-0.25)*SIN(RADIANS($R$2))+dat!B88*COS(RADIANS($R$2)) -> -0.1852625808 | D89: =dat!C88-RADIANS($R$2) -> 4.503941609 | E89: =interpolation1D($R$2,aXFOIL,XFOIL!D92:AR92) -> 0.381216675 | N89: 0.6316412752 | O89: -0.3717448953
B90: =(dat!A89-0.25)*COS(RADIANS($R$2))+dat!B89*SIN(RADIANS($R$2))+0.25 -> 0.6980648674 | C90: =-(dat!A89-0.25)*SIN(RADIANS($R$2))+dat!B89*COS(RADIANS($R$2)) -> -0.1909693935 | D90: =dat!C89-RADIANS($R$2) -> 4.503902077 | E90: =interpolation1D($R$2,aXFOIL,XFOIL!D93:AR93) -> 0.3842246532 | G90: 0.2990341704 | H90: 0.03280941205 | I90: 0.6980648674 | J90: -0.1909693935 | N90: 0.6583014953 | O90: -0.378921569
B91: =(dat!A90-0.25)*COS(RADIANS($R$2))+dat!B90*SIN(RADIANS($R$2))+0.25 -> 0.724460212 | C91: =-(dat!A90-0.25)*SIN(RADIANS($R$2))+dat!B90*COS(RADIANS($R$2)) -> -0.1965544993 | D91: =dat!C90-RADIANS($R$2) -> 4.502392059 | E91: =interpolation1D($R$2,aXFOIL,XFOIL!D94:AR94) -> 0.3908806443 | G91: 0.5281566308 | H91: 0.6789330068 | I91: 0.6583014953 | J91: -0.378921569 | N91: 0.6837193305 | O91: -0.3877013018
B92: =(dat!A91-0.25)*COS(RADIANS($R$2))+dat!B91*SIN(RADIANS($R$2))+0.25 -> 0.7491276172 | C92: =-(dat!A91-0.25)*SIN(RADIANS($R$2))+dat!B91*COS(RADIANS($R$2)) -> -0.2018537829 | D92: =dat!C91-RADIANS($R$2) -> 4.495133265 | E92: =interpolation1D($R$2,aXFOIL,XFOIL!D95:AR95) -> 0.401987642 | N92: 0.7058032654 | O92: -0.3981227734
B93: =(dat!A92-0.25)*COS(RADIANS($R$2))+dat!B92*SIN(RADIANS($R$2))+0.25 -> 0.772769075 | C93: =-(dat!A92-0.25)*SIN(RADIANS($R$2))+dat!B92*COS(RADIANS($R$2)) -> -0.2072200488 | D93: =dat!C92-RADIANS($R$2) -> 4.483514947 | E93: =interpolation1D($R$2,aXFOIL,XFOIL!D96:AR96) -> 0.4069557488 | G93: 0.2749839519 | H93: 0.0412216787 | I93: 0.724460212 | J93: -0.1965544993 | N93: 0.7266037985 | O93: -0.4053917234
B94: =(dat!A93-0.25)*COS(RADIANS($R$2))+dat!B93*SIN(RADIANS($R$2))+0.25 -> 0.7962884308 | C94: =-(dat!A93-0.25)*SIN(RADIANS($R$2))+dat!B93*COS(RADIANS($R$2)) -> -0.2128402215 | D94: =dat!C93-RADIANS($R$2) -> 4.469671062 | E94: =interpolation1D($R$2,aXFOIL,XFOIL!D97:AR97) -> 0.4140573442 | G94: 0.5202519066 | H94: 0.7528501942 | I94: 0.6837193305 | J94: -0.3877013018 | N94: 0.7465307949 | O94: -0.4138005379
B95: =(dat!A94-0.25)*COS(RADIANS($R$2))+dat!B94*SIN(RADIANS($R$2))+0.25 -> 0.8199289114 | C95: =-(dat!A94-0.25)*SIN(RADIANS($R$2))+dat!B94*COS(RADIANS($R$2)) -> -0.2188960368 | D95: =dat!C94-RADIANS($R$2) -> 4.448962035 | E95: =interpolation1D($R$2,aXFOIL,XFOIL!D98:AR98) -> 0.4219606519 | N95: 0.7649915753 | O95: -0.4225982386
B96: =(dat!A95-0.25)*COS(RADIANS($R$2))+dat!B95*SIN(RADIANS($R$2))+0.25 -> 0.8429959757 | C96: =-(dat!A95-0.25)*SIN(RADIANS($R$2))+dat!B95*COS(RADIANS($R$2)) -> -0.2254385867 | D96: =dat!C95-RADIANS($R$2) -> 4.418914644 | E96: =interpolation1D($R$2,aXFOIL,XFOIL!D99:AR99) -> 0.4262368381 | G96: 0.2510690811 | H96: 0.04934055415 | I96: 0.7491276172 | J96: -0.2018537829 | N96: 0.7813451319 | O96: -0.4294450424
B97: =(dat!A96-0.25)*COS(RADIANS($R$2))+dat!B96*SIN(RADIANS($R$2))+0.25 -> 0.8651125588 | C97: =-(dat!A96-0.25)*SIN(RADIANS($R$2))+dat!B96*COS(RADIANS($R$2)) -> -0.2325547112 | D97: =dat!C96-RADIANS($R$2) -> 4.379773334 | E97: =interpolation1D($R$2,aXFOIL,XFOIL!D100:AR100) -> 0.429708451 | G97: 0.5134601468 | H97: 0.8342596258 | I97: 0.7058032654 | J97: -0.3981227734 | N97: 0.7949591243 | O97: -0.4356331045
B98: =(dat!A97-0.25)*COS(RADIANS($R$2))+dat!B97*SIN(RADIANS($R$2))+0.25 -> 0.8862135904 | C98: =-(dat!A97-0.25)*SIN(RADIANS($R$2))+dat!B97*COS(RADIANS($R$2)) -> -0.2403734627 | D98: =dat!C97-RADIANS($R$2) -> 4.335781526 | E98: =interpolation1D($R$2,aXFOIL,XFOIL!D101:AR101) -> 0.4100777209 | N98: 0.810806899 | O98: -0.4310427187
B99: =(dat!A98-0.25)*COS(RADIANS($R$2))+dat!B98*SIN(RADIANS($R$2))+0.25 -> 0.9063692314 | C99: =-(dat!A98-0.25)*SIN(RADIANS($R$2))+dat!B98*COS(RADIANS($R$2)) -> -0.2488761429 | D99: =dat!C98-RADIANS($R$2) -> 4.292741062 | E99: =interpolation1D($R$2,aXFOIL,XFOIL!D102:AR102) -> 0.3652535677 | G99: 0.2276322079 | H99: 0.05704993193 | I99: 0.772769075 | J99: -0.2072200488 | N99: 0.8319599671 | O99: -0.4156568479
B100: =(dat!A99-0.25)*COS(RADIANS($R$2))+dat!B99*SIN(RADIANS($R$2))+0.25 -> 0.9248428896 | C100: =-(dat!A99-0.25)*SIN(RADIANS($R$2))+dat!B99*COS(RADIANS($R$2)) -> -0.2576195428 | D100: =dat!C99-RADIANS($R$2) -> 4.248711402 | E100: =interpolation1D($R$2,aXFOIL,XFOIL!D103:AR103) -> 0.2974953353 | G100: 0.5081770984 | H100: 0.9252693072 | I100: 0.7266037985 | J100: -0.4053917234 | N100: 0.8583169231 | O100: -0.3906615076
B101: =(dat!A100-0.25)*COS(RADIANS($R$2))+dat!B100*SIN(RADIANS($R$2))+0.25 -> 0.9406918178 | C101: =-(dat!A100-0.25)*SIN(RADIANS($R$2))+dat!B100*COS(RADIANS($R$2)) -> -0.2660612878 | D101: =dat!C100-RADIANS($R$2) -> 4.211487962 | E101: =interpolation1D($R$2,aXFOIL,XFOIL!D104:AR104) -> 0.1947070509 | N101: 0.8939410912 | O101: -0.3514549555
B102: =(dat!A101-0.25)*COS(RADIANS($R$2))+dat!B101*SIN(RADIANS($R$2))+0.25 -> 0.9493073184 | C102: =-(dat!A101-0.25)*SIN(RADIANS($R$2))+dat!B101*COS(RADIANS($R$2)) -> -0.2710632342 | D102: =dat!C101-RADIANS($R$2) -> 4.186374845 | E102: =interpolation1D($R$2,aXFOIL,XFOIL!D105:AR105) -> -0.1661527604 | G102: 0.203914064 | H102: 0.06457796315 | I102: 0.7962884308 | J102: -0.2128402215 | L102: 0.9075954735 | M102: -0.3429089505
G103: 0.5053352105 | H103: 1.029133551 | I103: 0.7465307949 | J103: -0.4138005379
G105: 0.1806528165 | H105: 0.07172998282 | I105: 0.8199289114 | J105: -0.2188960368
G106: 0.5077358087 | H106: 1.159256256 | I106: 0.7649915753 | J106: -0.4225982386
G108: 0.1573941647 | H108: 0.07856898155 | I108: 0.8429959757 | J108: -0.2254385867
G109: 0.5126590809 | H109: 1.325420756 | I109: 0.7813451319 | J109: -0.4294450424
G111: 0.1341020906 | H111: 0.08499331593 | I111: 0.8651125588 | J111: -0.2325547112
G112: 0.5202692163 | H112: 1.532251844 | I112: 0.7949591243 | J112: -0.4356331045
G114: 0.1115683018 | H114: 0.09079376712 | I114: 0.8862135904 | J114: -0.2403734627
G115: 0.5363856974 | H115: 1.850357259 | I115: 0.810806899 | J115: -0.4310427187
G117: 0.09086934255 | H117: 0.09541933924 | I117: 0.9063692314 | J117: -0.2488761429
G118: 0.5375311597 | H118: 2.242362775 | I118: 0.8319599671 | J118: -0.4156568479
G120: 0.07359154122 | H120: 0.09867348869 | I120: 0.9248428896 | J120: -0.2576195428
G121: 0.5316294811 | H121: 2.789420951 | I121: 0.8583169231 | J121: -0.3906615076
G123: 0.0602775041 | H123: 0.1005968625 | I123: 0.9406918178 | J123: -0.2660612878
G124: 0.4715343089 | H124: 3.516000449 | I124: 0.8939410912 | J124: -0.3514549555
G126: 0.05010037609 | H126: 0.1014697991
G127: 0.2899831568 | H127: 4.392565784
G129: 0.04222519409 | H129: 0.1015760704
G130: -0.1006249331 | H130: 5.458506502
G132: 0.03584878961 | H132: 0.1010626696
G133: -0.7314292564 | H133: 6.408262199
G135: 0.03058302651 | H135: 0.1001390006
G136: -1.68938837 | H136: 7.646757954
G138: 0.0262703445 | H138: 0.0988555836
G139: -3.809666653 | H139: 9.921700685
G141: 0.02277546666 | H141: 0.09704668985
G142: -6.064599294 | H142: 9.574025108
G144: 0.0200228399 | H144: 0.09478170364
G145: -8.126236891 | H145: 8.39420364
G147: 0.01799565195 | H147: 0.09226545464
G148: -9.322777297 | H148: 6.462128868
G150: 0.01660489338 | H150: 0.08959198739
G151: -9.762418546 | H151: 3.960026135
G153: 0.01578779465 | H153: 0.08670409693
G154: -8.863772161 | H154: 1.476342399
G156: 0.01554197265 | H156: 0.08351325746
G157: -7.228735307 | H157: -0.2015718024
G159: 0.01598518297 | H159: 0.08001454189
G160: -5.261424693 | H160: -1.232118676
G162: 0.01727085867 | H162: 0.07634228734
G163: -3.215566044 | H163: -1.465196547
G165: 0.01950895642 | H165: 0.0725273375
G166: -1.580013409 | H166: -1.020876274
G168: 0.02269690652 | H168: 0.06836041301
G169: -0.7408952194 | H169: -0.5819837926
G171: 0.02695386781 | H171: 0.06375485535
G172: -0.2699464382 | H172: -0.2419906536
G174: 0.0326798321 | H174: 0.05862953144
G175: 0.02416769428 | H175: 0.04823424072
G177: 0.9493073184 | H177: -0.2710632342
G178: 0.9075954735 | H178: -0.3429089505

Sheet dat
A1: SC(2)-0410
A2: 1 | B2: 0.00245 | C2: =ATAN(SLOPE(B2:B3,A2:A3))+IF(A3-A2<0,PI()/2,3*PI()/2) -> 1.392105898
A3: 0.98995 | B3: 0.0042652 | C3: =ATAN(SLOPE(B2:B4,A2:A4))+IF(A4-A2<0,PI()/2,3*PI()/2) -> 1.401952521
A4: 0.9709294 | B4: 0.0074246 | C4: =ATAN(SLOPE(B3:B5,A3:A5))+IF(A5-A3<0,PI()/2,3*PI()/2) -> 1.414612369
A5: 0.9487444 | B5: 0.0107619 | C5: =ATAN(SLOPE(B4:B6,A4:A6))+IF(A6-A4<0,PI()/2,3*PI()/2) -> 1.42749413
A6: 0.9250524 | B6: 0.0140472 | C6: 1.437281624
A7: 0.9000077 | B7: 0.0173098 | C7: 1.444107183
A8: 0.8747538 | B8: 0.020454 | C8: 1.448930908
A9: 0.8491865 | B9: 0.0235342 | C9: 1.455860243
A10: 0.8232736 | B10: 0.0263977 | C10: 1.461050862
A11: 0.7974667 | B11: 0.0292331 | C11: 1.466107711
A12: 0.7717892 | B12: 0.0318071 | C12: 1.473361484
A13: 0.7463578 | B13: 0.0342285 | C13: 1.478065078
A14: 0.7207689 | B14: 0.036552 | C14: 1.485252265
A15: 0.6951842 | B15: 0.0386168 | C15: 1.492303467
A16: 0.6697306 | B16: 0.0405663 | C16: 1.498320309
A17: 0.6442584 | B17: 0.0423142 | C17: 1.506390309
A18: 0.618558 | B18: 0.043867 | C18: 1.513770805
A19: 0.5930799 | B19: 0.0452356 | C19: 1.521108693
A20: 0.5676053 | B20: 0.0464008 | C20: 1.529084022
A21: 0.5421131 | B21: 0.0473628 | C21: 1.536609503
A22: 0.516394 | B22: 0.0481525 | C22: 1.544010764
A23: 0.4908468 | B23: 0.0487361 | C23: 1.549855094
A24: 0.4652642 | B24: 0.0492234 | C24: 1.55613801
A25: 0.4394923 | B25: 0.0494892 | C25: 1.563555512
A26: 0.4137356 | B26: 0.0495965 | C26: 1.568319526
A27: 0.3874475 | B27: 0.0496184 | C27: 1.573717327
A28: 0.3615064 | B28: 0.0494435 | C28: 1.578717513
A29: 0.3352967 | B29: 0.0492054 | C29: 1.584109858
A30: 0.3095942 | B30: 0.0487516 | C30: 1.59035065
A31: 0.2840195 | B31: 0.0482025 | C31: 1.596538877
A32: 0.258552 | B32: 0.0474372 | C32: 1.60540821
A33: 0.233316 | B33: 0.0464465 | C33: 1.614703625
A34: 0.208673 | B34: 0.0452448 | C34: 1.624778808
A35: 0.1838324 | B35: 0.043773 | C35: 1.634432939
A36: 0.1595531 | B36: 0.0421139 | C36: 1.645162762
A37: 0.1353884 | B37: 0.0401635 | C37: 1.659741471
A38: 0.1113411 | B38: 0.037814 | C38: 1.676563734
A39: 0.0882253 | B39: 0.0351538 | C39: 1.700415598
A40: 0.0672435 | B40: 0.0320543 | C40: 1.732196003
A41: 0.0499471 | B41: 0.0289005 | C41: 1.768704671
A42: 0.0368281 | B42: 0.0259248 | C42: 1.817480058
A43: 0.0270141 | B43: 0.0230926 | C43: 1.881471144
A44: 0.0196239 | B44: 0.0203696 | C44: 1.963975566
A45: 0.013855 | B45: 0.0176052 | C45: 2.058371783
A46: 0.00927 | B46: 0.0148558 | C46: 2.161400664
A47: 0.0057037 | B47: 0.0121121 | C47: 2.309615706
A48: 0.0030892 | B48: 0.0091709 | C48: 2.508281897
A49: 0.0013311 | B49: 0.0060699 | C49: 2.713400685
A50: 0.0003403 | B50: 0.0029943 | C50: 2.909608527
A51: 0 | B51: 0 | C51: =AVERAGE(C50,C52) -> 3.13124048
A52: 0.0002721 | B52: -0.0029889 | C52: 3.352872432
A53: 0.0011861 | B53: -0.0060559 | C53: 3.547444641
A54: 0.0028537 | B54: -0.0091634 | C54: 3.75180256
A55: 0.00537 | B55: -0.012131 | C55: 3.953058544
A56: 0.0088266 | B56: -0.0148905 | C56: 4.107733312
A57: 0.0132961 | B57: -0.0176382 | C57: 4.2135865
A58: 0.0189208 | B58: -0.0204123 | C58: 4.308186189
A59: 0.0261032 | B59: -0.0231452 | C59: 4.392781144
A60: 0.035621 | B60: -0.025971 | C60: 4.458481661
A61: 0.0483459 | B61: -0.02895 | C61: 4.508927631
A62: 0.0652641 | B62: -0.0321187 | C62: 4.547098595
A63: 0.0862104 | B63: -0.03529 | C63: 4.574656387
A64: 0.1097485 | B64: -0.0382949 | C64: 4.597685644
A65: 0.1341519 | B65: -0.0408168 | C65: 4.617569408
A66: 0.1589043 | B66: -0.0429708 | C66: 4.63367983
A67: 0.1843245 | B67: -0.0447758 | C67: 4.647555182
A68: 0.2096222 | B68: -0.0462634 | C68: 4.658554038
A69: 0.234732 | B69: -0.0474918 | C69: =ATAN(SLOPE(B68:B70,A68:A70))+IF(A70-A68<0,PI()/2,3*PI()/2) -> 4.669642821
A70: 0.2595451 | B70: -0.0483981 | C70: 4.679708362
A71: 0.2848709 | B71: -0.0491316 | C71: 4.687842804
A72: 0.3103638 | B72: -0.049646 | C72: 4.697093681
A73: 0.3360279 | B73: -0.0499144 | C73: 4.704129188
A74: 0.3615286 | B74: -0.0500685 | C74: 4.710302459
A75: 0.3870247 | B75: -0.0500208 | C75: 4.718473053
A76: 0.41249 | B76: -0.0497584 | C76: 4.727211481
A77: 0.4377243 | B77: -0.0492689 | C77: 4.736739541
A78: 0.4623994 | B78: -0.0485419 | C78: 4.746846045
A79: 0.4873629 | B79: -0.0475583 | C79: 4.756547232
A80: 0.5119759 | B80: -0.0463507 | C80: 4.770029581
A81: 0.5365458 | B81: -0.0447201 | C81: 4.786964441
A82: 0.5611514 | B82: -0.0426767 | C82: 4.807619133
A83: 0.5855467 | B83: -0.0400387 | C83: 4.827601657
A84: 0.6094869 | B84: -0.0370819 | C84: 4.840822303
A85: 0.6332552 | B85: -0.0338771 | C85: 4.852170271
A86: 0.6573064 | B86: -0.0303543 | C86: 4.863946851
A87: 0.6826333 | B87: -0.0263382 | C87: 4.870076079
A88: 0.7095098 | B88: -0.0220538 | C88: 4.870460752
A89: 0.7367419 | B89: -0.0177132 | C89: 4.87042122
A90: 0.7633856 | B90: -0.0134681 | C90: 4.868911202
A91: 0.7883137 | B91: -0.0095754 | C91: 4.861652408
A92: 0.812308 | B92: -0.0061129 | C92: 4.85003409
A93: 0.8362793 | B93: -0.0029312 | C93: 4.836190205
A94: 0.8605198 | B94: -0.0001128 | C94: 4.815481178
A95: 0.8843994 | B95: 0.0020457 | C95: 4.785433787
A96: 0.9075972 | B96: 0.0033281 | C96: 4.746292477
A97: 0.9300987 | B97: 0.0035906 | C97: 4.702300669
A98: 0.9519627 | B98: 0.0028758 | C98: 4.659260205
A99: 0.9723427 | B99: 0.0013335 | C99: 4.615230545
A100: 0.9901642 | B100: -0.0008678 | C100: 4.578007105
A101: 1 | B101: -0.00245 | C101: =ATAN(SLOPE(B100:B101,A100:A101))+IF(A101-A100<0,PI()/2,3*PI()/2) -> 4.552893988

Sheet XFOIL
C1: alpha | D1: -15 | E1: -14 | F1: -13 | G1: -12 | H1: -11 | I1: -10 | J1: -9 | K1: -7 | L1: -6 | M1: -5 | N1: -4 | O1: -3 | P1: -2.026898789 | Q1: -2 | R1: -1 | S1: 0 | T1: 1 | U1: 2 | V1: 3 | W1: 4 | X1: 6 | Y1: 6.505101395 | Z1: 7 | AA1: 8 | AB1: 9 | AC1: 10 | AD1: 11 | AE1: 12 | AF1: 13 | AG1: 14 | AH1: 15 | AI1: 16 | AJ1: 17 | AK1: 18 | AL1: 19 | AM1: 20 | AN1: 21 | AO1: 22 | AP1: 23 | AQ1: 24 | AR1: 25
C2: cl | D2: -1.502437711 | E2: -1.398584247 | F2: -1.291673541 | G2: -1.182742596 | H2: -1.072793126 | I2: -0.9630678892 | J2: -0.8407793045 | K2: -0.5910428762 | L2: -0.4720156789 | M2: -0.3543539643 | N2: -0.235352993 | O2: -0.116606161 | P2: -3.822743383e-05 | Q2: 0.003223266453 | R2: 0.1236372814 | S2: 0.2469614148 | T2: 0.3675885797 | U2: 0.4844250083 | V2: 0.6005921364 | W2: 0.7159963846 | X2: 0.9434095621 | Y2: 1.000186324 | Z2: 1.05544734 | AA2: 1.16603446 | AB2: 1.275427103 | AC2: 1.383438945 | AD2: 1.489619851 | AE2: 1.593721986 | AF2: 1.695595622 | AG2: 1.793295503 | AH2: 1.877082109 | AI2: 1.959003091 | AJ2: 2.029148579 | AK2: 2.070967197 | AL2: 2.082677841 | AM2: 2.08182478 | AN2: 2.051567078 | AO2: 1.924837232 | AP2: 1.759227633 | AQ2: 1.578689814 | AR2: 1.454767704
C3: cd | D3: 0.01462118607 | E3: 0.01331482828 | F3: 0.01213886682 | G3: 0.01104468107 | H3: 0.01000382937 | I3: 0.009014325216 | J3: 0.00804809574 | K3: 0.006514617708 | L3: 0.005879860371 | M3: 0.005553659517 | N3: 0.005326162558 | O3: 0.005366869736 | P3: 0.005523413885 | Q3: 0.005534403492 | R3: 0.005875919014 | S3: 0.005721170921 | T3: 0.00575485127 | U3: 0.006096215919 | V3: 0.006464521401 | W3: 0.006886839867 | X3: 0.008170787245 | Y3: 0.008512162603 | Z3: 0.008873706684 | AA3: 0.009664825164 | AB3: 0.01048713829 | AC3: 0.01132918987 | AD3: 0.01221773028 | AE3: 0.01317363512 | AF3: 0.01419143751 | AG3: 0.01545308437 | AH3: 0.01805337332 | AI3: 0.02016479522 | AJ3: 0.02266366221 | AK3: 0.02563322522 | AL3: 0.03008940071 | AM3: 0.03733642027 | AN3: 0.05008373782 | AO3: 0.08233705163 | AP3: 0.1482341588 | AQ3: 0.197728008 | AR3: 0.2772557735
C4: cm | D4: -0.04197216034 | E4: -0.0429584235 | F4: -0.04408756271 | G4: -0.04526702687 | H4: -0.04635144398 | I4: -0.04711147398 | J4: -0.05042766407 | K4: -0.05751220509 | L4: -0.05942890421 | M4: -0.0608650744 | N4: -0.06252004951 | O4: -0.06418018043 | P4: -0.06624628603 | Q4: -0.06632906199 | R4: -0.06882582605 | S4: -0.07190216333 | T4: -0.07397537678 | U4: -0.07478696108 | V4: -0.07542473078 | W4: -0.07590819895 | X4: -0.07619060576 | Y4: -0.07614485919 | Z4: -0.07603874058 | AA4: -0.07566489279 | AB4: -0.07516036928 | AC4: -0.07448448986 | AD4: -0.07353467494 | AE4: -0.07229072601 | AF4: -0.07076749206 | AG4: -0.06863021851 | AH4: -0.06442465633 | AI4: -0.06008154526 | AJ4: -0.05412599817 | AK4: -0.0438827388 | AL4: -0.0314617604 | AM4: -0.02316180989 | AN4: -0.02069460601 | AO4: -0.03510797769 | AP4: -0.1024422199 | AQ4: -0.1270580441 | AR4: -0.2130927593
A5: x | B5: y | C5: z | D5: Cp | E5: Cp | F5: Cp | G5: Cp | H5: Cp | I5: Cp | J5: Cp | K5: Cp | L5: Cp | M5: Cp | N5: Cp | O5: Cp | P5: Cp | Q5: Cp | R5: Cp | S5: Cp | T5: Cp | U5: Cp | V5: Cp | W5: Cp | X5: Cp | Y5: Cp | Z5: Cp | AA5: Cp | AB5: Cp | AC5: Cp | AD5: Cp | AE5: Cp | AF5: Cp | AG5: Cp | AH5: Cp | AI5: Cp | AJ5: Cp | AK5: Cp | AL5: Cp | AM5: Cp | AN5: Cp | AO5: Cp | AP5: Cp | AQ5: Cp | AR5: Cp
A6: 1 | D6: 0.1178060845 | E6: 0.1167365611 | F6: 0.1127060428 | G6: 0.1062324643 | H6: 0.09728468955 | I6: 0.08572467417 | J6: 0.08142415434 | K6: 0.07318770885 | L6: 0.05688295141 | M6: 0.04669863731 | N6: 0.03966264054 | O6: 0.03350667655 | P6: 0.0271142181 | Q6: 0.02684922516 | R6: 0.02036427334 | S6: 0.01220982522 | T6: 0.008306272328 | U6: 0.009422975592 | V6: 0.01139370911 | W6: 0.0140247969 | X6: 0.0208839532 | Y6: 0.0229407046 | Z6: 0.02506455034 | AA6: 0.02953827567 | AB6: 0.03395976499 | AC6: 0.03835257888 | AD6: 0.04283249751 | AE6: 0.04710969701 | AF6: 0.05076706782 | AG6: 0.05348726362 | AH6: 0.05104378611 | AI6: 0.04709522054 | AJ6: 0.03719982132 | AK6: 0.01207535528 | AL6: -0.05104648322 | AM6: -0.1052128151 | AN6: -0.1661527604 | AO6: -0.2488953769 | AP6: -0.4527739584 | AQ6: -0.5136052966 | AR6: -0.7939519286
A7: 0.9899500012 | D7: 0.1011991948 | E7: 0.1001125798 | F7: 0.09764588624 | G7: 0.09479281306 | H7: 0.09167885035 | I7: 0.08446487039 | J7: 0.0651608929 | K7: 0.02216019295 | L7: 0.04310877621 | M7: 0.03183735535 | N7: 0.02351587079 | O7: 0.01611312479 | P7: 0.009131168015 | Q7: 0.008879525587 | R7: 0.001713481965 | S7: -0.006731298286 | T7: -0.01206996106 | U7: -0.01313204318 | V7: -0.01319196634 | W7: -0.01237222459 | X7: -0.008063822985 | Y7: -0.006454613525 | Z7: -0.004670246039 | AA7: -0.0005711290287 | AB7: 0.003884923412 | AC7: 0.008685136214 | AD7: 0.01393835805 | AE7: 0.01939998567 | AF7: 0.02467273176 | AG7: 0.02963460237 | AH7: 0.03144004941 | AI7: 0.03146532178 | AJ7: 0.02651537582 | AK7: 0.01241736207 | AL7: -0.052210439 | AM7: -0.1074856594 | AN7: -0.1689801365 | AO7: -0.2520231605 | AP7: -0.4554624557 | AQ7: -0.5160509348 | AR7: -0.7961566448
A8: 0.9709293842 | D8: 0.09189200401 | E8: 0.08680872619 | F8: 0.08082559705 | G8: 0.0749970004 | H8: 0.07094086707 | I8: 0.07155177742 | J8: 0.05194755271 | K8: 0.009226064198 | L8: 0.01250047423 | M8: -0.0001540971716 | N8: -0.01140240952 | O8: -0.02048967406 | P8: -0.02822930738 | Q8: -0.02846524492 | R8: -0.03591609374 | S8: -0.04486588761 | T8: -0.05131621286 | U8: -0.05414840579 | V8: -0.05596390367 | W8: -0.05677767843 | X8: -0.05480946973 | Y8: -0.05367792398 | Z8: -0.05227726698 | AA8: -0.04868023843 | AB8: -0.04434806481 | AC8: -0.03928679973 | AD8: -0.03334480897 | AE8: -0.02665866725 | AF8: -0.01954392903 | AG8: -0.0117750736 | AH8: -0.003956194967 | AI8: 0.001893921639 | AJ8: 0.00452903565 | AK8: 0.001994519029 | AL8: -0.05420403183 | AM8: -0.1120518893 | AN8: -0.1745981127 | AO8: -0.2582120597 | AP8: -0.4607714415 | AQ8: -0.5207455754 | AR8: -0.8004579544
A9: 0.9487444162 | D9: 0.09348411858 | E9: 0.08512182534 | F9: 0.07595844567 | G9: 0.06678047031 | H9: 0.05867112055 | I9: 0.05384446681 | J9: 0.03576983139 | K9: -0.002900434891 | L9: -0.0236182753 | M9: -0.01706335507 | N9: -0.03210389614 | O9: -0.04414943606 | P9: -0.05390913039 | Q9: -0.05419212952 | R9: -0.06348334998 | S9: -0.07395805418 | T9: -0.08221788704 | U9: -0.08726042509 | V9: -0.09128348529 | W9: -0.09426329285 | X9: -0.09627649933 | Y9: -0.09607739747 | Z9: -0.09554363042 | AA9: -0.09352560341 | AB9: -0.09049540758 | AC9: -0.08642662317 | AD9: -0.08111735433 | AE9: -0.07458916306 | AF9: -0.06703610718 | AG9: -0.05789322779 | AH9: -0.04559723288 | AI9: -0.03485156596 | AJ9: -0.02505097724 | AK9: -0.01582808234 | AL9: -0.05413383245 | AM9: -0.1174014732 | AN9: -0.1813140213 | AO9: -0.2656879425 | AP9: -0.4671652913 | AQ9: -0.526375711 | AR9: -0.8056038618
A10: 0.9250524044 | D10: 0.1010152921 | E10: 0.09002200514 | F10: 0.07829593867 | G10: 0.06647192687 | H10: 0.05533961579 | I10: 0.046335008 | J10: 0.02789612859 | K10: -0.01071245782 | L10: -0.02855631523 | M10: -0.02630645595 | N10: -0.04388773069 | O10: -0.05954616517 | P10: -0.07148674875 | Q10: -0.07182940096 | R10: -0.08325422555 | S10: -0.09551553428 | T10: -0.1057134569 | U10: -0.1129586026 | V10: -0.119200401 | W10: -0.1244077832 | X10: -0.1308757365 | Y10: -0.1317741573 | Z10: -0.1323009282 | AA10: -0.1323531866 | AB10: -0.1312466711 | AC10: -0.1289208531 | AD10: -0.1251351684 | AE10: -0.1198195741 | AF10: -0.1130485535 | AG10: -0.103993386 | AH10: -0.08937878162 | AI10: -0.07546479255 | AJ10: -0.06006675214 | AK10: -0.04049615934 | AL10: -0.04649788141 | AM10: -0.1230529845 | AN10: -0.1886709034 | AO10: -0.2739940882 | AP10: -0.4742404521 | AQ10: -0.5325801969 | AR10: -0.8112574816
A11: 0.9000077248 | D11: 0.1091109961 | E11: 0.09589965641 | F11: 0.08200778812 | G11: 0.06798313558 | H11: 0.05446562171 | I11: 0.04251486063 | J11: 0.0230390504 | K11: -0.01721579395 | L11: -0.03471718356 | M11: -0.05107372627 | N11: -0.05282898992 | O11: -0.0728649497 | P11: -0.08691035956 | Q11: -0.08730984479 | R11: -0.1007757857 | S11: -0.1148199216 | T11: -0.1269164383 | U11: -0.1362651438 | V11: -0.1446329951 | W11: -0.1519878507 | X11: -0.1628406793 | Y11: -0.1648426801 | Z11: -0.1664498001 | AA11: -0.1686636657 | AB11: -0.1696531624 | AC11: -0.1693343669 | AD11: -0.1674443632 | AE11: -0.1638510823 | AF11: -0.1585356295 | AG11: -0.1504876912 | AH11: -0.1351842135 | AI11: -0.1196347699 | AJ11: -0.100290522 | AK11: -0.07213538885 | AL11: -0.05592167377 | AM11: -0.1287024617 | AN11: -0.1966200024 | AO11: -0.2831422985 | AP11: -0.4820247293 | AQ11: -0.5393862724 | AR11: -0.8174151182
A12: 0.8747537732 | D12: 0.1165211052 | E12: 0.1013728678 | F12: 0.08557711542 | G12: 0.06962659955 | H12: 0.0540760234 | I12: 0.03979048505 | J12: 0.01905838586 | K12: -0.02348940447 | L12: -0.04186259583 | M12: -0.0615269281 | N12: -0.06151179224 | O12: -0.08529523015 | P12: -0.1014527678 | Q12: -0.1019082665 | R12: -0.1173550189 | S12: -0.1331583411 | T12: -0.1470934898 | U12: -0.1584315449 | V12: -0.1688085496 | W12: -0.1781932116 | X12: -0.1932004541 | Y12: -0.1962547153 | Z12: -0.1988960207 | AA12: -0.2031975389 | AB12: -0.2062472552 | AC12: -0.2079485208 | AD12: -0.2080293745 | AE12: -0.2063215822 | AF12: -0.2027450055 | AG12: -0.1961814463 | AH12: -0.181284681 | AI12: -0.1653412282 | AJ12: -0.1436970532 | AK12: -0.1092017815 | AL12: -0.07610750943 | AM12: -0.133451879 | AN12: -0.2047889382 | AO12: -0.2927704453 | AP12: -0.4902012348 | AQ12: -0.5465133786 | AR12: -0.8238258958
A13: 0.84918648 | D13: 0.1156555638 | E13: 0.09866062552 | F13: 0.08104919642 | G13: 0.06328511238 | H13: 0.04588075355 | I13: 0.0296058394 | J13: 0.007528563961 | K13: -0.03744122386 | L13: -0.05681460723 | M13: -0.07577272505 | N13: -0.09421811253 | O13: -0.1091382951 | P13: -0.1268343627 | Q13: -0.1273108423 | R13: -0.1438687146 | S13: -0.1610623747 | T13: -0.1765457094 | U13: -0.1896104813 | V13: -0.2017399967 | W13: -0.2128669918 | X13: -0.2311745733 | Y13: -0.2350737602 | Z13: -0.2385364175 | AA13: -0.2444819808 | AB13: -0.2491592467 | AC13: -0.2524719536 | AD13: -0.2541398704 | AE13: -0.253963232 | AF13: -0.2518223226 | AG13: -0.2464888841 | AH13: -0.2317851037 | AI13: -0.2156616449 | AJ13: -0.1923488528 | AK13: -0.1528309137 | AL13: -0.1049274057 | AM13: -0.1350552291 | AN13: -0.2131532729 | AO13: -0.3029424548 | AP13: -0.4988224804 | AQ13: -0.5540266633 | AR13: -0.8305206299
A14: 0.8232735991 | D14: 0.1346829087 | E14: 0.1160780564 | F14: 0.09685054421 | G14: 0.0774223879 | H14: 0.05825013295 | I14: 0.03999665007 | J14: 0.01648020186 | K14: -0.03151450679 | L14: -0.05266610533 | M14: -0.07306823134 | N14: -0.09649402648 | O14: -0.1044383273 | P14: -0.1255009621 | Q14: -0.1260756403 | R14: -0.1456009448 | S14: -0.1650448143 | T14: -0.1827035397 | U14: -0.197954163 | V14: -0.2122802436 | W14: -0.2256601304 | X14: -0.2488924712 | Y14: -0.2540382445 | Z14: -0.258741498 | AA14: -0.2672330141 | AB14: -0.2744717896 | AC14: -0.2803498209 | AD14: -0.2845973074 | AE14: -0.2870216668 | AF14: -0.287486881 | AG14: -0.2848152518 | AH14: -0.2730022669 | AI14: -0.2590821981 | AJ14: -0.2370671183 | AK14: -0.1966185123 | AL14: -0.1396387815 | AM14: -0.1278577 | AN14: -0.2218471617 | AO14: -0.313801229 | AP14: -0.5080063343 | AQ14: -0.5619447827 | AR14: -0.8375394344
A15: 0.7974666953 | D15: 0.1316901445 | E15: 0.1113604382 | F15: 0.09041783959 | G15: 0.06927283853 | H15: 0.04836712033 | I15: 0.02833065391 | J15: 0.003321307478 | K15: -0.0474870652 | L15: -0.06993897259 | M15: -0.09135531634 | N15: -0.1138972193 | O15: -0.1305415183 | P15: -0.1537356377 | Q15: -0.1543197781 | R15: -0.174678117 | S15: -0.1954542845 | T15: -0.2146219462 | U15: -0.2315458804 | V15: -0.2475749105 | W15: -0.2626374662 | X15: -0.2889437973 | Y15: -0.2948808372 | Z15: -0.3003489077 | AA15: -0.3103660643 | AB15: -0.3191237152 | AC15: -0.3265221417 | AD15: -0.3322854638 | AE15: -0.3362008333 | AF15: -0.3381194472 | AG15: -0.3367824852 | AH15: -0.3255926371 | AI15: -0.3123542964 | AJ15: -0.2903492451 | AK15: -0.2482445836 | AL15: -0.1829737425 | AM15: -0.1416815817 | AN15: -0.2303881496 | AO15: -0.3250936568 | AP15: -0.5175623298 | AQ15: -0.5701383948 | AR15: -0.8447734118
A16: 0.7717891932 | D16: 0.1464084536 | E16: 0.1246208772 | F16: 0.1022042334 | G16: 0.07954596728 | H16: 0.05705941841 | I16: 0.03532426059 | J16: 0.008888824843 | K16: -0.04488115758 | L16: -0.0689958334 | M16: -0.09212103486 | N16: -0.1157735288 | O16: -0.1299698204 | P16: -0.1577278227 | Q16: -0.1583919227 | R16: -0.1812188476 | S16: -0.2040260583 | T16: -0.2251927704 | U16: -0.2441365421 | V16: -0.2622011006 | W16: -0.279337734 | X16: -0.3100378215 | Y16: -0.3170911968 | Z16: -0.3236652911 | AA16: -0.3359446526 | AB16: -0.3469823003 | AC16: -0.3566742539 | AD16: -0.3647514582 | AE16: -0.3710088134 | AF16: -0.375295788 | AG16: -0.376403302 | AH16: -0.367952615 | AI16: -0.3571965098 | AJ16: -0.3374343812 | AK16: -0.2968848348 | AL16: -0.2287833691 | AM16: -0.1674002707 | AN16: -0.2388562858 | AO16: -0.3369632065 | AP16: -0.5275903344 | AQ16: -0.578651607 | AR16: -0.8522498012
A17: 0.7463577986 | D17: 0.1563682705 | E17: 0.1331381649 | F17: 0.1092605367 | G17: 0.0851078257 | H17: 0.06107572094 | I17: 0.03771261871 | J17: 0.009834272787 | K17: -0.04688784108 | L17: -0.07258642465 | M17: -0.0973233059 | N17: -0.1223704591 | O17: -0.1359554231 | P17: -0.1675948352 | Q17: -0.1683188379 | R17: -0.1931074262 | S17: -0.2177319527 | T17: -0.2407448739 | U17: -0.2615902126 | V17: -0.2815790772 | W17: -0.3006634414 | X17: -0.3353491426 | Y17: -0.3434200287 | Z17: -0.3509968817 | AA17: -0.3653173447 | AB17: -0.3784088194 | AC17: -0.3901679218 | AD17: -0.4003302753 | AE17: -0.4086913764 | AF17: -0.4150945544 | AG17: -0.4183638096 | AH17: -0.4121956229 | AI17: -0.403659761 | AJ17: -0.386036247 | AK17: -0.3473808765 | AL17: -0.2784776688 | AM17: -0.2019017637 | AN17: -0.2465769351 | AO17: -0.3493267298 | AP17: -0.5380501151 | AQ17: -0.5874468088 | AR17: -0.8599231243
A18: 0.7207689285 | D18: 0.1601046324 | E18: 0.1353014261 | F18: 0.1098281592 | G18: 0.08404966444 | H18: 0.05835299566 | I18: 0.03326989338 | J18: 0.003786395537 | K18: -0.05617307872 | L18: -0.08352642506 | M18: -0.1099080294 | N18: -0.1364564002 | O18: -0.1598816961 | P18: -0.1877065599 | Q18: -0.1884679645 | R18: -0.2146438211 | S18: -0.2409064025 | T18: -0.2656763196 | U18: -0.2883910537 | V18: -0.3102809191 | W18: -0.331265837 | X18: -0.3695944846 | Y18: -0.3786001205 | Z18: -0.3870878518 | AA18: -0.4032408893 | AB18: -0.4181650877 | AC18: -0.4317619205 | AD18: -0.4437682927 | AE18: -0.4539723992 | AF18: -0.4622147083 | AG18: -0.4672799408 | AH18: -0.4625941217 | AI18: -0.4557349384 | AJ18: -0.4397430122 | AK18: -0.4026694298 | AL18: -0.3337835073 | AM18: -0.2457323819 | AN18: -0.2518798411 | AO18: -0.3624082804 | AP18: -0.549151659 | AQ18: -0.5966892242 | AR18: -0.867947042
A19: 0.6951841712 | D19: 0.1789832711 | E19: 0.1529591084 | F19: 0.126230523 | G19: 0.09914691001 | H19: 0.07207811624 | I19: 0.04552859068 | J19: 0.01470725145 | K19: -0.04809214175 | L19: -0.07704337686 | M19: -0.1051309928 | N19: -0.1334126741 | O19: -0.16499345 | P19: -0.1853594482 | Q19: -0.1862300187 | R19: -0.2151609361 | S19: -0.2435521632 | T19: -0.2703844309 | U19: -0.2951488793 | V19: -0.3191068769 | W19: -0.3422116339 | X19: -0.3850989938 | Y19: -0.3952655196 | Z19: -0.4049075246 | AA19: -0.4234317541 | AB19: -0.44075948 | AC19: -0.4567810595 | AD19: -0.4712411761 | AE19: -0.4839437008 | AF19: -0.4947374463 | AG19: -0.5024759769 | AH19: -0.5010426641 | AI19: -0.497246176 | AJ19: -0.4845161736 | AK19: -0.4511615932 | AL19: -0.3859676421 | AM19: -0.2939574122 | AN19: -0.2488058507 | AO19: -0.3762729764 | AP19: -0.5609449148 | AQ19: -0.606398046 | AR19: -0.8763154745
A20: 0.6697306037 | D20: 0.1867076457 | E20: 0.1592276394 | F20: 0.1310070604 | G20: 0.1023892909 | H20: 0.07373794168 | I20: 0.04554631189 | J20: 0.01314135175 | K20: -0.05291505903 | L20: -0.08356095105 | M20: -0.1133722961 | N20: -0.14335078 | O20: -0.1740267873 | P20: -0.2001592964 | Q20: -0.2011096776 | R20: -0.2317286283 | S20: -0.2618806362 | T20: -0.2905752957 | U20: -0.3172962666 | V20: -0.3432454467 | W20: -0.3683521152 | X20: -0.4151708186 | Y20: -0.4263476133 | Z20: -0.4369784892 | AA20: -0.4575026333 | AB20: -0.4768436849 | AC20: -0.4948947728 | AD20: -0.5113956332 | AE20: -0.5261416435 | AF20: -0.5389812589 | AG20: -0.5487474203 | AH20: -0.5491666198 | AI20: -0.5474074483 | AJ20: -0.5368070602 | AK20: -0.5059017539 | AL20: -0.4434103072 | AM20: -0.3491490483 | AN20: -0.2590685189 | AO20: -0.3907763958 | AP20: -0.5733805895 | AQ20: -0.6165266037 | AR20: -0.8849731684
A21: 0.6442583799 | D21: 0.2004656345 | E21: 0.1716707796 | F21: 0.1420912892 | G21: 0.1120625138 | H21: 0.08193975687 | I21: 0.05220308527 | J21: 0.01830399409 | K21: -0.05088696629 | L21: -0.08321349323 | M21: -0.1147724614 | N21: -0.1465246677 | O21: -0.1782121956 | P21: -0.2063767165 | Q21: -0.2074959576 | R21: -0.2405014336 | S21: -0.2726325095 | T21: -0.3033352792 | U21: -0.3321089447 | V21: -0.3601455688 | W21: -0.3873715103 | X21: -0.4385300577 | Y21: -0.4508188665 | Z21: -0.4625454247 | AA21: -0.4853007197 | AB21: -0.5068917274 | AC21: -0.5272119045 | AD21: -0.5460011363 | AE21: -0.5630551577 | AF21: -0.5782231092 | AG21: -0.5903530121 | AH21: -0.5932511687 | AI21: -0.5940175056 | AJ21: -0.5861003399 | AK21: -0.5583257675 | AL21: -0.4997754395 | AM21: -0.407138139 | AN21: -0.2904131413 | AO21: -0.4061225057 | AP21: -0.5866485834 | AQ21: -0.6271988153 | AR21: -0.8940343261
A22: 0.6185579896 | D22: 0.2175363153 | E22: 0.1875209063 | F22: 0.1566714495 | G22: 0.1253150254 | H22: 0.09379860014 | I22: 0.06258959323 | J22: 0.02725766972 | K22: -0.04497028142 | L22: -0.07894416898 | M22: -0.1122290641 | N22: -0.1457529068 | O22: -0.1789823622 | P22: -0.2075501382 | Q22: -0.2090018392 | R22: -0.2449135035 | S22: -0.2791006863 | T22: -0.3118657768 | U22: -0.3427371979 | V22: -0.3729092181 | W22: -0.4023143649 | X22: -0.4580023289 | Y22: -0.4714529812 | Z22: -0.4843282104 | AA22: -0.509431839 | AB22: -0.5333988667 | AC22: -0.5561195612 | AD22: -0.5773354769 | AE22: -0.5968462825 | AF22: -0.6145029068 | AG22: -0.6291832924 | AH22: -0.634889245 | AI22: -0.638448298 | AJ22: -0.6335143447 | AK22: -0.6092166901 | AL22: -0.5552399158 | AM22: -0.4668051004 | AN22: -0.3333567083 | AO22: -0.4224857092 | AP22: -0.6009687185 | AQ22: -0.6385617852 | AR22: -0.9036026001
A23: 0.5930799246 | D23: 0.232656911 | E23: 0.2013700902 | F23: 0.1691938639 | G23: 0.1364496052 | H23: 0.1034788489 | I23: 0.07074075192 | J23: 0.03389022499 | K23: -0.04154945537 | L23: -0.077239573 | M23: -0.1123078167 | N23: -0.1476562172 | O23: -0.1826268882 | P23: -0.2115302384 | Q23: -0.2135481685 | R23: -0.252821058 | S23: -0.2890127599 | T23: -0.3238372803 | U23: -0.3568376303 | V23: -0.3891819119 | W23: -0.420794338 | X23: -0.480964154 | Y23: -0.4955683947 | Z23: -0.5095798373 | AA23: -0.5369977355 | AB23: -0.5633042455 | AC23: -0.5883885026 | AD23: -0.6119900942 | AE23: -0.6339063644 | AF23: -0.6539874673 | AG23: -0.6711105704 | AH23: -0.6792801619 | AI23: -0.6853913665 | AJ23: -0.6831466556 | AK23: -0.6619283557 | AL23: -0.612057209 | AM23: -0.5283641815 | AN23: -0.3858094513 | AO23: -0.4395682216 | AP23: -0.6161843538 | AQ23: -0.6504679322 | AR23: -0.9135429859
A24: 0.5676053166 | D24: 0.2508348823 | E24: 0.2183690369 | F24: 0.1849526018 | G24: 0.1509008408 | H24: 0.1165495813 | I24: 0.08234973997 | J24: 0.04403870553 | K24: -0.0345232375 | L24: -0.07190109789 | M24: -0.108735688 | N24: -0.1459069103 | O24: -0.1826990694 | P24: -0.2111237347 | Q24: -0.2129932195 | R24: -0.2568494976 | S24: -0.295137018 | T24: -0.3320881426 | U24: -0.3672671318 | V24: -0.4018355608 | W24: -0.4357172847 | X24: -0.5005638003 | Y24: -0.516372323 | Z24: -0.5315731764 | AA24: -0.5614207983 | AB24: -0.5901888013 | AC24: -0.6177630424 | AD24: -0.643881917 | AE24: -0.6683425903 | AF24: -0.690995276 | AG24: -0.7107279897 | AH24: -0.7216328979 | AI24: -0.7305115461 | AJ24: -0.7311784625 | AK24: -0.7132458091 | AL24: -0.6677049994 | AM24: -0.589720428 | AN24: -0.445312053 | AO24: -0.4575520158 | AP24: -0.6325565577 | AQ24: -0.6630933881 | AR24: -0.923982203
A25: 0.5421131253 | D25: 0.2717256546 | E25: 0.2381800264 | F25: 0.2036172152 | G25: 0.1683460325 | H25: 0.1326964647 | I25: 0.09711132199 | J25: 0.05740782246 | K25: -0.02416335791 | L25: -0.06318574399 | M25: -0.1017524227 | N25: -0.1407237202 | O25: -0.179358691 | P25: -0.2112790793 | Q25: -0.2093334198 | R25: -0.2571562529 | S25: -0.2976050079 | T25: -0.3367272913 | U25: -0.3741179109 | V25: -0.4109471738 | W25: -0.4471447468 | X25: -0.5168240666 | Y25: -0.5338785648 | Z25: -0.5503128767 | AA25: -0.582687676 | AB25: -0.6140217185 | AC25: -0.6441959739 | AD25: -0.6729477048 | AE25: -0.7000764012 | AF25: -0.7254325747 | AG25: -0.747926414 | AH25: -0.7618203759 | AI25: -0.7736671567 | AJ25: -0.7774515748 | AK25: -0.7629850507 | AL25: -0.7219157815 | AM25: -0.6501570344 | AN25: -0.5093134046 | AO25: -0.4764284492 | AP25: -0.6502506733 | AQ25: -0.6765349507 | AR25: -0.9349805117
A26: 0.5163940191 | D26: 0.2922013998 | E26: 0.2575181127 | F26: 0.2217422426 | G26: 0.185177654 | H26: 0.1481502205 | I26: 0.1110972315 | J26: 0.06989611685 | K26: -0.01491273753 | L26: -0.05568945035 | M26: -0.09609573334 | N26: -0.1369753629 | O26: -0.1775725633 | P26: -0.2200302631 | Q26: -0.2205583304 | R26: -0.2597634196 | S26: -0.302400291 | T26: -0.3437606692 | U26: -0.3834617138 | V26: -0.4226612151 | W26: -0.4612815976 | X26: -0.5359341502 | Y26: -0.5542753339 | Z26: -0.5719804168 | AA26: -0.6069527864 | AB26: -0.6409240365 | AC26: -0.6737720966 | AD26: -0.7052307129 | AE26: -0.7350960374 | AF26: -0.7632167935 | AG26: -0.7885009646 | AH26: -0.8052278757 | AI26: -0.8199696541 | AJ26: -0.826752305 | AK26: -0.8155337572 | AL26: -0.7785442472 | AM26: -0.7125893235 | AN26: -0.5778267384 | AO26: -0.496191889 | AP26: -0.669593513 | AQ26: -0.6910033822 | AR26: -0.9466853738
A27: 0.4908468127 | D27: 0.3185822666 | E27: 0.2830350101 | F27: 0.2463173717 | G27: 0.2087258399 | H27: 0.1705795377 | I27: 0.1323072165 | J27: 0.08986481279 | K27: 0.002297175117 | L27: -0.04003045335 | M27: -0.08209702373 | N27: -0.1247311756 | O27: -0.1671817452 | P27: -0.2092235982 | Q27: -0.2107280493 | R27: -0.252076149 | S27: -0.2970829606 | T27: -0.340749979 | U27: -0.3827573955 | V27: -0.4243142009 | W27: -0.4653697014 | X27: -0.5452625751 | Y27: -0.5649548769 | Z27: -0.5840049386 | AA27: -0.6217494607 | AB27: -0.6585468054 | AC27: -0.6942643523 | AD27: -0.7286362648 | AE27: -0.7614673376 | AF27: -0.7926077247 | AG27: -0.8210186958 | AH27: -0.8413708806 | AI27: -0.8595635891 | AJ27: -0.8699501753 | AK27: -0.8626117706 | AL27: -0.8303396106 | AM27: -0.7709576488 | AN27: -0.6454361677 | AO27: -0.5162582994 | AP27: -0.6905264854 | AQ27: -0.7064013481 | AR27: -0.9589962363
A28: 0.4652642012 | D28: 0.3366468251 | E28: 0.299806267 | F28: 0.2616995871 | G28: 0.222621277 | H28: 0.1828899235 | I28: 0.1429340243 | J28: 0.09872669727 | K28: 0.007339162286 | L28: -0.03702753782 | M28: -0.08121708035 | N28: -0.1260480434 | O28: -0.170755893 | P28: -0.2145100236 | Q28: -0.215781644 | R28: -0.2614028454 | S28: -0.3087574244 | T28: -0.3548982143 | U28: -0.3995091617 | V28: -0.4437502921 | W28: -0.4875385761 | X28: -0.5728775263 | Y28: -0.5939853191 | Z28: -0.614426136 | AA28: -0.6549989581 | AB28: -0.6946619749 | AC28: -0.7332844138 | AD28: -0.7705906034 | AE28: -0.8063701987 | AF28: -0.8404664397 | AG28: -0.8717817664 | AH28: -0.8946343064 | AI28: -0.9155656099 | AJ28: -0.9286676049 | AK28: -0.9240481257 | AL28: -0.8948940039 | AM28: -0.8398555517 | AN28: -0.7210157514 | AO28: -0.5347808003 | AP28: -0.7133761048 | AQ28: -0.7229171991 | AR28: -0.9720465541
A29: 0.4394922853 | D29: 0.3642217219 | E29: 0.3264996409 | F29: 0.2874130011 | G29: 0.2472500056 | H29: 0.2063242793 | I29: 0.165058583 | J29: 0.1194801033 | K29: 0.02501257509 | L29: -0.02107980847 | M29: -0.06711538881 | N29: -0.1139020324 | O29: -0.1606811732 | P29: -0.206415236 | Q29: -0.207682699 | R29: -0.2551048994 | S29: -0.3051045835 | T29: -0.3538203239 | U29: -0.4010232687 | V29: -0.4479225278 | W29: -0.4944546819 | X29: -0.5856277347 | Y29: -0.6082450747 | Z29: -0.6301859617 | AA29: -0.673846364 | AB29: -0.7166582346 | AC29: -0.7584804296 | AD29: -0.7990345955 | AE29: -0.8381137848 | AF29: -0.8755599856 | AG29: -0.9103056192 | AH29: -0.9369208813 | AI29: -0.9614941478 | AJ29: -0.9783190489 | AK29: -0.9775242209 | AL29: -0.9527100325 | AM29: -0.9034525752 | AN29: -0.7939650416 | AO29: -0.5450934172 | AP29: -0.7387188077 | AQ29: -0.7408915758 | AR29: -0.9860587716
A30: 0.4137355983 | D30: 0.3925504088 | E30: 0.3539867401 | F30: 0.3139502704 | G30: 0.2727232277 | H30: 0.2306144238 | I30: 0.1880416274 | J30: 0.1410774738 | K30: 0.04346583784 | L30: -0.004397297278 | M30: -0.05233421549 | N30: -0.101145111 | O30: -0.1500789076 | P30: -0.197989434 | Q30: -0.1993056983 | R30: -0.2479375452 | S30: -0.300727874 | T30: -0.3521318138 | U30: -0.402038306 | V30: -0.451713711 | W30: -0.5011163354 | X30: -0.5984092951 | Y30: -0.6226128936 | Z30: -0.6461314559 | AA30: -0.6930428147 | AB30: -0.7391744256 | AC30: -0.7843732834 | AD30: -0.8283571601 | AE30: -0.8709226847 | AF30: -0.9119098186 | AG30: -0.9502824545 | AH30: -0.9808814526 | AI30: -1.009295821 | AJ30: -1.030024171 | AK30: -1.033166766 | AL30: -1.012672663 | AM30: -0.9689803123 | AN30: -0.8684823513 | AO30: -0.5722076297 | AP30: -0.7666899562 | AQ30: -0.7603771687 | AR30: -1.001022577
A31: 0.3874475062 | D31: 0.4158670604 | E31: 0.3760304451 | F31: 0.3345838487 | G31: 0.2918074429 | H31: 0.2480103523 | I31: 0.2036120594 | J31: 0.1546805352 | K31: 0.05270421505 | L31: 0.002474721754 | M31: -0.04795162007 | N31: -0.09937043488 | O31: -0.151018247 | P31: -0.2016502321 | Q31: -0.203039214 | R31: -0.2554194927 | S31: -0.3113421202 | T31: -0.3658585548 | U31: -0.4190102816 | V31: -0.4720402658 | W31: -0.5248779058 | X31: -0.6291202903 | Y31: -0.6551353335 | Z31: -0.6804394126 | AA31: -0.7309955359 | AB31: -0.7808327675 | AC31: -0.8297969103 | AD31: -0.8775922656 | AE31: -0.9239977598 | AF31: -0.9688436389 | AG31: -1.01102376 | AH31: -1.044976234 | AI31: -1.076964378 | AJ31: -1.101163864 | AK31: -1.107556224 | AL31: -1.090325356 | AM31: -1.050622344 | AN31: -0.9564211369 | AO31: -0.6360237002 | AP31: -0.7983677983 | AQ31: -0.7820243835 | AR31: -1.01738584
A32: 0.3615064025 | D32: 0.4484139979 | E32: 0.4078670144 | F32: 0.3655732274 | G32: 0.3218057752 | H32: 0.2768682837 | I32: 0.2311750799 | J32: 0.1808307469 | K32: 0.07554292679 | L32: 0.02340524271 | M32: -0.0290995203 | N32: -0.08276566118 | O32: -0.136842221 | P32: -0.1900291145 | Q32: -0.1914916486 | R32: -0.2438857406 | S32: -0.3035588861 | T32: -0.3612647653 | U32: -0.4175591469 | V32: -0.4738109708 | W32: -0.5299965143 | X32: -0.6415093541 | Y32: -0.6694078445 | Z32: -0.6965910792 | AA32: -0.7510324121 | AB32: -0.8048440218 | AC32: -0.8578522801 | AD32: -0.9097573757 | AE32: -0.9603470564 | AF32: -1.009449244 | AG32: -1.056014061 | AH32: -1.094936728 | AI32: -1.131594419 | AJ32: -1.160491705 | AK32: -1.171468377 | AL32: -1.158952236 | AM32: -1.124876618 | AN32: -1.039061785 | AO32: -0.7183198333 | AP32: -0.8334625363 | AQ32: -0.8055284619 | AR32: -1.034834623
A33: 0.3352966905 | D33: 0.472530961 | E33: 0.4305506945 | F33: 0.3866398931 | G33: 0.34107095 | H33: 0.2941498458 | I33: 0.2462966591 | J33: 0.1935761571 | K33: 0.08296194673 | L33: 0.02793408744 | M33: -0.02761585079 | N33: -0.08448261768 | O33: -0.1418919116 | P33: -0.1984433383 | Q33: -0.2000010312 | R33: -0.256301105 | S33: -0.3208097219 | T33: -0.3823676407 | U33: -0.4426931739 | V33: -0.5031259656 | W33: -0.5635973811 | X33: -0.6837390661 | Y33: -0.7138940096 | Z33: -0.7432997823 | AA33: -0.8022757769 | AB33: -0.8607004285 | AC33: -0.918400228 | AD33: -0.975055635 | AE33: -1.030426383 | AF33: -1.084325194 | AG33: -1.135584235 | AH33: -1.1783849 | AI33: -1.219269156 | AJ33: -1.252163053 | AK33: -1.26664865 | AL33: -1.257269144 | AM33: -1.226577282 | AN33: -1.145332694 | AO33: -0.8244988918 | AP33: -0.8733198643 | AQ33: -0.8317634463 | AR33: -1.053914309
A34: 0.309594214 | D34: 0.5071997046 | E34: 0.4645065367 | F34: 0.4196995199 | G34: 0.373044014 | H34: 0.3248414993 | I34: 0.2755092084 | J34: 0.2211230546 | K34: 0.10653501 | L34: 0.04920975491 | M34: -0.008850032464 | N34: -0.06844361871 | O34: -0.1288032681 | P34: -0.1884672344 | Q34: -0.1901158988 | R34: -0.2450172156 | S34: -0.3158910871 | T34: -0.3813607097 | U34: -0.4455462992 | V34: -0.5099490285 | W34: -0.5745498538 | X34: -0.7036132812 | Y34: -0.7360876203 | Z34: -0.7678066492 | AA34: -0.8315643072 | AB34: -0.8948840499 | AC34: -0.9575692415 | AD34: -1.019291759 | AE34: -1.079816699 | AF34: -1.138951182 | AG34: -1.19556725 | AH34: -1.244224429 | AI34: -1.290662527 | AJ34: -1.329050779 | AK34: -1.348685145 | AL34: -1.344242215 | AM34: -1.318999052 | AN34: -1.244910479 | AO34: -0.9391514659 | AP34: -0.9178637862 | AQ34: -0.8606975675 | AR34: -1.074388504
A35: 0.2840195 | D35: 0.5361112952 | E35: 0.4921142459 | F35: 0.4457648396 | G35: 0.3973267376 | H35: 0.3471030891 | I35: 0.2955172956 | J35: 0.2385916859 | K35: 0.1181551889 | L35: 0.05759266391 | M35: -0.003920027986 | N35: -0.06718814373 | O35: -0.1314191669 | P35: -0.1950422823 | Q35: -0.196803987 | R35: -0.2551189959 | S35: -0.331998229 | T35: -0.4021601379 | U35: -0.4712027013 | V35: -0.540651679 | W35: -0.6104570627 | X35: -0.7501939535 | Y35: -0.7854644656 | Z35: -0.8199478984 | AA35: -0.8893693686 | AB35: -0.9584689736 | AC35: -1.027044177 | AD35: -1.094743729 | AE35: -1.161305547 | AF35: -1.226519465 | AG35: -1.289142609 | AH35: -1.343067288 | AI35: -1.395043969 | AJ35: -1.438678145 | AK35: -1.462858558 | AL35: -1.462294459 | AM35: -1.440898418 | AN35: -1.371091247 | AO35: -1.075171471 | AP35: -0.9682995677 | AQ35: -0.893292129 | AR35: -1.096741199
A36: 0.2585520148 | D36: 0.5714794993 | E36: 0.5265577435 | F36: 0.4790195227 | G36: 0.4291190803 | H36: 0.37715891 | I36: 0.3235659897 | J36: 0.2643252611 | K36: 0.1383610368 | L36: 0.07464314997 | M36: 0.009705997072 | N36: -0.05726473033 | O36: -0.1254619211 | P36: -0.1932131946 | Q36: -0.1950939298 | R36: -0.2683448792 | S36: -0.3390393853 | T36: -0.414367348 | U36: -0.4886240959 | V36: -0.5634813905 | W36: -0.6389011145 | X36: -0.7904609442 | Y36: -0.8288266063 | Z36: -0.8663851023 | AA36: -0.9421406388 | AB36: -1.017723799 | AC36: -1.092914224 | AD36: -1.167340755 | AE36: -1.24072659 | AF36: -1.312846422 | AG36: -1.382403612 | AH36: -1.443062067 | AI36: -1.50176692 | AJ36: -1.551877379 | AK36: -1.581794262 | AL36: -1.586239219 | AM36: -1.569838047 | AN36: -1.505418897 | AO36: -1.223039031 | AP36: -1.026090384 | AQ36: -0.9309140444 | AR36: -1.121449113
A37: 0.2333160043 | D37: 0.610122323 | E37: 0.5644634962 | F37: 0.5158661008 | G37: 0.4645923674 | H37: 0.4109417796 | I37: 0.3553391993 | J37: 0.2937295437 | K37: 0.1619735211 | L37: 0.09489662945 | M37: 0.02628282458 | N37: -0.04469343275 | O37: -0.1172079965 | P37: -0.1894762218 | Q37: -0.1914873421 | R37: -0.2674660981 | S37: -0.3449677229 | T37: -0.4261688888 | U37: -0.5062440634 | V37: -0.5871548057 | W37: -0.6688768864 | X37: -0.8337615132 | Y37: -0.8756261468 | Z37: -0.9166653752 | AA37: -0.9996019006 | AB37: -1.08254981 | AC37: -1.165267706 | AD37: -1.247361064 | AE37: -1.328536749 | AF37: -1.408552408 | AG37: -1.486051202 | AH37: -1.554458737 | AI37: -1.620899677 | AJ37: -1.678458691 | AK37: -1.714943051 | AL37: -1.725041032 | AM37: -1.714142203 | AN37: -1.655230522 | AO37: -1.385419011 | AP37: -1.091947317 | AQ37: -0.9752043486 | AR37: -1.148905396
A38: 0.2086730003 | D38: 0.6514285207 | E38: 0.6052319407 | F38: 0.5557650924 | G38: 0.5032354593 | H38: 0.4479337037 | I38: 0.3903135657 | J38: 0.3262605965 | K38: 0.188354671 | L38: 0.117648229 | M38: 0.04502541572 | N38: -0.03035299107 | O38: -0.1076409742 | P38: -0.1849261969 | Q38: -0.1870821714 | R38: -0.2681366205 | S38: -0.3509373665 | T38: -0.4393350184 | U38: -0.5259867907 | V38: -0.613763392 | W38: -0.702650249 | X38: -0.882705152 | Y38: -0.9285655618 | Z38: -0.973582387 | AA38: -1.064733624 | AB38: -1.156119227 | AC38: -1.247475266 | AD38: -1.338379264 | AE38: -1.428517342 | AF38: -1.517626166 | AG38: -1.604269385 | AH38: -1.681529999 | AI38: -1.756848335 | AJ38: -1.822933078 | AK38: -1.866868854 | AL38: -1.883255601 | AM38: -1.87830317 | AN38: -1.824840069 | AO38: -1.565047145 | AP38: -1.167658329 | AQ38: -1.028075576 | AR38: -1.1793015
A39: 0.183832407 | D39: 0.6984735727 | E39: 0.652297318 | F39: 0.6023237705 | G39: 0.5488466024 | H39: 0.4921835959 | I39: 0.4327024817 | J39: 0.3662651181 | K39: 0.2220593244 | L39: 0.1474987119 | M39: 0.07054229081 | N39: -0.009667103179 | O39: -0.09226453304 | P39: -0.1752012819 | Q39: -0.1775212735 | R39: -0.2648147047 | S39: -0.3504464924 | T39: -0.4488244653 | U39: -0.5430324078 | V39: -0.6387215853 | W39: -0.7359054089 | X39: -0.933762908 | Y39: -0.9843223095 | Z39: -1.034029484 | AA39: -1.134895086 | AB39: -1.236278772 | AC39: -1.337883711 | AD39: -1.439256907 | AE39: -1.540068865 | AF39: -1.640033841 | AG39: -1.737666607 | AH39: -1.825976253 | AI39: -1.912165403 | AJ39: -1.988734365 | AK39: -2.041855574 | AL39: -2.065979004 | AM39: -2.068267107 | AN39: -2.021110773 | AO39: -1.770069003 | AP39: -1.264420986 | AQ39: -1.094809651 | AR39: -1.214551568
A40: 0.1595530957 | D40: 0.7466518283 | E40: 0.7005197406 | F40: 0.6501608491 | G40: 0.5956767201 | H40: 0.5372729301 | I40: 0.4755317569 | J40: 0.4061960578 | K40: 0.254090935 | L40: 0.1747000664 | M40: 0.09231143445 | N40: 0.006044195965 | O40: -0.08320120722 | P40: -0.1731921583 | Q40: -0.1757158935 | R40: -0.2708418369 | S40: -0.3618403077 | T40: -0.4718988836 | U40: -0.5756414533 | V40: -0.6813454628 | W40: -0.7890336514 | X40: -1.009204268 | Y40: -1.065678358 | Z40: -1.121280193 | AA40: -1.234337926 | AB40: -1.348277688 | AC40: -1.462776065 | AD40: -1.577335 | AE40: -1.691586614 | AF40: -1.80521059 | AG40: -1.916565776 | AH40: -2.017891407 | AI40: -2.117241859 | AJ40: -2.206349611 | AK40: -2.270187616 | AL40: -2.302943945 | AM40: -2.312872171 | AN40: -2.271296263 | AO40: -2.022967577 | AP40: -1.375188112 | AQ40: -1.177478075 | AR40: -1.254811764
A41: 0.1353884041 | D41: 0.8002098203 | E41: 0.7551351786 | F41: 0.7048499584 | G41: 0.6496642232 | H41: 0.5899968743 | I41: 0.5260509253 | J41: 0.4534908533 | K41: 0.2924782336 | L41: 0.2074234337 | M41: 0.1185580567 | N41: 0.02495131269 | O41: -0.07243464142 | P41: -0.1711356491 | Q41: -0.1739116311 | R41: -0.2788018584 | S41: -0.3908416629 | T41: -0.5014766455 | U41: -0.617790699 | V41: -0.7362478971 | W41: -0.8573490381 | X41: -1.106121182 | Y41: -1.170205116 | Z41: -1.233396888 | AA41: -1.362170339 | AB41: -1.492325902 | AC41: -1.623512745 | AD41: -1.755173206 | AE41: -1.886885643 | AF41: -2.018283129 | AG41: -2.14750886 | AH41: -2.265692711 | AI41: -2.382137299 | AJ41: -2.487501621 | AK41: -2.565141678 | AL41: -2.608849764 | AM41: -2.628252983 | AN41: -2.59295392 | AO41: -2.343337774 | AP41: -1.503313899 | AQ41: -1.120846629 | AR41: -1.302660704
A42: 0.1113410965 | D42: 0.8607195616 | E42: 0.8184151649 | F42: 0.770136416 | G42: 0.7159078121 | H42: 0.6557716131 | I42: 0.590459764 | J42: 0.5156174302 | K42: 0.3459525406 | L42: 0.2548903823 | M42: 0.1588469148 | N42: 0.05692394078 | O42: -0.0499327071 | P42: -0.1589951664 | Q42: -0.1620747447 | R42: -0.278872937 | S42: -0.4032736719 | T42: -0.5225759149 | U42: -0.656363368 | V42: -0.7905968428 | W42: -0.9282876849 | X42: -1.213134408 | Y42: -1.286859274 | Z42: -1.35969305 | AA42: -1.508493304 | AB42: -1.659378409 | AC42: -1.811958909 | AD42: -1.965602636 | AE42: -2.1198349 | AF42: -2.274233103 | AG42: -2.426793098 | AH42: -2.568117142 | AI42: -2.707417011 | AJ42: -2.834663868 | AK42: -2.931040049 | AL42: -2.989773512 | AM42: -3.022295713 | AN42: -2.995785236 | AO42: -2.742962122 | AP42: -1.901451707 | AQ42: -1.258475304 | AR42: -1.361297727
A43: 0.08822529763 | D43: 0.9210395217 | E43: 0.8838095665 | F43: 0.8388012648 | G43: 0.7861525416 | H43: 0.7262862921 | I43: 0.6593548059 | J43: 0.5807085037 | K43: 0.3983498514 | L43: 0.2983514965 | M43: 0.1917441785 | N43: 0.07736404985 | O43: -0.04358579218 | P43: -0.167967245 | Q43: -0.1714927554 | R43: -0.3056298196 | S43: -0.4483788311 | T43: -0.5879033208 | U43: -0.7459961772 | V43: -0.9051992297 | W43: -1.068379164 | X43: -1.407622814 | Y43: -1.495953441 | Z43: -1.583356977 | AA43: -1.762393117 | AB43: -1.944672585 | AC43: -2.129793167 | AD43: -2.316983938 | AE43: -2.505615234 | AF43: -2.695162773 | AG43: -2.883023977 | AH43: -3.056265593 | AI43: -3.228708982 | AJ43: -3.387312651 | AK43: -3.509917021 | AL43: -3.588805676 | AM43: -3.637983084 | AN43: -3.620239496 | AO43: -3.350535631 | AP43: -2.464572906 | AQ43: -1.558954239 | AR43: -1.433571935
A44: 0.06724350154 | D44: 0.9757544994 | E44: 0.9498177767 | F44: 0.9141811728 | G44: 0.8687369227 | H44: 0.8134710193 | I44: 0.7489790916 | J44: 0.6709293723 | K44: 0.4814229906 | L44: 0.374181658 | M44: 0.2576854229 | N44: 0.131161958 | O44: -0.004433100112 | P44: -0.1454530209 | Q44: -0.1494729668 | R44: -0.3032769263 | S44: -0.4684443474 | T44: -0.6400930285 | U44: -0.8098803759 | V44: -1.000108123 | W44: -1.194971204 | X44: -1.6022048 | Y44: -1.708665133 | Z44: -1.81422019 | AA44: -2.031158924 | AB44: -2.25308609 | AC44: -2.479553223 | AD44: -2.709603071 | AE44: -2.942435741 | AF44: -3.17740798 | AG44: -3.411502838 | AH44: -3.629549503 | AI44: -3.846728086 | AJ44: -4.048160553 | AK44: -4.207240582 | AL44: -4.314964771 | AM44: -4.388800144 | AN44: -4.385828495 | AO44: -4.097676277 | AP44: -3.176023006 | AQ44: -2.189074516 | AR44: -1.524527431
A45: 0.04994710162 | D45: 0.9999970794 | E45: 0.993498385 | F45: 0.9742025137 | G45: 0.9418728948 | H45: 0.8966408968 | I45: 0.8386926055 | J45: 0.7635558248 | K45: 0.5691596866 | L45: 0.453956753 | M45: 0.326304853 | N45: 0.184526816 | O45: 0.03026700579 | P45: -0.1324291229 | Q45: -0.1370971352 | R45: -0.3168117106 | S45: -0.5118518472 | T45: -0.7201533914 | U45: -0.9171808958 | V45: -1.143191099 | W45: -1.382636905 | X45: -1.88503015 | Y45: -2.016289711 | Z45: -2.146747828 | AA45: -2.416003704 | AB45: -2.693078041 | AC45: -2.977401257 | AD45: -3.26772213 | AE45: -3.562937498 | AF45: -3.862245083 | AG45: -4.16169548 | AH45: -4.44016695 | AI45: -4.719377995 | AJ45: -4.980142117 | AK45: -5.189508915 | AL45: -5.336547375 | AM45: -5.44351244 | AN45: -5.458908558 | AO45: -5.137381554 | AP45: -4.089859486 | AQ45: -3.09085989 | AR45: -1.635219216
A46: 0.03682810068 | D46: 0.9669085145 | E46: 0.9919121861 | F46: 0.9999896884 | G46: 0.9906193614 | H46: 0.9635674953 | I46: 0.9191041589 | J46: 0.8534960747 | K46: 0.662088871 | L46: 0.5407200456 | M46: 0.4012778699 | N46: 0.2433436364 | O46: 0.06771928817 | P46: -0.1204689667 | Q46: -0.1259087026 | R46: -0.3368147016 | S46: -0.5683003664 | T46: -0.8158105612 | U46: -1.085758328 | V46: -1.330773711 | W46: -1.623612523 | X46: -2.249979973 | Y46: -2.413332701 | Z46: -2.57624197 | AA46: -2.914190054 | AB46: -3.264192343 | AC46: -3.625434399 | AD46: -3.996241331 | AE46: -4.375085354 | AF46: -4.76099205 | AG46: -5.148553848 | AH46: -5.506939888 | AI46: -5.869616985 | AJ46: -6.210486412 | AK46: -6.487904549 | AL46: -6.688206673 | AM46: -6.840088844 | AN46: -6.880149364 | AO46: -6.510831356 | AP46: -5.28205061 | AQ46: -4.210149765 | AR46: -1.476371288
A47: 0.02701410092 | D47: 0.842279613 | E47: 0.9154613614 | F47: 0.9664323926 | G47: 0.9944373369 | H47: 0.9988247752 | I47: 0.9796498418 | J47: 0.9338974953 | K47: 0.7621843815 | L47: 0.640209794 | M47: 0.4944294393 | N47: 0.3225477934 | O47: 0.1268184483 | P47: -0.08749975264 | Q47: -0.093751885 | R47: -0.3381651044 | S47: -0.6101683974 | T47: -0.9037899375 | U47: -1.219045639 | V47: -1.570639372 | W47: -1.884073973 | X47: -2.642293215 | Y47: -2.843643427 | Z47: -3.045365095 | AA47: -3.46630168 | AB47: -3.905170918 | AC47: -4.36080265 | AD47: -4.831050396 | AE47: -5.313828468 | AF47: -5.80800581 | AG47: -6.306515217 | AH47: -6.767084599 | AI47: -7.23526907 | AJ47: -7.677945614 | AK47: -8.042434692 | AL47: -8.311527252 | AM47: -8.522047997 | AN47: -8.595591545 | AO47: -8.168842316 | AP47: -6.716734409 | AQ47: -5.528559208 | AR47: -1.936437488
A48: 0.01962389983 | D48: 0.5737553835 | E48: 0.7192736268 | F48: 0.8360357285 | G48: 0.922010839 | H48: 0.9764481783 | I48: 0.9992316365 | J48: 0.9890483022 | K48: 0.8617327809 | L48: 0.7482213378 | M48: 0.6012029648 | N48: 0.4204520881 | O48: 0.2066300213 | P48: -0.03325225413 | Q48: -0.04032405093 | R48: -0.3195487261 | S48: -0.6350929141 | T48: -0.979562223 | U48: -1.349966288 | V48: -1.751609921 | W48: -2.196657181 | X48: -3.080435038 | Y48: -3.329505444 | Z48: -3.579601049 | AA48: -4.103535175 | AB48: -4.653121471 | AC48: -5.22693491 | AD48: -5.822187901 | AE48: -6.436237335 | AF48: -7.068135738 | AG48: -7.7083745 | AH48: -8.30053997 | AI48: -8.903956413 | AJ48: -9.477542877 | AK48: -9.954414368 | AL48: -10.31273079 | AM48: -10.59971428 | AN48: -10.71766949 | AO48: -10.21868134 | AP48: -8.480669975 | AQ48: -7.123670578 | AR48: -3.053277969
A49: 0.01385500003 | D49: 0.1185930744 | E49: 0.3599731028 | F49: 0.5650909543 | G49: 0.7321335673 | H49: 0.859423697 | I49: 0.945721209 | J49: 0.9930285811 | K49: 0.9520589709 | L49: 0.8659272194 | M49: 0.7374933958 | N49: 0.5647857189 | O49: 0.3500365317 | P49: 0.09959982336 | Q49: 0.09210185707 | R49: -0.2078262866 | S49: -0.5542897582 | T49: -0.9396198988 | U49: -1.360638857 | V49: -1.821416855 | W49: -2.326436043 | X49: -3.330294132 | Y49: -3.628278494 | Z49: -3.929325342 | AA49: -4.560327053 | AB49: -5.217564106 | AC49: -5.902068615 | AD49: -6.617907524 | AE49: -7.364965916 | AF49: -8.14359951 | AG49: -8.9358778 | AH49: -9.653783798 | AI49: -10.39898491 | AJ49: -11.11091518 | AK49: -11.70799255 | AL49: -12.16356468 | AM49: -12.53570271 | AN49: -12.70739651 | AO49: -12.14750671 | AP49: -10.14513874 | AQ49: -8.642868042 | AR49: -4.459278584
A50: 0.009270000271 | D50: -0.6642106771 | E50: -0.2804963589 | F50: 0.0578058064 | G50: 0.3462478817 | H50: 0.582600534 | I50: 0.7660233974 | J50: 0.9024627805 | K50: 0.9988775253 | L50: 0.959256351 | M50: 0.8629364371 | N50: 0.7095341086 | O50: 0.49947837 | P50: 0.2405050993 | Q50: 0.2325852364 | R50: -0.09057833999 | S50: -0.4753795564 | T50: -0.9136667848 | U50: -1.401185393 | V50: -1.943882227 | W50: -2.544484615 | X50: -4.208442211 | Y50: -4.620812416 | Z50: -5.030522346 | AA50: -5.869223595 | AB50: -6.710520744 | AC50: -7.547078609 | AD50: -8.376858711 | AE50: -9.203586578 | AF50: -10.01116276 | AG50: -10.79903698 | AH50: -11.51734638 | AI50: -12.46433163 | AJ50: -13.37373161 | AK50: -14.14256382 | AL50: -14.73720264 | AM50: -15.23114872 | AN50: -15.48027897 | AO50: -14.83726215 | AP50: -12.46737003 | AQ50: -10.75603676 | AR50: -6.190536499
A51: 0.005703699775 | D51: -2.168155193 | E51: -1.537169576 | F51: -0.9689196944 | G51: -0.4679781795 | H51: -0.03845712915 | I51: 0.315865308 | J51: 0.6095399261 | K51: 0.9535323977 | L51: 0.9997512102 | M51: 0.9664325714 | N51: 0.8528968096 | O51: 0.6601515412 | P51: 0.3957513869 | Q51: 0.3873687983 | R51: 0.0356120728 | S51: -0.4006756246 | T51: -0.911818862 | U51: -1.492576241 | V51: -2.1455338 | W51: -2.868786812 | X51: -4.392756462 | Y51: -4.830421925 | Z51: -5.276834011 | AA51: -6.236415863 | AB51: -7.282935143 | AC51: -8.417395592 | AD51: -9.632695198 | AE51: -10.92124939 | AF51: -12.28689098 | AG51: -13.71505356 | AH51: -15.3982563 | AI51: -16.74239159 | AJ51: -18.03431511 | AK51: -19.1306324 | AL51: -19.9860096 | AM51: -20.70430565 | AN51: -21.09053802 | AO51: -20.27559662 | AP51: -17.16616058 | AQ51: -14.97535992 | AR51: -9.097900391
A52: 0.003089200007 | D52: -4.163642406 | E52: -3.26093483 | F52: -2.4325037 | G52: -1.68740797 | H52: -1.031384587 | I52: -0.4672908783 | J52: 0.0289493911 | K52: 0.720600903 | L52: 0.9063645005 | M52: 0.9929485321 | N52: 0.9805125594 | O52: 0.8684929609 | P52: 0.6638210416 | Q52: 0.6568236947 | R52: 0.3459965289 | S52: -0.06962936372 | T52: -0.5813509822 | U52: -1.182008266 | V52: -1.876700282 | W52: -2.661104441 | X52: -4.447133541 | Y52: -4.954474926 | Z52: -5.471450806 | AA52: -6.578660965 | AB52: -7.772060394 | AC52: -9.050057411 | AD52: -10.40606499 | AE52: -11.83206463 | AF52: -13.32413673 | AG52: -14.85193729 | AH52: -16.14212418 | AI52: -17.61920929 | AJ52: -19.05052948 | AK52: -20.27715302 | AL52: -21.24534225 | AM52: -22.06935501 | AN52: -22.52725029 | AO52: -21.63356781 | AP52: -18.17642403 | AQ52: -15.78467083 | AR52: -9.621509552
A53: 0.001331100008 | D53: -6.356949329 | E53: -5.209320545 | F53: -4.143839359 | G53: -3.168942451 | H53: -2.291873455 | I53: -1.520044208 | J53: -0.8176394701 | K53: 0.2543346882 | L53: 0.606972158 | M53: 0.8477585912 | N53: 0.9767335653 | O53: 0.9928007126 | P53: 0.8999969959 | Q53: 0.8959088922 | R53: 0.6861499548 | S53: 0.3589569628 | T53: -0.07893011719 | U53: -0.6217868924 | V53: -1.271258593 | W53: -2.02735734 | X53: -3.820005417 | Y53: -4.336536407 | Z53: -4.866420746 | AA53: -6.006538391 | AB53: -7.242758751 | AC53: -8.572803497 | AD53: -9.98987484 | AE53: -11.48733234 | AF53: -13.06079102 | AG53: -14.68429756 | AH53: -16.18931961 | AI53: -17.80121803 | AJ53: -19.36913872 | AK53: -20.72017097 | AL53: -21.79595184 | AM53: -22.72081375 | AN53: -23.25871468 | AO53: -22.37044525 | AP53: -18.81335831 | AQ53: -16.42008209 | AR53: -10.29764366
A54: 0.000340300001 | D54: -8.635904312 | E54: -7.273509979 | F54: -5.994748592 | G54: -4.812238693 | H54: -3.735034466 | I54: -2.768592358 | J54: -1.867221117 | K54: -0.4188745618 | L54: 0.1045072079 | M54: 0.5078631639 | N54: 0.7933893204 | O54: 0.9565742612 | P54: 0.9989853501 | Q54: 0.9985181093 | R54: 0.9186280966 | S54: 0.7135759592 | T54: 0.3869369626 | U54: -0.05484726653 | V54: -0.6146746874 | W54: -1.288577199 | X54: -2.959133863 | Y54: -3.450407267 | Z54: -3.956906319 | AA54: -5.05974102 | AB54: -6.266879559 | AC54: -7.575497627 | AD54: -8.980520248 | AE54: -10.47537708 | AF54: -12.05472279 | AG54: -13.69440937 | AH54: -15.25588036 | AI54: -16.90854645 | AJ54: -18.523592 | AK54: -19.92355919 | AL54: -21.04777527 | AM54: -22.02363586 | AN54: -22.61196136 | AO54: -21.7674942 | AP54: -18.27185059 | AQ54: -15.97756386 | AR54: -10.15126038
A55: 0 | D55: -10.87456799 | E55: -9.335128784 | F55: -7.879988194 | G55: -6.521224022 | H55: -5.268743992 | I55: -4.132221699 | J55: -3.055959225 | K55: -1.262454987 | L55: -0.5751673579 | M55: -0.01054895669 | N55: 0.4312022924 | O55: 0.7469203472 | P55: 0.9332748652 | Q55: 0.9367288947 | R55: 0.9999999404 | S55: 0.9348416328 | T55: 0.7419070005 | U55: 0.4261111021 | V55: -0.01205471996 | W55: -0.5725504756 | X55: -2.034360886 | Y55: -2.477000952 | Z55: -2.938979626 | AA55: -3.952482939 | AB55: -5.076523304 | AC55: -6.308924675 | AD55: -7.642584324 | AE55: -9.071722031 | AF55: -10.59226799 | AG55: -12.18117714 | AH55: -13.71343613 | AI55: -15.33508778 | AJ55: -16.92771912 | AK55: -18.31627274 | AL55: -19.43998909 | AM55: -20.42372704 | AN55: -21.03421593 | AO55: -20.25860786 | AP55: -16.94361687 | AQ55: -14.8162117 | AR55: -9.437273979
A56: 0.0002721000055 | D56: -12.40998554 | E56: -10.80512428 | F56: -9.277529716 | G56: -7.841191769 | H56: -6.507158279 | I56: -5.283581257 | J56: -4.109045029 | K56: -2.100883722 | L56: -1.301951766 | M56: -0.6198298335 | N56: -0.05233640596 | O56: 0.3922930658 | P56: 0.709516108 | Q56: 0.7166452408 | R56: 0.9187982678 | S56: 0.9988216758 | T56: 0.9540274739 | U56: 0.7887129188 | V56: 0.5034254789 | W56: 0.1006729677 | X56: -1.045934319 | Y56: -1.407062531 | Z56: -1.787010312 | AA56: -2.637903452 | AB56: -3.596555948 | AC56: -4.659841061 | AD56: -5.824569702 | AE56: -7.085247993 | AF56: -8.436099052 | AG56: -9.857270241 | AH56: -11.24308586 | AI56: -12.7137413 | AJ56: -14.16538048 | AK56: -15.43844891 | AL56: -16.47622681 | AM56: -17.39221764 | AN56: -17.97528076 | AO56: -17.31508255 | AP56: -14.39876938 | AQ56: -12.56799984 | AR56: -7.949852943
A57: 0.001186099951 | D57: -13.43031597 | E57: -11.83094501 | F57: -10.30027294 | G57: -8.851840019 | H57: -7.496781349 | I57: -6.244853973 | J57: -5.031743526 | K57: -2.913544178 | L57: -2.044635534 | M57: -1.278636098 | N57: -0.6195458174 | O57: -0.07223331928 | P57: 0.3533207476 | Q57: 0.3635807633 | R57: 0.6868594289 | S57: 0.8988379836 | T57: 0.9938696027 | U57: 0.9749051332 | V57: 0.8444485664 | W57: 0.6028089523 | X57: -0.1999464333 | Y57: -0.4701070487 | Z57: -0.7611072659 | AA57: -1.42367053 | AB57: -2.188374758 | AC57: -3.053895712 | AD57: -4.014257908 | AE57: -5.065006733 | AF57: -6.203453064 | AG57: -7.41244936 | AH57: -8.602903366 | AI57: -9.871441841 | AJ57: -11.13160324 | AK57: -12.24381065 | AL57: -13.15748501 | AM57: -13.97029209 | AN57: -14.49976921 | AO57: -13.9640522 | AP57: -11.513731 | AQ57: -10.009408 | AR57: -6.221038818
A58: 0.00285369996 | D58: -13.73997593 | E58: -12.21781731 | F58: -10.75471592 | G58: -9.364869118 | H58: -8.060214996 | I58: -6.849806309 | J58: -5.669131756 | K58: -3.575686216 | L58: -2.698925734 | M58: -1.900025129 | N58: -1.191065907 | O58: -0.581900239 | P58: -0.08188032359 | Q58: -0.06938875467 | R58: 0.3437537849 | S58: 0.6602891684 | T58: 0.8724445105 | U58: 0.9820190072 | V58: 0.9921579957 | W58: 0.9036726356 | X58: 0.4370088279 | Y58: 0.2588085532 | Z58: 0.06165169552 | AA58: -0.4069057107 | AB58: -0.9670798182 | AC58: -1.616389394 | AD58: -2.353005171 | AE58: -3.173313141 | AF58: -4.072621346 | AG58: -5.037502766 | AH58: -5.999498844 | AI58: -7.03178072 | AJ58: -8.064130783 | AK58: -8.98169899 | AL58: -9.741148949 | AM58: -10.42253876 | AN58: -10.87616634 | AO58: -10.46586418 | AP58: -8.517956734 | AQ58: -7.3503685 | AR58: -4.411540508
A59: 0.005369999912 | D59: -12.72030735 | E59: -11.33596039 | F59: -10.01459312 | G59: -8.769211769 | H59: -7.612110615 | I59: -6.551749706 | J59: -5.527956963 | K59: -3.718681812 | L59: -2.958399296 | M59: -2.21255827 | N59: -1.537696838 | O59: -0.9409364462 | P59: -0.4350020885 | Q59: -0.4220706522 | R59: 0.01761122979 | S59: 0.3811274171 | T59: 0.6595844626 | U59: 0.8534908295 | V59: 0.9668614864 | W59: 0.9996758699 | X59: 0.8283343911 | Y59: 0.7357182503 | Z59: 0.6256777644 | AA59: 0.3475125134 | AB59: -0.006020814646 | AC59: -0.4342076182 | AD59: -0.9336355925 | AE59: -1.501460552 | AF59: -2.136165857 | AG59: -2.827941179 | AH59: -3.52617836 | AI59: -4.281376839 | AJ59: -5.04369545 | AK59: -5.726743221 | AL59: -6.297047615 | AM59: -6.812860012 | AN59: -7.163121223 | AO59: -6.878837109 | AP59: -5.476800442 | AQ59: -4.656039715 | AR59: -2.594552279
A60: 0.008826600388 | D60: -10.707057 | E60: -9.822979927 | F60: -8.929326057 | G60: -8.029900551 | H60: -7.129338741 | I60: -6.236031532 | J60: -5.306667328 | K60: -3.508540392 | L60: -2.638772011 | M60: -2.019968033 | N60: -1.457385421 | O60: -0.9543882012 | P60: -0.5186399817 | Q60: -0.5073639154 | R60: -0.1177028418 | S60: 0.2181150466 | T60: 0.4924990237 | U60: 0.7057328224 | V60: 0.8608421087 | W60: 0.9586023092 | X60: 0.9825822115 | Y60: 0.9531288743 | Z60: 0.9107513428 | AA60: 0.7837318182 | AB60: 0.6024082303 | AC60: 0.3679100573 | AD60: 0.08104974031 | AE60: -0.2566598058 | AF60: -0.6426129937 | AG60: -1.070544362 | AH60: -1.510238647 | AI60: -1.991730452 | AJ60: -2.482301235 | AK60: -2.925771952 | AL60: -3.298918247 | AM60: -3.639522791 | AN60: -3.875050068 | AO60: -3.702337265 | AP60: -2.817675829 | AQ60: -2.313127756 | AR60: -1.04674232
A61: 0.01329610031 | D61: -8.420008659 | E61: -7.637440681 | F61: -6.880187988 | G61: -6.152369499 | H61: -5.451778412 | I61: -4.777506351 | J61: -4.093113899 | K61: -2.848436356 | L61: -2.384304285 | M61: -1.863892794 | N61: -1.389455438 | O61: -0.9590501189 | P61: -0.5800052285 | Q61: -0.5700884461 | R61: -0.2231016159 | S61: 0.08509261906 | T61: 0.3473548293 | U61: 0.5630659461 | V61: 0.7358491421 | W61: 0.8648748994 | X61: 0.9942022562 | Y61: 0.999991715 | Z61: 0.9952594042 | AA61: 0.9546250105 | AB61: 0.8727083802 | AC61: 0.7497457266 | AD61: 0.5871162415 | AE61: 0.3861376941 | AF61: 0.147453025 | AG61: -0.1250279844 | AH61: -0.4103209972 | AI61: -0.726867795 | AJ61: -1.054067016 | AK61: -1.353076816 | AL61: -1.607420564 | AM61: -1.841472983 | AN61: -2.006011486 | AO61: -1.896359205 | AP61: -1.313964367 | AQ61: -0.9894409776 | AR61: -0.1806948185
A62: 0.01892079972 | D62: -7.311096191 | E62: -6.666647434 | F62: -6.035769939 | G62: -5.424015522 | H62: -4.836218357 | I62: -4.277117729 | J62: -3.715897322 | K62: -2.67485714 | L62: -2.246891499 | M62: -1.790329576 | N62: -1.377367377 | O62: -0.9991708994 | P62: -0.6605426073 | Q62: -0.6516048908 | R62: -0.3356949389 | S62: -0.04872858524 | T62: 0.2025520802 | U62: 0.4175380766 | V62: 0.5985594988 | W62: 0.7463340163 | X62: 0.939260602 | Y62: 0.9670581818 | Z62: 0.9860864282 | AA62: 0.9999052882 | AB62: 0.9811764359 | AC62: 0.9303794503 | AD62: 0.8479388952 | AE62: 0.734457016 | AF62: 0.5912348032 | AG62: 0.4210548401 | AH62: 0.23674196 | AI62: 0.02712310664 | AJ62: -0.1931019425 | AK62: -0.39715904 | AL62: -0.5724053383 | AM62: -0.7356196046 | AN62: -0.8523616791 | AO62: -0.7815366983 | AP62: -0.3911496103 | AQ62: -0.1805577278 | AR62: 0.3416244984
A63: 0.02610320039 | D63: -6.02193737 | E63: -5.516533375 | F63: -5.019667625 | G63: -4.535673141 | H63: -4.068234444 | I63: -3.620873928 | J63: -3.168543577 | K63: -2.323091269 | L63: -1.928445697 | M63: -1.610937119 | N63: -1.24888742 | O63: -0.9266634583 | P63: -0.6374977827 | Q63: -0.6298279166 | R63: -0.3569335639 | S63: -0.1050866172 | T63: 0.1199809238 | U63: 0.3173662722 | V63: 0.4899668992 | W63: 0.6368938088 | X63: 0.8556435704 | Y63: 0.8950477242 | Z63: 0.9274889827 | AA63: 0.9748144746 | AB63: 0.9976294041 | AC63: 0.9962740541 | AD63: 0.9710302949 | AE63: 0.922560215 | AF63: 0.8512580395 | AG63: 0.7586045861 | AH63: 0.6529015899 | AI63: 0.5284805894 | AJ63: 0.3937495947 | AK63: 0.2662680745 | AL63: 0.1547590941 | AM63: 0.04965202883 | AN63: -0.02687143907 | AO63: 0.01542629395 | AP63: 0.2567441761 | AQ63: 0.3831853569 | AR63: 0.6893258691
A64: 0.03562099859 | D64: -4.907886505 | E64: -4.514997959 | F64: -4.126857758 | G64: -3.746849537 | H64: -3.37790513 | I64: -3.022858381 | J64: -2.661232948 | K64: -1.975897789 | L64: -1.654144049 | M64: -1.354878426 | N64: -1.105764031 | O64: -0.8285045624 | P64: -0.5850276947 | Q64: -0.5785607696 | R64: -0.3472110033 | S64: -0.1308059543 | T64: 0.0658769235 | U64: 0.2421323657 | V64: 0.3999222815 | W64: 0.539672792 | X64: 0.762078166 | Y64: 0.8068115115 | Z64: 0.8460624218 | AA64: 0.9114285111 | AB64: 0.9588439465 | AC64: 0.9882726073 | AD64: 0.9997922778 | AE64: 0.9937673807 | AF64: 0.9705609083 | AG64: 0.9311801195 | AH64: 0.8797259331 | AI64: 0.813975215 | AJ64: 0.7390895486 | AK64: 0.6656668782 | AL64: 0.6000257134 | AM64: 0.5367758274 | AN64: 0.4896815121 | AO64: 0.5134328008 | AP64: 0.6533893943 | AQ64: 0.7229571939 | AR64: 0.885915339
A65: 0.04834590107 | D65: -3.975809813 | E65: -3.671467781 | F65: -3.369349241 | G65: -3.072103024 | H65: -2.782013893 | I65: -2.501302242 | J65: -2.213227987 | K65: -1.661509275 | L65: -1.405650139 | M65: -1.160053372 | N65: -0.9266576171 | O65: -0.7291695476 | P65: -0.5237692595 | Q65: -0.5183545947 | R65: -0.3238558769 | S65: -0.139736563 | T65: 0.03004128486 | U65: 0.1846705824 | V65: 0.3261274993 | W65: 0.4539099336 | X65: 0.6689146161 | Y65: 0.7146000266 | Z65: 0.7559909821 | AA65: 0.829867959 | AB65: 0.8902303576 | AC65: 0.9372623563 | AD65: 0.9711586833 | AE65: 0.9919669628 | AF65: 0.9998969436 | AG65: 0.9953673482 | AH65: 0.9801774621 | AI65: 0.9545252323 | AJ65: 0.9206551909 | AK65: 0.884567678 | AL65: 0.8504806161 | AM65: 0.8164976239 | AN65: 0.7903894782 | AO65: 0.8024705052 | AP65: 0.8746834397 | AQ65: 0.9083527327 | AR65: 0.9782275558
A66: 0.06526409835 | D66: -3.24434185 | E66: -3.007184267 | F66: -2.770565271 | G66: -2.536576509 | H66: -2.307035446 | I66: -2.083715677 | J66: -1.852810383 | K66: -1.40720439 | L66: -1.201157093 | M66: -1.003074288 | N66: -0.8102558851 | O66: -0.6345875859 | P66: -0.4710453451 | Q66: -0.4664984047 | R66: -0.3027804792 | S66: -0.146079585 | T66: 0.0002361418155 | U66: 0.1353999376 | V66: 0.2609292269 | W66: 0.3768820167 | X66: 0.5781871676 | Y66: 0.6229410172 | Z66: 0.6643263698 | AA66: 0.7401785851 | AB66: 0.806432724 | AC66: 0.8629395962 | AD66: 0.9094411135 | AE66: 0.9461276531 | AF66: 0.9732375741 | AG66: 0.9907549024 | AH66: 0.9988781214 | AI66: 0.9991514683 | AJ66: 0.9922145605 | AK66: 0.980856359 | AL66: 0.968079567 | AM66: 0.9538990855 | AN66: 0.9422195554 | AO66: 0.9472780824 | AP66: 0.976369679 | AQ66: 0.9873992205 | AR66: 0.9998136759
A67: 0.08621039987 | D67: -2.678128958 | E67: -2.490654469 | F67: -2.302678823 | G67: -2.115868568 | H67: -1.931684017 | I67: -1.751587391 | J67: -1.564072609 | K67: -1.20017767 | L67: -1.031022668 | M67: -0.8685888052 | N67: -0.7102144957 | O67: -0.5537593961 | P67: -0.4227332473 | Q67: -0.4188033044 | R67: -0.2796378732 | S67: -0.145459339 | T67: -0.01892189123 | U67: 0.09923543781 | V67: 0.2103895545 | W67: 0.3143172264 | X67: 0.5000252128 | Y67: 0.5422626138 | Z67: 0.5817736983 | AA67: 0.6563635468 | AB67: 0.7234422565 | AC67: 0.7830660343 | AD67: 0.8354443908 | AE67: 0.8804216981 | AF67: 0.9179512262 | AG67: 0.9479806423 | AH67: 0.9698556662 | AI67: 0.9858118296 | AJ67: 0.9954029322 | AK67: 0.9994077682 | AL67: 0.9998860955 | AM67: 0.99823457 | AN67: 0.9958493114 | AO67: 0.9969180822 | AP67: 0.999943614 | AQ67: 0.9981991053 | AR67: 0.9770861268
A68: 0.1097484976 | D68: -2.320406675 | E68: -2.165857792 | F68: -2.010178089 | G68: -1.854799151 | H68: -1.700972795 | I68: -1.549978614 | J68: -1.391777635 | K68: -1.082907915 | L68: -0.9385890961 | M68: -0.7992303371 | N68: -0.6630835533 | O68: -0.5288394094 | P68: -0.4104260206 | Q68: -0.4065814018 | R68: -0.283824116 | S68: -0.1652224958 | T68: -0.05231916904 | U68: 0.05408850312 | V68: 0.1551602334 | W68: 0.2508008182 | X68: 0.4246073961 | Y68: 0.4649975002 | Z68: 0.5031429529 | AA68: 0.5756551027 | AB68: 0.642587781 | AC68: 0.7038702965 | AD68: 0.7590971589 | AE68: 0.8083703518 | AF68: 0.8519076109 | AG68: 0.8893330097 | AH68: 0.9192454815 | AI68: 0.944409132 | AJ68: 0.9638978839 | AK68: 0.9771080017 | AL68: 0.98556602 | AM68: 0.9914793968 | AN68: 0.994761467 | AO68: 0.993571043 | AP68: 0.9813069701 | AQ68: 0.9722061753 | AR68: 0.9319581389
A69: 0.1341519058 | D69: -2.021164179 | E69: -1.891579032 | F69: -1.760489941 | G69: -1.629136801 | H69: -1.498603821 | I69: -1.370030165 | J69: -1.234535813 | K69: -0.9686759114 | L69: -0.843793273 | M69: -0.7228212357 | N69: -0.6041847467 | O69: -0.488398701 | P69: -0.3789398372 | Q69: -0.3784689307 | R69: -0.2710213661 | S69: -0.1654149741 | T69: -0.06428828835 | U69: 0.03160659224 | V69: 0.1233264059 | W69: 0.2107426524 | X69: 0.3718415201 | Y69: 0.4096984267 | Z69: 0.4456224442 | AA69: 0.5148754716 | AB69: 0.579487741 | AC69: 0.6393913627 | AD69: 0.6946989894 | AE69: 0.7452803254 | AF69: 0.7909573317 | AG69: 0.8315070868 | AH69: 0.8654221296 | AI69: 0.8955886364 | AJ69: 0.9204819798 | AK69: 0.9388379455 | AL69: 0.9517620206 | AM69: 0.962074697 | AN69: 0.968688488 | AO69: 0.9661209583 | AP69: 0.9450592399 | AQ69: 0.9319631457 | AR69: 0.881434083
A70: 0.1589042991 | D70: -1.816958547 | E70: -1.705177546 | F70: -1.591635466 | G70: -1.47746563 | H70: -1.363654375 | I70: -1.251244783 | J70: -1.132110119 | K70: -0.8970661759 | L70: -0.7862478495 | M70: -0.678439796 | N70: -0.5722793937 | O70: -0.4685996175 | P70: -0.3636901081 | Q70: -0.3603731394 | R70: -0.2705319524 | S70: -0.1745589077 | T70: -0.08213700354 | U70: 0.005982469302 | V70: 0.09074932337 | W70: 0.1720498055 | X70: 0.323361516 | Y70: 0.3592890501 | Z70: 0.3935438991 | AA70: 0.4598444998 | AB70: 0.5224221945 | AC70: 0.5812477469 | AD70: 0.6360523105 | AE70: 0.6867995858 | AF70: 0.7336332202 | AG70: 0.7761258483 | AH70: 0.8123056889 | AI70: 0.8452530503 | AJ70: 0.8734802604 | AK70: 0.8950123191 | AL70: 0.9107633829 | AM70: 0.9237563014 | AN70: 0.9323856831 | AO70: 0.9288213849 | AP70: 0.9019442797 | AQ70: 0.8862179518 | AR70: 0.829069376
A71: 0.1843245029 | D71: -1.637588143 | E71: -1.540329099 | F71: -1.441137791 | G71: -1.341051936 | H71: -1.240972281 | I71: -1.141861439 | J71: -1.036221623 | K71: -0.8268339634 | L71: -0.7277647853 | M71: -0.6311443448 | N71: -0.5356841683 | O71: -0.4421482086 | P71: -0.3491337299 | Q71: -0.3461022079 | R71: -0.2625951469 | S71: -0.1749935597 | T71: -0.09031932801 | U71: -0.0092437407 | V71: 0.06910156459 | W71: 0.1446118057 | X71: 0.2863001525 | Y71: 0.3201923668 | Z71: 0.3526045978 | AA71: 0.4157334268 | AB71: 0.4757300913 | AC71: 0.5325183868 | AD71: 0.5860269666 | AE71: 0.6361804605 | AF71: 0.6828722954 | AG71: 0.7257321477 | AH71: 0.762871027 | AI71: 0.7974087596 | AJ71: 0.8274046183 | AK71: 0.8506592512 | AL71: 0.8678306937 | AM71: 0.8823695779 | AN71: 0.8921455741 | AO71: 0.8877674341 | AP71: 0.8572539687 | AQ71: 0.8399226069 | AR71: 0.7788005471
A72: 0.2096222043 | D72: -1.496715784 | E72: -1.410847187 | F72: -1.322918415 | G72: -1.233899951 | H72: -1.144630551 | I72: -1.056010246 | J72: -0.9610106349 | K72: -0.7718777061 | L72: -0.6821368337 | M72: -0.5944096446 | N72: -0.5074756145 | O72: -0.4220449328 | P72: -0.3387411237 | Q72: -0.3362101316 | R72: -0.2571212351 | S72: -0.176162824 | T72: -0.09782393277 | U72: -0.02253852971 | V72: 0.05048837885 | W72: 0.121159561 | X72: 0.254637599 | Y72: 0.2867620885 | Z72: 0.3175651729 | AA72: 0.3777843416 | AB72: 0.4353605807 | AC72: 0.4902452528 | AD72: 0.5422832966 | AE72: 0.591388464 | AF72: 0.6375780702 | AG72: 0.6804369092 | AH72: 0.7178403735 | AI72: 0.7529207468 | AJ72: 0.7838620543 | AK72: 0.8080708385 | AL72: 0.8261446953 | AM72: 0.8415165544 | AN72: 0.8518739939 | AO72: 0.8467631936 | AP72: 0.813495636 | AQ72: 0.7948453426 | AR72: 0.7310317755
A73: 0.234732002 | D73: -1.392579556 | E73: -1.315865755 | F73: -1.236970901 | G73: -1.156832099 | H73: -1.076254368 | I73: -0.9960918427 | J73: -0.9096360207 | K73: -0.7366406322 | L73: -0.6544185877 | M73: -0.5737407207 | N73: -0.4935325384 | O73: -0.4145440161 | P73: -0.3379530013 | Q73: -0.3357410729 | R73: -0.2612678707 | S73: -0.1847454309 | T73: -0.1114572883 | U73: -0.04076165333 | V73: 0.02806190588 | W73: 0.09491485357 | X73: 0.2219155729 | Y73: 0.2526427805 | Z73: 0.2821702957 | AA73: 0.3400968313 | AB73: 0.3957504034 | AC73: 0.4490718842 | AD73: 0.4999282956 | AE73: 0.5482367873 | AF73: 0.5939529538 | AG73: 0.6366465688 | AH73: 0.6741912365 | AI73: 0.7097821832 | AJ73: 0.7413583994 | AK73: 0.766156137 | AL73: 0.7846090198 | AM73: 0.8004761934 | AN73: 0.8111284971 | AO73: 0.8052608967 | AP73: 0.7698233128 | AQ73: 0.75009197 | AR73: 0.6837399006
A74: 0.2595450878 | D74: -1.283006072 | E74: -1.214259148 | F74: -1.143267989 | G74: -1.070916653 | H74: -0.9979624152 | I74: -0.9252155423 | J74: -0.8463042974 | K74: -0.6878808141 | L74: -0.6124011874 | M74: -0.5382881165 | N74: -0.4644430876 | O74: -0.3915364742 | P74: -0.3206837177 | Q74: -0.3186603189 | R74: -0.24895522 | S74: -0.1790655702 | T74: -0.1107060984 | U74: -0.0446074903 | V74: 0.01990162395 | W74: 0.08273691684 | X74: 0.2026374787 | Y74: 0.2317677885 | Z74: 0.259809494 | AA74: 0.3149710894 | AB74: 0.3681742847 | AC74: 0.4193653464 | AD74: 0.4684087634 | AE74: 0.5152142048 | AF74: 0.5597497225 | AG74: 0.6015841961 | AH74: 0.638525784 | AI74: 0.6737370491 | AJ74: 0.7051801682 | AK74: 0.7299072742 | AL74: 0.7483125329 | AM74: 0.7641500235 | AN74: 0.7746952772 | AO74: 0.7681481838 | AP74: 0.731272459 | AQ74: 0.7107458115 | AR74: 0.6432111859
A75: 0.2848708928 | D75: -1.200451612 | E75: -1.138530731 | F75: -1.074282765 | G75: -1.008569717 | H75: -0.9421252012 | I75: -0.8757274151 | J75: -0.8032302856 | K75: -0.6570276022 | L75: -0.5872775316 | M75: -0.5185990334 | N75: -0.4499759674 | O75: -0.3820908964 | P75: -0.3160517812 | Q75: -0.3141808808 | R75: -0.2399948239 | S75: -0.1823882163 | T75: -0.1181298345 | U75: -0.05581194907 | V75: 0.005176166072 | W75: 0.0647527352 | X75: 0.1789313406 | Y75: 0.2067814916 | Z75: 0.2336341143 | AA75: 0.2865888476 | AB75: 0.3378433585 | AC75: 0.3873456419 | AD75: 0.4349603951 | AE75: 0.4805950224 | AF75: 0.5242111683 | AG75: 0.565366745 | AH75: 0.6018346548 | AI75: 0.6367996335 | AJ75: 0.6681395173 | AK75: 0.6927592754 | AL75: 0.7109646797 | AM75: 0.726678431 | AN75: 0.7370120287 | AO75: 0.7296873331 | AP75: 0.691346705 | AQ75: 0.6699476838 | AR75: 0.6007670164
A76: 0.3103637993 | D76: -1.126013517 | E76: -1.070160985 | F76: -1.01190567 | G76: -0.9520936012 | H76: -0.8914400935 | I76: -0.830697 | J76: -0.7639077306 | K76: -0.6286119223 | L76: -0.5639975667 | M76: -0.500202477 | N76: -0.4362818897 | O76: -0.3729300201 | P76: -0.3112405837 | Q76: -0.3095024526 | R76: -0.2419894934 | S76: -0.1851947159 | T76: -0.1246731132 | U76: -0.0658165738 | V76: -0.008069192059 | W76: 0.04849123582 | X76: 0.1573197544 | Y76: 0.1839607358 | Z76: 0.2096848935 | AA76: 0.2605284154 | AB76: 0.3098940253 | AC76: 0.357732445 | AD76: 0.4039086699 | AE76: 0.4483265877 | AF76: 0.4909452796 | AG76: 0.5313168764 | AH76: 0.5671742558 | AI76: 0.6017079353 | AJ76: 0.6327539086 | AK76: 0.6570759416 | AL76: 0.6749363542 | AM76: 0.6903461814 | AN76: 0.7003096938 | AO76: 0.6921589375 | AP76: 0.6524427533 | AQ76: 0.6301420927 | AR76: 0.559437871
A77: 0.3360278904 | D77: -1.0453372 | E77: -0.9948897362 | F77: -0.9420015216 | G77: -0.8874868751 | H77: -0.8320305347 | I77: -0.7763577104 | J77: -0.7147247195 | K77: -0.5895040631 | L77: -0.5295857787 | M77: -0.4704376161 | N77: -0.4110632539 | O77: -0.352077961 | P77: -0.2944338322 | Q77: -0.2928041816 | R77: -0.2315761298 | S77: -0.1773529649 | T77: -0.1205065325 | U77: -0.06514135748 | V77: -0.01073200442 | W77: 0.04266056791 | X77: 0.1457042694 | Y77: 0.1710024625 | Z77: 0.1954590082 | AA77: 0.2438868284 | AB77: 0.2910293639 | AC77: 0.3368428349 | AD77: 0.381195128 | AE77: 0.4239889681 | AF77: 0.4651826024 | AG77: 0.5043275356 | AH77: 0.5391454101 | AI77: 0.57280761 | AJ77: 0.6031267047 | AK77: 0.6267738938 | AL77: 0.6439627409 | AM77: 0.6587759256 | AN77: 0.6681463122 | AO77: 0.6592106819 | AP77: 0.6186216474 | AQ77: 0.5956431627 | AR77: 0.5241308808
A78: 0.3615286052 | D78: -0.9939280748 | E78: -0.9482818246 | F78: -0.9001011252 | G78: -0.8502076268 | H78: -0.7992856503 | I78: -0.7480464578 | J78: -0.6908411384 | K78: -0.5739998221 | L78: -0.5180776715 | M78: -0.4626648724 | N78: -0.4068675637 | O78: -0.3513477743 | P78: -0.2970793545 | Q78: -0.295553416 | R78: -0.2387978733 | S78: -0.1848746091 | T78: -0.1309284568 | U78: -0.07824914157 | V78: -0.0263516549 | W78: 0.02470338717 | X78: 0.1235812977 | Y78: 0.1479332 | Z78: 0.1715037823 | AA78: 0.2182649672 | AB78: 0.2639015615 | AC78: 0.308373183 | AD78: 0.3515471816 | AE78: 0.3933218718 | AF78: 0.4336535931 | AG78: 0.4720863998 | AH78: 0.50629884 | AI78: 0.5394887328 | AJ78: 0.5694172978 | AK78: 0.5926221609 | AL78: 0.6092823744 | AM78: 0.6236017942 | AN78: 0.6324118972 | AO78: 0.6225093603 | AP78: 0.5804821253 | AQ78: 0.5564541817 | AR78: 0.4830710292
A79: 0.3870247006 | D79: -0.9416936636 | E79: -0.900431335 | F79: -0.8565505743 | G79: -0.8108762503 | H79: -0.7640885115 | I79: -0.7168866992 | J79: -0.6637176871 | K79: -0.554608047 | L79: -0.5023536682 | M79: -0.4504527152 | N79: -0.3980514705 | O79: -0.3458146453 | P79: -0.294677943 | Q79: -0.2932418883 | R79: -0.2400019467 | S79: -0.1884842515 | T79: -0.1372479498 | U79: -0.0871573016 | V79: -0.03771776706 | W79: 0.01101963595 | X79: 0.1056864709 | Y79: 0.1290654838 | Z79: 0.1517187059 | AA79: 0.1967345476 | AB79: 0.2407666147 | AC79: 0.2837802172 | AD79: 0.3256432712 | AE79: 0.3662506342 | AF79: 0.4055575728 | AG79: 0.4431032538 | AH79: 0.4765321612 | AI79: 0.5090597272 | AJ79: 0.5384053588 | AK79: 0.5609891415 | AL79: 0.576959908 | AM79: 0.5906314254 | AN79: 0.5987519026 | AO79: 0.5878554583 | AP79: 0.5445411205 | AQ79: 0.5194951892 | AR79: 0.4444281161
A80: 0.4124900103 | D80: -0.8936606646 | E80: -0.8564935923 | F80: -0.8166149259 | G80: -0.7748600245 | H80: -0.731910646 | I80: -0.6884582043 | J80: -0.6390228271 | K80: -0.5370533466 | L80: -0.4882014096 | M80: -0.4395485818 | N80: -0.390286684 | O80: -0.3410901129 | P80: -0.2928601503 | Q80: -0.2915074229 | R80: -0.2413506508 | S80: -0.1922427416 | T80: -0.1434135884 | U80: -0.09572275728 | V80: -0.04857113212 | W80: -0.001997321378 | X80: 0.08871348202 | Y80: 0.1111736596 | Z80: 0.1329582185 | AA80: 0.1763144583 | AB80: 0.2188098133 | AC80: 0.2604168057 | AD80: 0.3010037243 | AE80: 0.3404611051 | AF80: 0.3787438571 | AG80: 0.4153858721 | AH80: 0.4479968548 | AI80: 0.4798134863 | AJ80: 0.5085132122 | AK80: 0.5303997993 | AL80: 0.5455970168 | AM80: 0.5585330725 | AN80: 0.5658774972 | AO80: 0.5539214611 | AP80: 0.5092871785 | AQ80: 0.4831511676 | AR80: 0.40629372
A81: 0.4377242923 | D81: -0.8486520052 | E81: -0.8153471947 | F81: -0.7792268991 | G81: -0.7411445975 | H81: -0.7017887831 | I81: -0.6618468761 | J81: -0.6158934236 | K81: -0.5205714703 | L81: -0.4749009311 | M81: -0.4292761683 | N81: -0.3829398751 | O81: -0.3365816474 | P81: -0.2910722196 | Q81: -0.2897975445 | R81: -0.2424729913 | S81: -0.1961482465 | T81: -0.1490816623 | U81: -0.1036359817 | V81: -0.05863695219 | W81: -0.01410568319 | X81: 0.0728437081 | Y81: 0.09442531317 | Z81: 0.1153770462 | AA81: 0.1571354121 | AB81: 0.1981402189 | AC81: 0.2383732796 | AD81: 0.2777032256 | AE81: 0.3160153627 | AF81: 0.3532648683 | AG81: 0.3889805973 | AH81: 0.4207366109 | AI81: 0.4517940283 | AJ81: 0.4797880948 | AK81: 0.5009063482 | AL81: 0.5152520537 | AM81: 0.5273723006 | AN81: 0.5338613391 | AO81: 0.5207839012 | AP81: 0.4747995138 | AQ81: 0.4475126565 | AR81: 0.3687598705
A82: 0.4623993933 | D82: -0.8039386272 | E82: -0.774237752 | F82: -0.7416137457 | G82: -0.7069414854 | H82: -0.6709179878 | I82: -0.6342293024 | J82: -0.5914981365 | K82: -0.5023527145 | L82: -0.4596378505 | M82: -0.4168501496 | N82: -0.3732660115 | O82: -0.3295789063 | P82: -0.2866129577 | Q82: -0.2854095399 | R82: -0.2406871617 | S82: -0.1993471533 | T82: -0.1519380212 | U82: -0.108627528 | V82: -0.06569969654 | W82: -0.02314780839 | X82: 0.0601127483 | Y82: 0.08082480729 | Z82: 0.1009489894 | AA82: 0.1411098987 | AB82: 0.1806093752 | AC82: 0.2194418013 | AD82: 0.2574762404 | AE82: 0.2945921719 | AF82: 0.3307459056 | AG82: 0.3654623628 | AH82: 0.3962845504 | AI82: 0.4264938533 | AJ82: 0.4536882341 | AK82: 0.4739474654 | AL82: 0.4873581231 | AM82: 0.4985803664 | AN82: 0.5041434765 | AO82: 0.489928484 | AP82: 0.442671299 | AQ82: 0.4142400324 | AR82: 0.3336743414
A83: 0.4873628914 | D83: -0.7595248222 | E83: -0.7333465219 | F83: -0.7041172981 | G83: -0.6727414131 | H83: -0.6399290562 | I83: -0.6063677073 | J83: -0.5667176843 | K83: -0.4834704995 | L83: -0.443575263 | M83: -0.4035046101 | N83: -0.3625608981 | O83: -0.3214354515 | P83: -0.2808931172 | Q83: -0.2797561884 | R83: -0.237478137 | S83: -0.1867263317 | T83: -0.1534032524 | U83: -0.1121351048 | V83: -0.07121890038 | W83: -0.03060164489 | X83: 0.04901364818 | Y83: 0.06886047125 | Z83: 0.08815867454 | AA83: 0.1267180443 | AB83: 0.1646954566 | AC83: 0.2021028996 | AD83: 0.238809675 | AE83: 0.2746875584 | AF83: 0.3096954525 | AG83: 0.3433543444 | AH83: 0.3731764853 | AI83: 0.4024642408 | AJ83: 0.4287787378 | AK83: 0.4480914176 | AL83: 0.460475564 | AM83: 0.4707084596 | AN83: 0.4752575755 | AO83: 0.4598373473 | AP83: 0.4112882316 | AQ83: 0.3816511333 | AR83: 0.2992056012
A84: 0.5119758844 | D84: -0.7278903127 | E84: -0.7055451274 | F84: -0.6799430251 | G84: -0.6520554423 | H84: -0.6226330996 | I84: -0.592376411 | J84: -0.5559109449 | K84: -0.4785139263 | L84: -0.4414944351 | M84: -0.4039868414 | N84: -0.365457803 | O84: -0.3266993463 | P84: -0.288541466 | Q84: -0.2874821424 | R84: -0.2477849573 | S84: -0.2010128796 | T84: -0.1662124097 | U84: -0.1266307384 | V84: -0.08738385141 | W84: -0.0483408086 | X84: 0.02836269513 | Y84: 0.04753442481 | Z84: 0.06619329005 | AA84: 0.1035288274 | AB84: 0.1403548867 | AC84: 0.1767078638 | AD84: 0.2124531269 | AE84: 0.2474484742 | AF84: 0.2816556394 | AG84: 0.3145849407 | AH84: 0.3436864316 | AI84: 0.3723232448 | AJ84: 0.3979893327 | AK84: 0.4164952338 | AL84: 0.4279040396 | AM84: 0.437174499 | AN84: 0.4406701326 | AO84: 0.4237750173 | AP84: 0.3732958138 | AQ84: 0.3420276046 | AR84: 0.2565925717
A85: 0.5365458131 | D85: -0.6762571335 | E85: -0.6574203968 | F85: -0.6351661086 | G85: -0.6105103493 | H85: -0.5842252374 | I85: -0.5570177436 | J85: -0.5235527754 | K85: -0.4519130886 | L85: -0.4176501036 | M85: -0.3828120828 | N85: -0.3468902409 | O85: -0.3106691241 | P85: -0.2749093473 | Q85: -0.2739148438 | R85: -0.2366110831 | S85: -0.1943310648 | T85: -0.1605925113 | U85: -0.1228842214 | V85: -0.0856519565 | W85: -0.04858786985 | X85: 0.02427113988 | Y85: 0.0425177291 | Z85: 0.06028812006 | AA85: 0.09588668495 | AB85: 0.1310284287 | AC85: 0.165788874 | AD85: 0.2000311166 | AE85: 0.2335974276 | AF85: 0.2664569914 | AG85: 0.2981176376 | AH85: 0.3260081112 | AI85: 0.3535006642 | AJ85: 0.3780623376 | AK85: 0.3954078555 | AL85: 0.4055930376 | AM85: 0.413685143 | AN85: 0.4160035849 | AO85: 0.3978473544 | AP85: 0.3462287486 | AQ85: 0.3137610853 | AR85: 0.2266242653
A86: 0.5611513853 | D86: -0.6276041865 | E86: -0.6128351688 | F86: -0.5944283605 | G86: -0.5734789968 | H86: -0.55080688 | I86: -0.5271356106 | J86: -0.4971203506 | K86: -0.4318946004 | L86: -0.4008072019 | M86: -0.3688135147 | N86: -0.3355923891 | O86: -0.3020385802 | P86: -0.268987745 | Q86: -0.2680813074 | R86: -0.2337112576 | S86: -0.1963955909 | T86: -0.1608792245 | U86: -0.124603115 | V86: -0.0893034637 | W86: -0.05414364114 | X86: 0.01499751676 | Y86: 0.03236777335 | Z86: 0.04930231348 | AA86: 0.08328556269 | AB86: 0.1168593168 | AC86: 0.1501655728 | AD86: 0.1830555797 | AE86: 0.2153414935 | AF86: 0.2470036 | AG86: 0.2775405049 | AH86: 0.3043375313 | AI86: 0.3308009505 | AJ86: 0.354349494 | AK86: 0.3705611527 | AL86: 0.3794869483 | AM86: 0.3863524199 | AN86: 0.3874025643 | AO86: 0.367742002 | AP86: 0.3145202696 | AQ86: 0.2805123329 | AR86: 0.1908311099
A87: 0.5855466723 | D87: -0.5438349247 | E87: -0.5319646001 | F87: -0.516407609 | G87: -0.4982667267 | H87: -0.478355974 | I87: -0.4573941231 | J87: -0.4301884472 | K87: -0.3707221746 | L87: -0.3423562944 | M87: -0.313221097 | N87: -0.2828969061 | O87: -0.2521726787 | P87: -0.2217074037 | Q87: -0.2208608091 | R87: -0.1889536977 | S87: -0.1543325484 | T87: -0.1286803782 | U87: -0.09239713103 | V87: -0.05878422037 | W87: -0.02575021982 | X87: 0.03855418414 | Y87: 0.05469843 | Z87: 0.07043766975 | AA87: 0.1020419523 | AB87: 0.133208707 | AC87: 0.1642021239 | AD87: 0.1948642284 | AE87: 0.2249721587 | AF87: 0.2545309961 | AG87: 0.2830482721 | AH87: 0.3079559207 | AI87: 0.3325837553 | AJ87: 0.3543913066 | AK87: 0.3689712286 | AL87: 0.3763733208 | AM87: 0.3818089664 | AN87: 0.3815779984 | AO87: 0.3611040711 | AP87: 0.3081099391 | AQ87: 0.2737171352 | AR87: 0.1844898909
A88: 0.6094868779 | D88: -0.4660241902 | E88: -0.4570331872 | F88: -0.444303304 | G88: -0.4289536178 | H88: -0.411801815 | I88: -0.3935646117 | J88: -0.3691649437 | K88: -0.3153353631 | L88: -0.2896891534 | M88: -0.2632818818 | N88: -0.2356833518 | O88: -0.2076414675 | P88: -0.1797197759 | Q88: -0.1789399683 | R88: -0.1495701671 | S88: -0.1177014783 | T88: -0.1022201255 | U88: -0.06950977445 | V88: -0.03524508327 | W88: -0.002453852678 | X88: 0.05911481008 | Y88: 0.07435590029 | Z88: 0.08917397261 | AA88: 0.1188721135 | AB88: 0.1479519159 | AC88: 0.1769374907 | AD88: 0.2056571096 | AE88: 0.2338270992 | AF88: 0.2615006864 | AG88: 0.2881951928 | AH88: 0.3113826215 | AI88: 0.3343293667 | AJ88: 0.3545289636 | AK88: 0.3675736785 | AL88: 0.3735157847 | AM88: 0.377574563 | AN88: 0.3760920763 | AO88: 0.3547629118 | AP88: 0.3018354177 | AQ88: 0.2669727206 | AR88: 0.1778668463
A89: 0.6332551837 | D89: -0.3924992979 | E89: -0.3862635791 | F89: -0.3762576878 | G89: -0.363611877 | H89: -0.3491478264 | I89: -0.3335799277 | J89: -0.3119179308 | K89: -0.2635389864 | L89: -0.2405581176 | M89: -0.2167598754 | N89: -0.1917477846 | O89: -0.1662630439 | P89: -0.1408187449 | Q89: -0.1401082873 | R89: -0.1132762134 | S89: -0.08423034102 | T89: -0.04581234604 | U89: -0.04208739102 | V89: -0.01914734766 | W89: 0.01493315026 | X89: 0.07703049481 | Y89: 0.09192282706 | Z89: 0.1062657684 | AA89: 0.1347625256 | AB89: 0.1619851887 | AC89: 0.1891292632 | AD89: 0.2160568088 | AE89: 0.242363885 | AF89: 0.2682183981 | AG89: 0.2931491733 | AH89: 0.3146656454 | AI89: 0.3359757662 | AJ89: 0.354604274 | AK89: 0.3661286235 | AL89: 0.3706047833 | AM89: 0.3732787371 | AN89: 0.3705245554 | AO89: 0.3482765257 | AP89: 0.2952953875 | AQ89: 0.2598570585 | AR89: 0.1706638485
A90: 0.6573063731 | D90: -0.3180245459 | E90: -0.3140905797 | F90: -0.3064514399 | G90: -0.2962141633 | H90: -0.2841868401 | I90: -0.2710734606 | J90: -0.2519682944 | K90: -0.2087758034 | L90: -0.1883578897 | M90: -0.1670893878 | N90: -0.1445977539 | O90: -0.1216155887 | P90: -0.09861515462 | Q90: -0.09797388315 | R90: -0.07367824018 | S90: -0.04747741669 | T90: -0.01496056281 | U90: 0.0143772224 | V90: 0.03292247653 | W90: 0.041217044 | X90: 0.09298020601 | Y90: 0.1083723158 | Z90: 0.1230843365 | AA90: 0.151977703 | AB90: 0.1782588661 | AC90: 0.2041283995 | AD90: 0.2296861261 | AE90: 0.2542456388 | AF90: 0.2782538831 | AG90: 0.301363349 | AH90: 0.3211508393 | AI90: 0.3407521844 | AJ90: 0.3577432334 | AK90: 0.3676936328 | AL90: 0.3706631362 | AM90: 0.3719194829 | AN90: 0.3678766191 | AO90: 0.3447458148 | AP90: 0.2918538749 | AQ90: 0.2558885515 | AR90: 0.1668045074
A91: 0.6826332808 | D91: -0.2350308597 | E91: -0.231980294 | F91: -0.2255079895 | G91: -0.2166088521 | H91: -0.2060201913 | I91: -0.1944079995 | J91: -0.1770156771 | K91: -0.1377191246 | L91: -0.1191479415 | M91: -0.09999980032 | N91: -0.07973712683 | O91: -0.05894409493 | P91: -0.03789225593 | Q91: -0.03728955612 | R91: -0.01478854474 | S91: 0.009967010468 | T91: 0.03780548275 | U91: 0.06333999336 | V91: 0.08709987998 | W91: 0.1123781204 | X91: 0.1405703872 | Y91: 0.1467059553 | Z91: 0.153742522 | AA91: 0.1695972383 | AB91: 0.1954415441 | AC91: 0.2232460082 | AD91: 0.250115782 | AE91: 0.2752604485 | AF91: 0.2989360094 | AG91: 0.3210962713 | AH91: 0.3396185637 | AI91: 0.3577239513 | AJ91: 0.3731761277 | AK91: 0.3816661835 | AL91: 0.3832885921 | AM91: 0.3832681775 | AN91: 0.3781352639 | AO91: 0.3546124101 | AP91: 0.302746743 | AQ91: 0.2668952644 | AR91: 0.1794239581
A92: 0.7095097899 | D92: -0.1630718559 | E92: -0.1608848423 | F92: -0.1556676775 | G92: -0.1482702941 | H92: -0.13934955 | I92: -0.1295271218 | J92: -0.1141077355 | K92: -0.07909343392 | L92: -0.06268100441 | M92: -0.04576407745 | N92: -0.02776767127 | O92: -0.009235993028 | P92: 0.009628416039 | Q92: 0.01017195173 | R92: 0.03040982597 | S92: 0.05271250755 | T92: 0.07644660026 | U92: 0.09833960235 | V92: 0.1200224832 | W92: 0.1419322193 | X92: 0.1853364259 | Y92: 0.1967773885 | Z92: 0.2079366446 | AA92: 0.230098784 | AB92: 0.247374177 | AC92: 0.2589582801 | AD92: 0.2710595727 | AE92: 0.2885996103 | AF92: 0.3123159409 | AG92: 0.334002316 | AH92: 0.351544261 | AI92: 0.3682282567 | AJ92: 0.3821380138 | AK92: 0.3890696466 | AL92: 0.3891530335 | AM92: 0.3876672983 | AN92: 0.381216675 | AO92: 0.3568584919 | AP92: 0.3053612411 | AQ92: 0.26915133 | AR92: 0.1821249872
A93: 0.7367419004 | D93: -0.09850316495 | E93: -0.09623175114 | F93: -0.09152122587 | G93: -0.08500797302 | H93: -0.07722980529 | I93: -0.06874473393 | J93: -0.05488944799 | K93: -0.02349637076 | L93: -0.008965665475 | M93: 0.005950358231 | N93: 0.02189234272 | O93: 0.03835877404 | P93: 0.05522214249 | Q93: 0.05571143702 | R93: 0.07385323197 | S93: 0.09386716038 | T93: 0.1144480929 | U93: 0.1334102303 | V93: 0.1524021029 | W93: 0.1716010571 | X93: 0.2105769068 | Y93: 0.2202931494 | Z93: 0.2296917439 | AA93: 0.2485606223 | AB93: 0.2666938007 | AC93: 0.2860376835 | AD93: 0.3058284521 | AE93: 0.323366791 | AF93: 0.3314069211 | AG93: 0.3445387781 | AH93: 0.3623534739 | AI93: 0.3782289922 | AJ93: 0.3909274936 | AK93: 0.3964232206 | AL93: 0.394985199 | AM93: 0.3920216262 | AN93: 0.3842246532 | AO93: 0.3589584827 | AP93: 0.307714045 | AQ93: 0.2710184157 | AR93: 0.1842788756
A94: 0.7633855939 | D94: -0.04201841354 | E94: -0.03834294155 | F94: -0.03300558776 | G94: -0.0263694562 | H94: -0.01881481335 | I94: -0.01081712544 | J94: 0.002247251337 | K94: 0.0312930271 | L94: 0.04454940557 | M94: 0.05791642144 | N94: 0.07219354063 | O94: 0.08697610348 | P94: 0.1022437215 | Q94: 0.1026947349 | R94: 0.1191896051 | S94: 0.1374756694 | T94: 0.1557189226 | U94: 0.172317028 | V94: 0.1889840662 | W94: 0.2058401853 | X94: 0.2399985194 | Y94: 0.2485241741 | Z94: 0.2567721605 | AA94: 0.2733805776 | AB94: 0.2902282774 | AC94: 0.3080224097 | AD94: 0.3252730966 | AE94: 0.3417916894 | AF94: 0.3592142761 | AG94: 0.3737433851 | AH94: 0.3752550781 | AI94: 0.3891834319 | AJ94: 0.4018973112 | AK94: 0.4067204595 | AL94: 0.4041096866 | AM94: 0.3998722732 | AN94: 0.3908806443 | AO94: 0.3648794889 | AP94: 0.3141230643 | AQ94: 0.2770816088 | AR94: 0.1908711195
A95: 0.7883136868 | D95: 0.003641095012 | E95: 0.009767301381 | F95: 0.01672986709 | G95: 0.02445548214 | H95: 0.03273810819 | I95: 0.04119460657 | J95: 0.05438183993 | K95: 0.08274615556 | L95: 0.09560599923 | M95: 0.1081168801 | N95: 0.1213507727 | O95: 0.1350838095 | P95: 0.1494781971 | Q95: 0.1499211043 | R95: 0.1656440198 | S95: 0.1834208369 | T95: 0.2004407495 | U95: 0.215156883 | V95: 0.2299092412 | W95: 0.2448192537 | X95: 0.2749410272 | Y95: 0.2824917734 | Z95: 0.2898180187 | AA95: 0.3045946956 | AB95: 0.3196585178 | AC95: 0.3352841735 | AD95: 0.3505130112 | AE95: 0.3654359877 | AF95: 0.3814622164 | AG95: 0.3959011436 | AH95: 0.4084683359 | AI95: 0.4105532467 | AJ95: 0.4131612182 | AK95: 0.4189931154 | AL95: 0.4164327681 | AM95: 0.4116558433 | AN95: 0.401987642 | AO95: 0.3756790757 | AP95: 0.3256145418 | AQ95: 0.2887549698 | AR95: 0.2035335451
A96: 0.8123080134 | D96: 0.03786117211 | E96: 0.04637446254 | F96: 0.05493844301 | G96: 0.0637448132 | H96: 0.07274354249 | I96: 0.08163104206 | J96: 0.09493799508 | K96: 0.1226591542 | L96: 0.1350314915 | M96: 0.1466849893 | N96: 0.1589051485 | O96: 0.1715623885 | P96: 0.1849191934 | Q96: 0.1853381693 | R96: 0.1999114305 | S96: 0.2163388133 | T96: 0.2316721827 | U96: 0.2447883636 | V96: 0.2579657435 | W96: 0.2713118196 | X96: 0.2982492149 | Y96: 0.3050396144 | Z96: 0.311645478 | AA96: 0.3249877393 | AB96: 0.3385965228 | AC96: 0.3525362909 | AD96: 0.3662213087 | AE96: 0.3796941936 | AF96: 0.3937912583 | AG96: 0.4069470763 | AH96: 0.4182400107 | AI96: 0.4293196499 | AJ96: 0.4370830953 | AK96: 0.4257271886 | AL96: 0.4229236841 | AM96: 0.4175989926 | AN96: 0.4069557488 | AO96: 0.3798573017 | AP96: 0.3300852776 | AQ96: 0.2926386595 | AR96: 0.2074187994
A97: 0.836279273 | D97: 0.06608784944 | E97: 0.07739254832 | F97: 0.08800856024 | G97: 0.09838602692 | H97: 0.1086324453 | I97: 0.1185266525 | J97: 0.1325467378 | K97: 0.1607925594 | L97: 0.1733368635 | M97: 0.1846471429 | N97: 0.1963116527 | O97: 0.2083619386 | P97: 0.2212395519 | Q97: 0.2216591686 | R97: 0.235765174 | S97: 0.2517942488 | T97: 0.2661364973 | U97: 0.2778244019 | V97: 0.2895503342 | W97: 0.3014340997 | X97: 0.3254165351 | Y97: 0.3314754069 | Z97: 0.337375313 | AA97: 0.3493013382 | AB97: 0.3614869714 | AC97: 0.3739080131 | AD97: 0.386133492 | AE97: 0.3981826901 | AF97: 0.4105627239 | AG97: 0.4221453369 | AH97: 0.4315692782 | AI97: 0.4414880276 | AJ97: 0.4482123554 | AK97: 0.4491766095 | AL97: 0.4301089048 | AM97: 0.4249756634 | AN97: 0.4140573442 | AO97: 0.3864625692 | AP97: 0.3371655643 | AQ97: 0.299371928 | AR97: 0.2143472284
A98: 0.8605198264 | D98: 0.08885905147 | E98: 0.1029653475 | F98: 0.1157390475 | G98: 0.1278681606 | H98: 0.1396101564 | I98: 0.1508263052 | J98: 0.1659313589 | K98: 0.1955524236 | L98: 0.2087906301 | M98: 0.2202032208 | N98: 0.2317030877 | O98: 0.2435997427 | P98: 0.2565175593 | Q98: 0.2569602728 | R98: 0.2712401152 | S98: 0.2877526283 | T98: 0.3017373681 | U98: 0.3121696413 | V98: 0.3225758672 | W98: 0.3331115842 | X98: 0.3543660343 | Y98: 0.3597286642 | Z98: 0.3649473786 | AA98: 0.3754985929 | AB98: 0.3863259554 | AC98: 0.3973563612 | AD98: 0.4082016647 | AE98: 0.4188836515 | AF98: 0.4297836125 | AG98: 0.4399206936 | AH98: 0.4476860166 | AI98: 0.4557590783 | AJ98: 0.4610354006 | AK98: 0.4606291056 | AL98: 0.453744024 | AM98: 0.4320389926 | AN98: 0.4219606519 | AO98: 0.3942234516 | AP98: 0.3455078602 | AQ98: 0.3073469102 | AR98: 0.2226277143
A99: 0.8843994141 | D99: 0.1061297581 | E99: 0.122376442 | F99: 0.1368088871 | G99: 0.1503024995 | H99: 0.1632356644 | I99: 0.1755386889 | J99: 0.1916022152 | K99: 0.2225874513 | L99: 0.2365565151 | M99: 0.2481959611 | N99: 0.2596698999 | O99: 0.2715761364 | P99: 0.2847242355 | Q99: 0.2851959765 | R99: 0.2998837531 | S99: 0.3171979487 | T99: 0.3311499059 | U99: 0.3405415714 | V99: 0.3498311043 | W99: 0.3592186272 | X99: 0.3781417906 | Y99: 0.3829002678 | Z99: 0.3875235021 | AA99: 0.3968683481 | AB99: 0.4065125287 | AC99: 0.4163498878 | AD99: 0.4259919822 | AE99: 0.4354714155 | AF99: 0.445132643 | AG99: 0.454028666 | AH99: 0.4604392648 | AI99: 0.4669848084 | AJ99: 0.4708513916 | AK99: 0.4685629308 | AL99: 0.460480392 | AM99: 0.4517533183 | AN99: 0.4262368381 | AO99: 0.3987882137 | AP99: 0.3506193161 | AQ99: 0.3117095232 | AR99: 0.2266826034
A100: 0.9075971842 | D100: 0.1190685779 | E100: 0.1363639981 | F100: 0.1515567601 | G100: 0.1656400561 | H100: 0.1790700108 | I100: 0.1918220222 | J100: 0.2083482295 | K100: 0.2399858832 | L100: 0.2542965114 | M100: 0.2659411728 | N100: 0.2773222327 | O100: 0.2891112566 | P100: 0.3023503125 | Q100: 0.302842319 | R100: 0.3177865744 | S100: 0.3357549012 | T100: 0.3497416675 | U100: 0.3582721651 | V100: 0.3666310906 | W100: 0.3750610352 | X100: 0.3920337856 | Y100: 0.3962842524 | Z100: 0.4004049599 | AA100: 0.4087291956 | AB100: 0.417373091 | AC100: 0.4262087941 | AD100: 0.4348325133 | AE100: 0.4432868063 | AF100: 0.451910764 | AG100: 0.4597465992 | AH100: 0.4649916887 | AI100: 0.470271647 | AJ100: 0.4728569388 | AK100: 0.468711257 | AL100: 0.4584109783 | AM100: 0.4482843578 | AN100: 0.429708451 | AO100: 0.395265758 | AP100: 0.3478042781 | AQ100: 0.3065030277 | AR100: 0.2198671997
A101: 0.9300987124 | D101: 0.1284269243 | E101: 0.1452992409 | F101: 0.1599704772 | G101: 0.1734706163 | H101: 0.1862784922 | I101: 0.1983775496 | J101: 0.2144467682 | K101: 0.2451740056 | L101: 0.2588901222 | M101: 0.2698182166 | N101: 0.2805933654 | O101: 0.2917244732 | P101: 0.3043483198 | Q101: 0.3048257828 | R101: 0.319124341 | S101: 0.3364505768 | T101: 0.3496771455 | U101: 0.3573601544 | V101: 0.3648696542 | W101: 0.3724525571 | X101: 0.3877156079 | Y101: 0.391540885 | Z101: 0.3952471614 | AA101: 0.402733475 | AB101: 0.4105226398 | AC101: 0.4184895754 | AD101: 0.42625314 | AE101: 0.4338409007 | AF101: 0.4415488839 | AG101: 0.4484503269 | AH101: 0.4525422156 | AI101: 0.4566040635 | AJ101: 0.4578565061 | AK101: 0.4515615702 | AL101: 0.438380003 | AM101: 0.4254688621 | AN101: 0.4100777209 | AO101: 0.372164309 | AP101: 0.3236254752 | AQ101: 0.2785481513 | AR101: 0.1873155087
A102: 0.9519627094 | D102: 0.1344497502 | E102: 0.1494448334 | F102: 0.1622876674 | G102: 0.1739794612 | H102: 0.1849774271 | I102: 0.19525069 | J102: 0.2099414319 | K102: 0.238270402 | L102: 0.250507772 | M102: 0.2601421475 | N102: 0.2697640955 | O102: 0.2798065543 | P102: 0.2913450897 | Q102: 0.2917878628 | R102: 0.3049521744 | S102: 0.3211154342 | T102: 0.3333465755 | U102: 0.3401914835 | V102: 0.3468826711 | W102: 0.353658855 | X102: 0.3673018217 | Y102: 0.3707281649 | Z102: 0.3740462959 | AA102: 0.3807472289 | AB102: 0.3877286315 | AC102: 0.3948744833 | AD102: 0.4018226862 | AE102: 0.4085829258 | AF102: 0.415409714 | AG102: 0.421387285 | AH102: 0.4242342412 | AI102: 0.4269964993 | AJ102: 0.426702112 | AK102: 0.4177264273 | AL102: 0.4010675848 | AM102: 0.3843774199 | AN102: 0.3652535677 | AO102: 0.3264792264 | AP102: 0.2792392373 | AQ102: 0.224791497 | AR102: 0.125347659
A103: 0.9723427296 | D103: 0.1361217797 | E103: 0.147823438 | F103: 0.1574855596 | G103: 0.166040808 | H103: 0.1738936752 | I103: 0.1809694022 | J103: 0.1932613403 | K103: 0.2176018953 | L103: 0.2273745388 | M103: 0.2353127748 | N103: 0.2434475869 | O103: 0.2521468401 | P103: 0.2624543011 | Q103: 0.2628612518 | R103: 0.2749437094 | S103: 0.290366292 | T103: 0.3020199835 | U103: 0.3080444336 | V103: 0.3139053583 | W103: 0.3198535144 | X103: 0.3318333924 | Y103: 0.3348365426 | Z103: 0.3377369344 | AA103: 0.3435863256 | AB103: 0.3497122824 | AC103: 0.3559955657 | AD103: 0.3620546758 | AE103: 0.3678930104 | AF103: 0.3737563789 | AG103: 0.3786646426 | AH103: 0.3799888492 | AI103: 0.3811382651 | AJ103: 0.3787665665 | AK103: 0.366160959 | AL103: 0.3440781236 | AM103: 0.3224713206 | AN103: 0.2974953353 | AO103: 0.2549809217 | AP103: 0.1960967928 | AQ103: 0.1407143027 | AR103: 0.02835144289
A104: 0.9901642203 | D104: 0.130120486 | E104: 0.1361604035 | F104: 0.140100956 | G104: 0.1427593678 | H104: 0.1444537789 | I104: 0.1451624185 | J104: 0.1524405181 | K104: 0.1684496999 | L104: 0.1724615842 | M104: 0.1767504662 | N104: 0.1821540594 | O104: 0.1885502338 | P104: 0.1969227344 | Q104: 0.1972765177 | R104: 0.2081439495 | S104: 0.2239361256 | T104: 0.2367497236 | U104: 0.2424156815 | V104: 0.2477975488 | W104: 0.2532336116 | X104: 0.2641509175 | Y104: 0.266828239 | Z104: 0.2693820298 | AA104: 0.2744981349 | AB104: 0.2799806297 | AC104: 0.2856650651 | AD104: 0.2909978628 | AE104: 0.296031028 | AF104: 0.3011664748 | AG104: 0.3050840497 | AH104: 0.3048256338 | AI104: 0.3042944372 | AJ104: 0.2994503677 | AK104: 0.2819218636 | AL104: 0.2536649406 | AM104: 0.2262039632 | AN104: 0.1947070509 | AO104: 0.1465022266 | AP104: 0.1137070283 | AQ104: 0.01640594192 | AR104: -0.113679342
A105: 1 | D105: 0.1178060845 | E105: 0.1167365611 | F105: 0.1127060428 | G105: 0.1062324643 | H105: 0.09728468955 | I105: 0.08572467417 | J105: 0.08142415434 | K105: 0.07318770885 | L105: 0.05688295141 | M105: 0.04669863731 | N105: 0.03966264054 | O105: 0.03350667655 | P105: 0.0271142181 | Q105: 0.02684922516 | R105: 0.02036427334 | S105: 0.01220982522 | T105: 0.008306272328 | U105: 0.009422975592 | V105: 0.01139370911 | W105: 0.0140247969 | X105: 0.0208839532 | Y105: 0.0229407046 | Z105: 0.02506455034 | AA105: 0.02953827567 | AB105: 0.03395976499 | AC105: 0.03835257888 | AD105: 0.04283249751 | AE105: 0.04710969701 | AF105: 0.05076706782 | AG105: 0.05348726362 | AH105: 0.05104378611 | AI105: 0.04709522054 | AJ105: 0.03719982132 | AK105: 0.01207535528 | AL105: -0.05104648322 | AM105: -0.1052128151 | AN105: -0.1661527604 | AO105: -0.2488953769 | AP105: -0.3543018103 | AQ105: -0.4459840953 | AR105: -0.6469556689

Sheet BEM
C1: alpha | D1: =TRANSPOSE(plot!R15:R19) -> -2.026583512 | E1: 2.134074001 | F1: 6.503443805 | G1: 19 | H1: 21
C2: cl | D2: 0.00177356927 | E2: 0.4912135889 | F2: 1.002001046 | G2: 2.413922127 | H2: 2.629522118
C3: cd | D3: 0 | E3: 0 | F3: 0 | G3: 0 | H3: 0
C4: cm | D4: -0.06774792445 | E4: -0.07264258712 | F4: -0.07698816538 | G4: -0.08412053364 | H4: -0.08446660398
A5: x | B5: y | C5: z | D5: Cp | E5: Cp | F5: Cp | G5: Cp | H5: Cp
A6: =IMREAL(C6) -> 0.994975 | B6: =IMAGINARY(C6) -> 0.0033576 | C6: 0.994975+0.0033576i | D6: -0.2340598186 | E6: -0.237000758 | F6: -0.2260780163 | G6: -0.1192242821 | H6: -0.09262603068
A7: =IMREAL(C7) -> 0.9804397 | B7: =IMAGINARY(C7) -> 0.0058449 | C7: 0.9804397+0.0058449i | D7: -0.03190591386 | E7: -0.04651829092 | F7: -0.05004372061 | G7: 0.006248195845 | H7: 0.02392806155
A8: 0.9598369 | B8: 0.00909325 | C8: 0.9598369+0.00909325i | D8: -0.05322047289 | E8: -0.07778846177 | F8: -0.09154857629 | G8: -0.06122679172 | H8: -0.04701565994
A9: 0.9368984 | B9: 0.01240455 | C9: 0.9368984+0.01240455i | D9: -0.07007657671 | E9: -0.1036279921 | F9: -0.1267272821 | G9: -0.1206930493 | H9: -0.1098177715
A10: 0.91253005 | B10: 0.0156785 | C10: 0.91253005+0.0156785i | D10: -0.08405860133 | E10: -0.1259851407 | F10: -0.1578739259 | G10: -0.1751618683 | H10: -0.1675603871
A11: 0.88738075 | B11: 0.0188819 | C11: 0.88738075+0.0188819i | D11: -0.09737183913 | E11: -0.1473238817 | F11: -0.1876902129 | G11: -0.2277781516 | H11: -0.2234226791
A12: 0.86197015 | B12: 0.0219941 | C12: 0.86197015+0.0219941i | D12: -0.1146621057 | E12: -0.1726283334 | F12: -0.2214597836 | G12: -0.2843116924 | H12: -0.2831967169
A13: 0.83623005 | B13: 0.02496595 | C13: 0.83623005+0.02496595i | D13: -0.1264426819 | E13: -0.1920999175 | F13: -0.2491603644 | G13: -0.3347224949 | H13: -0.3369257876
A14: 0.81037015 | B14: 0.0278154 | C14: 0.81037015+0.0278154i | D14: -0.1393996388 | E14: -0.2128126826 | F14: -0.2782005034 | G14: -0.3869027103 | H14: -0.3925097566
A15: 0.78462795 | B15: 0.0305201 | C15: 0.78462795+0.0305201i | D15: -0.1544821904 | E15: -0.2358183538 | F15: -0.3097301259 | G15: -0.4422106734 | H15: -0.451328445
A16: 0.7590735 | B16: 0.0330178 | C16: 0.7590735+0.0330178i | D16: -0.1627054904 | E16: -0.2515337775 | F16: -0.3336280196 | G16: -0.4895969215 | H16: -0.5022764812
A17: 0.73356335 | B17: 0.03539025 | C17: 0.73356335+0.03539025i | D17: -0.1764244836 | E17: -0.2733005464 | F17: -0.3641556954 | G17: -0.545121624 | H17: -0.5615708514
A18: 0.70797655 | B18: 0.0375844 | C18: 0.70797655+0.0375844i | D18: -0.1858216942 | E18: -0.2906139094 | F18: -0.3901866125 | G18: -0.5965613903 | H18: -0.6169165692
A19: 0.6824574 | B19: 0.03959155 | C19: 0.6824574+0.03959155i | D19: -0.1928215103 | E19: -0.3055078811 | F19: -0.4138509637 | G19: -0.6461967121 | H19: -0.6705995991
A20: 0.6569945 | B20: 0.04144025 | C20: 0.6569945+0.04144025i | D20: -0.2027412596 | E20: -0.3238348981 | F20: -0.4415235217 | G20: -0.7015701749 | H20: -0.7302939602
A21: 0.6314082 | B21: 0.0430906 | C21: 0.6314082+0.0430906i | D21: -0.2077819312 | E21: -0.3371187723 | F21: -0.4640907132 | G21: -0.7522843814 | H21: -0.7854827272
A22: 0.60581895 | B22: 0.0445513 | C22: 0.60581895+0.0445513i | D22: -0.2119880597 | E22: -0.3497749176 | F22: -0.486326924 | G22: -0.8038980285 | H22: -0.841809641
A23: 0.5803426 | B23: 0.0458182 | C23: 0.5803426+0.0458182i | D23: -0.2156939698 | E23: -0.3621734039 | F23: -0.5086417746 | G23: -0.8569370071 | H23: -0.8998186006
A24: 0.5548592 | B24: 0.0468818 | C24: 0.5548592+0.0468818i | D24: -0.2162110453 | E24: -0.3713595814 | F24: -0.5278284631 | G24: -0.9076757722 | H24: -0.9557336341
A25: 0.52925355 | B25: 0.04775765 | C25: 0.52925355+0.04775765i | D25: -0.2154375535 | E25: -0.3795146282 | F25: -0.5463663362 | G25: -0.9593918457 | H25: -1.012945349
A26: 0.5036204 | B26: 0.0484443 | C26: 0.5036204+0.0484443i | D26: -0.2116879643 | E26: -0.3847056971 | F26: -0.5620760929 | G26: -1.009324796 | H26: -1.068622586
A27: 0.4780555 | B27: 0.04897975 | C27: 0.4780555+0.04897975i | D27: -0.210225622 | E27: -0.3929634023 | F27: -0.5817859185 | G27: -1.066376514 | H27: -1.131951983
A28: 0.45237825 | B28: 0.0493563 | C28: 0.45237825+0.0493563i | D28: -0.2088602371 | E28: -0.4019591735 | F28: -0.6030628355 | G28: -1.128063303 | H28: -1.200476435
A29: 0.42661395 | B29: 0.04954285 | C29: 0.42661395+0.04954285i | D29: -0.2015438838 | E29: -0.4047152759 | F29: -0.6179800635 | G29: -1.184088961 | H29: -1.263589299
A30: 0.40059155 | B30: 0.04960745 | C30: 0.40059155+0.04960745i | D30: -0.1985117655 | E30: -0.4133356652 | F30: -0.640641002 | G30: -1.254074756 | H30: -1.341718057
A31: 0.37447695 | B31: 0.04953095 | C31: 0.37447695+0.04953095i | D31: -0.1947476565 | E31: -0.4220655785 | F31: -0.6645551486 | G31: -1.329796628 | H31: -1.426427873
A32: 0.34840155 | B32: 0.04932445 | C32: 0.34840155+0.04932445i | D32: -0.19279662 | E32: -0.4340958628 | F32: -0.6936534568 | G32: -1.417496036 | H32: -1.524336179
A33: 0.32244545 | B33: 0.0489785 | C33: 0.32244545+0.0489785i | D33: -0.1917572414 | E33: -0.4485693706 | F33: -0.7271939522 | G33: -1.51711857 | H33: -1.635541975
A34: 0.29680685 | B34: 0.04847705 | C34: 0.29680685+0.04847705i | D34: -0.1900680646 | E34: -0.4637970517 | F34: -0.7634229796 | G34: -1.627124373 | H34: -1.758592791
A35: 0.27128575 | B35: 0.04781985 | C35: 0.27128575+0.04781985i | D35: -0.1915343154 | E35: -0.4849913363 | F35: -0.809229853 | G35: -1.759964252 | H35: -1.906885755
A36: 0.245934 | B36: 0.04694185 | C36: 0.245934+0.04694185i | D36: -0.1888618048 | E36: -0.503596778 | F36: -0.8548274427 | G36: -1.903094171 | H36: -2.067565987
A37: 0.2209945 | B37: 0.04584565 | C37: 0.2209945+0.04584565i | D37: -0.1844672844 | E37: -0.5228991967 | F37: -0.9046156889 | G37: -2.064993424 | H37: -2.249852701
A38: 0.1962527 | B38: 0.0445089 | C38: 0.1962527+0.0445089i | D38: -0.1772594419 | E38: -0.5424688414 | F38: -0.959212962 | G38: -2.251028265 | H38: -2.460071576
A39: 0.17169275 | B39: 0.04294345 | C39: 0.17169275+0.04294345i | D39: -0.1710581691 | E39: -0.5685552351 | F39: -1.028072258 | G39: -2.482785098 | H39: -2.722053391
A40: 0.14747075 | B40: 0.0411387 | C40: 0.14747075+0.0411387i | D40: -0.1675404739 | E40: -0.6054806293 | F40: -1.119279043 | G40: -2.783821594 | H40: -3.062344956
A41: 0.12336475 | B41: 0.03898875 | C41: 0.12336475+0.03898875i | D41: -0.1600191959 | E41: -0.6480262127 | F41: -1.230642604 | G41: -3.168248009 | H41: -3.498575984
A42: 0.0997832 | B42: 0.0364839 | C42: 0.0997832+0.0364839i | D42: -0.155355947 | E42: -0.7111011413 | F42: -1.38875982 | G42: -3.711694588 | H42: -4.115943888
A43: 0.0777344 | B43: 0.03360405 | C43: 0.0777344+0.03360405i | D43: -0.1459605767 | E43: -0.7900937412 | F43: -1.595938655 | G43: -4.455918074 | H43: -4.964884017
A44: 0.0585953 | B44: 0.0304774 | C44: 0.0585953+0.0304774i | D44: -0.1272741478 | E44: -0.882151482 | F44: -1.855576985 | G44: -5.445690159 | H44: -6.099668121
A45: 0.0433876 | B45: 0.02741265 | C45: 0.0433876+0.02741265i | D45: -0.1110421819 | E45: -1.007542573 | F45: -2.203463744 | G45: -6.79453793 | H45: -7.650180498
A46: 0.0319211 | B46: 0.0245087 | C46: 0.0319211+0.0245087i | D46: -0.08521710883 | E46: -1.148217648 | F46: -2.619629652 | G46: -8.501737843 | H46: -9.622024634
A47: 0.023319 | B47: 0.0217311 | C47: 0.023319+0.0217311i | D47: -0.0370473748 | E47: -1.283555057 | F47: -3.080526029 | G47: -10.56561545 | H47: -12.02101163
A48: 0.01673945 | B48: 0.0189874 | C48: 0.01673945+0.0189874i | D48: 0.05684061522 | E48: -1.36284758 | F48: -3.506127771 | G48: -12.82484073 | H48: -14.67387529
A49: 0.0115625 | B49: 0.0162305 | C49: 0.0115625+0.0162305i | D49: 0.1913727824 | E49: -1.391876658 | F49: -3.917472793 | G49: -15.42161119 | H49: -17.75183759
A50: 0.00748685 | B50: 0.01348395 | C50: 0.00748685+0.01348395i | D50: 0.3471287734 | E50: -1.430180083 | F50: -4.468834197 | G50: -19.05413667 | H50: -22.07303973
A51: 0.00439645 | B51: 0.0106415 | C51: 0.00439645+0.0106415i | D51: 0.5650327509 | E51: -1.302445711 | F51: -4.806096426 | G51: -22.68393458 | H51: -26.47166397
A52: 0.00221015 | B52: 0.0076204 | C52: 0.00221015+0.0076204i | D52: 0.8108346721 | E52: -0.8799874128 | F52: -4.505665647 | G52: -24.41613505 | H52: -28.74372219
A53: 0.0008357 | B53: 0.0045321 | C53: 0.0008357+0.0045321i | D53: 0.9717789827 | E53: -0.3345745292 | F53: -3.775797604 | G53: -24.41435728 | H53: -29.02549886
A54: 0.00017015 | B54: 0.00149715 | C54: 0.00017015+0.00149715i | D54: 0.9872447056 | E54: 0.1833424281 | F54: -2.865530117 | G54: -23.21320805 | H54: -27.89525806
A55: 0.00013605 | B55: -0.00149445 | C55: 0.00013605-0.00149445i | D55: 0.8456440755 | E55: 0.6088759675 | F55: -1.859869945 | G55: -20.7519843 | H55: -25.24218792
A56: 0.0007291 | B56: -0.0045224 | C56: 0.0007291-0.0045224i | D56: 0.564557635 | E56: 0.8900486536 | F56: -0.8791438812 | G56: -17.30652401 | H56: -21.36010589
A57: 0.0020199 | B57: -0.00760965 | C57: 0.0020199-0.00760965i | D57: 0.1845391079 | E57: 0.9984150128 | F57: -0.06014434778 | G57: -13.50085049 | H57: -16.97118068
A58: 0.00411185 | B58: -0.0106472 | C58: 0.00411185-0.0106472i | D58: -0.1963704224 | E58: 0.9490120952 | F58: 0.5281453582 | G58: -9.609709448 | H58: -12.37648269
A59: 0.0070983 | B59: -0.01351075 | C59: 0.0070983-0.01351075i | D59: -0.4269228239 | E59: 0.8138121377 | F59: 0.8614660626 | G59: -5.985148099 | H59: -7.984862489
A60: 0.01106135 | B60: -0.01626435 | C60: 0.01106135-0.01626435i | D60: -0.5208181709 | E60: 0.6685837529 | F60: 0.9860696441 | G60: -3.345230044 | H60: -4.723851653
A61: 0.01610845 | B61: -0.01902525 | C61: 0.01610845-0.01902525i | D61: -0.5926588675 | E61: 0.5269339777 | F61: 0.993449049 | G61: -1.706786023 | H61: -2.672403941
A62: 0.022512 | B62: -0.02177875 | C62: 0.022512-0.02177875i | D62: -0.6201475841 | E62: 0.4038204123 | F62: 0.9414592966 | G62: -0.6168706816 | H62: -1.280219604
A63: 0.0308621 | B63: -0.0245581 | C63: 0.0308621-0.0245581i | D63: -0.5888273253 | E63: 0.3121956972 | F63: 0.8616903287 | G63: 0.1179311047 | H63: -0.3144297737
A64: 0.04198345 | B64: -0.0274605 | C64: 0.04198345-0.0274605i | D64: -0.5373128903 | E64: 0.2417187849 | F64: 0.7712461519 | G64: 0.5751642592 | H64: 0.3091503997
A65: 0.056805 | B65: -0.03053435 | C65: 0.056805-0.03053435i | D65: -0.4841633872 | E65: 0.1847514109 | F65: 0.6789102127 | G65: 0.8347594048 | H65: 0.6845457408
A66: 0.07573725 | B66: -0.03370435 | C66: 0.07573725-0.03370435i | D66: -0.4383165115 | E66: 0.137563865 | F66: 0.5913829002 | G66: 0.9586875438 | H66: 0.8855960452
A67: 0.09797945 | B67: -0.03679245 | C67: 0.09797945-0.03679245i | D67: -0.4101263653 | E67: 0.09434840919 | F67: 0.5119300672 | G67: 0.9982051356 | H67: 0.9738564218
A68: 0.1219502 | B68: -0.03955585 | C68: 0.1219502-0.03955585i | D68: -0.3912939097 | E68: 0.05851194869 | F68: 0.4448350681 | G68: 0.9933316665 | H68: 0.9993392327
A69: 0.1465281 | B69: -0.0418938 | C69: 0.1465281-0.0418938i | D69: -0.3740587972 | E69: 0.03217213026 | F69: 0.3910591011 | G69: 0.96844883 | H69: 0.993659309
A70: 0.1716144 | B70: -0.0438733 | C70: 0.1716144-0.0438733i | D70: -0.360335306 | E70: 0.01067944304 | F70: 0.3459748795 | G70: 0.9350680896 | H70: 0.972988636
A71: =IMREAL(C71) -> 0.19697335 | B71: =IMAGINARY(C71) -> -0.0455196 | C71: 0.19697335-0.0455196i | D71: -0.3466887761 | E71: -0.005477490272 | F71: 0.3087507633 | G71: 0.8987018112 | H71: 0.9451968459
A72: 0.2221771 | B72: -0.0468776 | C72: 0.2221771-0.0468776i | D72: -0.3387854995 | E72: -0.02164954518 | F72: 0.2750922598 | G72: 0.8618904982 | H72: 0.9143844514
A73: 0.24713855 | B73: -0.04794495 | C73: 0.24713855-0.04794495i | D73: -0.3294508675 | E73: -0.03350572066 | F73: 0.2472460231 | G73: 0.8263526246 | H73: 0.8829408996
A74: 0.272208 | B74: -0.04876485 | C74: 0.272208-0.04876485i | D74: -0.3190760148 | E74: -0.04222754747 | F74: 0.2236649748 | G74: 0.7921500872 | H74: 0.8515380745
A75: 0.29761735 | B75: -0.0493888 | C75: 0.29761735-0.0493888i | D75: -0.3131330708 | E75: -0.05275500934 | F75: 0.2001684716 | G75: 0.7582336191 | H75: 0.8197325761
A76: 0.32319585 | B76: -0.0497802 | C76: 0.32319585-0.0497802i | D76: -0.3030722265 | E76: -0.058489656 | F76: 0.1815958282 | G76: 0.7263799671 | H76: 0.7891103367
A77: 0.34877825 | B77: -0.04999145 | C77: 0.34877825-0.04999145i | D77: -0.2963265258 | E77: -0.06559311971 | F77: 0.163123639 | G77: 0.6953383291 | H77: 0.7589252877
A78: 0.37427665 | B78: -0.05004465 | C78: 0.37427665-0.05004465i | D78: -0.2955598849 | E78: -0.07655862444 | F78: 0.1425356688 | G78: 0.6641713508 | H78: 0.7285006108
A79: 0.39975735 | B79: -0.0498896 | C79: 0.39975735-0.0498896i | D79: -0.2935613288 | E79: -0.08570050769 | F79: 0.1240850056 | G79: 0.6342658864 | H79: 0.6989600844
A80: 0.42510715 | B80: -0.04951365 | C80: 0.42510715-0.04951365i | D80: -0.2915685161 | E80: -0.09411085826 | F80: 0.1068645435 | G80: 0.6053847135 | H80: 0.6701871883
A81: 0.45006185 | B81: -0.0489054 | C81: 0.45006185-0.0489054i | D81: -0.288438567 | E81: -0.1008247918 | F81: 0.09168341668 | G81: 0.5780962998 | H81: 0.6427423169
A82: 0.47488115 | B82: -0.0480501 | C82: 0.47488115-0.0480501i | D82: -0.2839077692 | E82: -0.1057798107 | F82: 0.07844596512 | G82: 0.5521800023 | H82: 0.6164311744
A83: 0.4996694 | B83: -0.0469545 | C83: 0.4996694-0.0469545i | D83: -0.2843615765 | E83: -0.1146144349 | F83: 0.06232414141 | G83: 0.525106056 | H83: 0.5890686214
A84: 0.52426085 | B84: -0.0455354 | C84: 0.52426085-0.0455354i | D84: -0.2814488931 | E84: -0.1201292142 | F84: 0.04933656269 | G84: 0.4999143236 | H84: 0.5632993953
A85: 0.5488486 | B85: -0.0436984 | C85: 0.5488486-0.0436984i | D85: -0.2713557678 | E85: -0.1190189603 | F85: 0.04226836692 | G85: 0.4780872089 | H85: 0.5404345266
A86: 0.57334905 | B86: -0.0413577 | C86: 0.57334905-0.0413577i | D86: -0.2446778665 | E86: -0.1028042111 | F86: 0.04859430355 | G86: 0.4642441003 | H86: 0.524664372
A87: 0.5975168 | B87: -0.0385603 | C87: 0.5975168-0.0385603i | D87: -0.2016690509 | E87: -0.0713789846 | F87: 0.06875857108 | G87: 0.4595074426 | H87: 0.5171739362
A88: 0.62137105 | B88: -0.0354795 | C88: 0.62137105-0.0354795i | D88: -0.1612797532 | E88: -0.04152279227 | F88: 0.08830837696 | G88: 0.4558671682 | H88: 0.510897598
A89: 0.6452808 | B89: -0.0321157 | C89: 0.6452808-0.0321157i | D89: -0.1204864787 | E89: -0.0107147594 | F89: 0.1092627751 | G89: 0.4541534639 | H89: 0.5065199106
A90: 0.66996985 | B90: -0.02834625 | C90: 0.66996985-0.02834625i | D90: -0.0687191655 | E90: 0.03045066771 | F90: 0.1397836538 | G90: 0.4591085177 | H90: 0.5082851945
A91: 0.69607155 | B91: -0.024196 | C91: 0.69607155-0.024196i | D91: -0.0146316309 | E91: 0.07411907069 | F91: 0.1729021257 | G91: 0.4663720456 | H91: 0.5122379083
A92: 0.72312585 | B92: -0.0198835 | C92: 0.72312585-0.0198835i | D92: 0.03226551437 | E92: 0.1116947369 | F92: 0.2010288864 | G92: 0.4712822138 | H92: 0.5141654434
A93: 0.75006375 | B93: -0.01559065 | C93: 0.75006375-0.01559065i | D93: 0.07892262961 | E93: 0.1496475024 | F93: 0.230082049 | G93: 0.4780295685 | H93: 0.5179765772
A94: 0.77584965 | B94: -0.01152175 | C94: 0.77584965-0.01152175i | D94: 0.1274695065 | E94: 0.1900885516 | F94: 0.2621317194 | G94: 0.4884554292 | H94: 0.5254626708
A95: 0.80031085 | B95: -0.00784415 | C95: 0.80031085-0.00784415i | D95: 0.1703680262 | E95: 0.2259749136 | F95: 0.2907227766 | G95: 0.498043596 | H95: 0.5324361652
A96: 0.82429365 | B96: -0.00452205 | C96: 0.82429365-0.00452205i | D96: 0.2080392426 | E96: 0.2574251317 | F96: 0.3156855409 | G96: 0.5060222323 | H96: 0.5380649189
A97: 0.84839955 | B97: -0.001522 | C97: 0.84839955-0.001522i | D97: 0.2470204909 | E97: 0.2903921303 | F97: 0.3423255915 | G97: 0.5157901408 | H97: 0.5454519089
A98: 0.8724596 | B98: 0.00096645 | C98: 0.8724596+0.00096645i | D98: 0.2830695643 | E98: 0.320880081 | F98: 0.3669435532 | G98: 0.5246451433 | H98: 0.5520663025
A99: 0.8959983 | B99: 0.0026869 | C99: 0.8959983+0.0026869i | D99: 0.3095122667 | E99: 0.3425053135 | F99: 0.3835265998 | G99: 0.5279249726 | H99: 0.5534900126
A100: 0.91884795 | B100: 0.00345935 | C100: 0.91884795+0.00345935i | D100: 0.3196584927 | E100: 0.3486656752 | F100: 0.3856441982 | G100: 0.5200953536 | H100: 0.5443802435
A101: 0.9410307 | B101: 0.0032332 | C101: 0.9410307+0.0032332i | D101: 0.3101476439 | E101: 0.335716666 | F101: 0.3694119133 | G101: 0.4969576747 | H101: 0.5205423135
A102: 0.9621527 | B102: 0.00210465 | C102: 0.9621527+0.00210465i | D102: 0.2818832628 | E102: 0.3039722151 | F102: 0.334540988 | G102: 0.4567134894 | H102: 0.4799791861
A103: 0.98125345 | B103: 0.00023285 | C103: 0.98125345+0.00023285i | D103: 0.2086828468 | E103: 0.2270585185 | F103: 0.2547591854 | G103: 0.3750406015 | H103: 0.3988927144
A104: 0.9950821 | B104: -0.0016589 | C104: 0.9950821-0.0016589i | D104: -0.1588422358 | E104: -0.144768816 | F104: -0.1172133767 | G104: 0.02697303633 | H104: 0.05779880321

Sheet BEM_gamma
C1: alpha
C2: cl | D2: 0.00177356927 | E2: 0.4912135889 | F2: 1.002001046 | G2: 2.413922127 | H2: 2.629522118
C3: cd | D3: -0.06774792445 | E3: -0.07264258712 | F3: -0.07698816538 | G3: -0.08412053364 | H3: -0.08446660398
C4: cm | D4: -0.0489595056 | E4: -0.05054211107 | F4: -0.05210902029 | G4: -0.05365832422 | H4: -0.05518813528
A5: x | B5: y | C5: z | D5: gamma | E5: gamma | F5: gamma | G5: gamma | H5: gamma
A6: =IMREAL(C6) -> 1 | B6: =IMAGINARY(C6) -> 0.00245 | C6: 1+0.00245i | D6: -1.383734191 | E6: -1.380812594 | F6: -1.369910265 | G6: -1.295183257 | H6: -1.277392783
A7: =IMREAL(C7) -> 0.98995 | B7: =IMAGINARY(C7) -> 0.0042652 | C7: 0.98995+0.0042652i | D7: -1.013464786 | E7: -1.018332695 | F7: -1.017666518 | G7: -0.9832645179 | H7: -0.973359826
A8: 0.9709294 | B8: 0.0074246 | C8: 0.9709294+0.0074246i | D8: -1.025596619 | E8: -1.035457234 | F8: -1.039936577 | G8: -1.019437284 | H8: -1.011614669
A9: 0.9487444 | B9: 0.0107619 | C9: 0.9487444+0.0107619i | D9: -1.035506272 | E9: -1.049725186 | F9: -1.058700089 | G9: -1.050369522 | H9: -1.044372531
A10: 0.9250524 | B10: 0.0140472 | C10: 0.9250524+0.0140472i | D10: -1.042682649 | E10: -1.060811847 | F10: -1.07382991 | G10: -1.076499264 | H10: -1.07216066
A11: 0.9000077 | B11: 0.0173098 | C11: 0.9000077+0.0173098i | D11: -1.048040435 | E11: -1.069885671 | F11: -1.086754347 | G11: -1.099947202 | H11: -1.097202024
A12: 0.8747538 | B12: 0.020454 | C12: 0.8747538+0.020454i | D12: -1.053536801 | E12: -1.078893766 | F12: -1.099398887 | G12: -1.122515916 | H12: -1.121271397
A13: 0.8491865 | B13: 0.0235342 | C13: 0.8491865+0.0235342i | D13: -1.064110064 | E13: -1.093019396 | F13: -1.117174599 | G13: -1.150090613 | H13: -1.150304385
A14: 0.8232736 | B14: 0.0263977 | C14: 0.8232736+0.0263977i | D14: -1.063469775 | E14: -1.095573579 | F14: -1.123068704 | G14: -1.165282364 | H14: -1.166928425
A15: 0.7974667 | B15: 0.0292331 | C15: 0.7974667+0.0292331i | D15: -1.075714599 | E15: -1.111352287 | F15: -1.142468706 | G15: -1.194347701 | H15: -1.197423891
A16: 0.7717892 | B16: 0.0318071 | C16: 0.7717892+0.0318071i | D16: -1.07777889 | E16: -1.116603815 | F16: -1.151037254 | G16: -1.212063414 | H16: -1.216536441
A17: 0.7463578 | B17: 0.0342285 | C17: 0.7463578+0.0342285i | D17: -1.082225387 | E17: -1.124291245 | F17: -1.162084269 | G17: -1.232299304 | H17: -1.238164731
A18: 0.7207689 | B18: 0.036552 | C18: 0.7207689+0.036552i | D18: -1.091025502 | E18: -1.136577126 | F18: -1.177960736 | G18: -1.257866452 | H18: -1.265181594
A19: 0.6951842 | B19: 0.0386168 | C19: 0.6951842+0.0386168i | D19: -1.090606295 | E19: -1.139308988 | F19: -1.183985935 | G19: -1.273052799 | H19: -1.281778238
A20: 0.6697306 | B20: 0.0405663 | C20: 0.6697306+0.0405663i | D20: -1.096974224 | E20: -1.149177109 | F20: -1.197473506 | G20: -1.296389344 | H20: -1.306599912
A21: 0.6442584 | B21: 0.0423142 | C21: 0.6442584+0.0423142i | D21: -1.100170208 | E21: -1.155824214 | F21: -1.207706809 | G21: -1.316481141 | H21: -1.328192748
A22: 0.618558 | B22: 0.043867 | C22: 0.618558+0.043867i | D22: -1.101284211 | E22: -1.160407465 | F22: -1.215907005 | G22: -1.334692102 | H22: -1.347937639
A23: 0.5930799 | B23: 0.0452356 | C23: 0.5930799+0.0452356i | D23: -1.103869892 | E23: -1.16662447 | F23: -1.225901873 | G23: -1.355097441 | H23: -1.369931654
A24: 0.5676053 | B24: 0.0464008 | C24: 0.5676053+0.0464008i | D24: -1.104794697 | E24: -1.171218908 | F24: -1.234323609 | G24: -1.374120303 | H24: -1.390580068
A25: 0.5421131 | B25: 0.0473628 | C25: 0.5421131+0.0473628i | D25: -1.104132982 | E25: -1.174273485 | F25: -1.241263217 | G25: -1.391872354 | H25: -1.409997383
A26: 0.516394 | B26: 0.0481525 | C26: 0.516394+0.0481525i | D26: -1.104091478 | E26: -1.17818468 | F26: -1.249302823 | G26: -1.411380509 | H26: -1.431268844
A27: 0.4908468 | B27: 0.0487361 | C27: 0.4908468+0.0487361i | D27: -1.100186704 | E27: -1.178116332 | F27: -1.253263373 | G27: -1.426657279 | H27: -1.448303097
A28: 0.4652642 | B28: 0.0492234 | C28: 0.4652642+0.0492234i | D28: -1.10285002 | E28: -1.185306237 | F28: -1.265165712 | G28: -1.45156349 | H28: -1.475196327
A29: 0.4394923 | B29: 0.0494892 | C29: 0.4394923+0.0494892i | D29: -1.09931396 | E29: -1.186126596 | F29: -1.270555954 | G29: -1.469760767 | H29: -1.495378599
A30: 0.4137356 | B30: 0.0495965 | C30: 0.4137356+0.0495965i | D30: -1.0953342 | E30: -1.186723644 | F30: -1.275955576 | G30: -1.488628004 | H30: -1.516334404
A31: 0.3874475 | B31: 0.0496184 | C31: 0.3874475+0.0496184i | D31: -1.09684166 | E31: -1.19372998 | F31: -1.288696356 | G31: -1.517248549 | H31: -1.547389358
A32: 0.3615064 | B32: 0.0494435 | C32: 0.3615064+0.0494435i | D32: -1.091678134 | E32: -1.193817009 | F32: -1.294296332 | G32: -1.53832732 | H32: -1.570871279
A33: 0.3352967 | B33: 0.0492054 | C33: 0.3352967+0.0492054i | D33: -1.095229431 | E33: -1.204017233 | F33: -1.31142051 | G33: -1.57456964 | H33: -1.610036551
A34: 0.3095942 | B34: 0.0487516 | C34: 0.3095942+0.0487516i | D34: -1.090891447 | E34: -1.206046485 | F34: -1.320124281 | G34: -1.601952111 | H34: -1.640310348
A35: 0.2840195 | B35: 0.0482025 | C35: 0.2840195+0.0482025i | D35: -1.093636618 | E35: -1.216617339 | F35: -1.338852659 | G35: -1.643250933 | H35: -1.685066533
A36: 0.258552 | B36: 0.0474372 | C36: 0.258552+0.0474372i | D36: -1.093017954 | E36: -1.224382411 | F36: -1.355377171 | G36: -1.684125827 | H36: -1.729687749
A37: 0.233316 | B37: 0.0464465 | C37: 0.233316+0.0464465i | D37: -1.091284478 | E37: -1.231969383 | F37: -1.372708203 | G37: -1.728577966 | H37: -1.778317245
A38: 0.208673 | B38: 0.0452448 | C38: 0.208673+0.0452448i | D38: -1.089137863 | E38: -1.240270655 | F38: -1.391933369 | G38: -1.778214656 | H38: -1.832639026
A39: 0.1838324 | B39: 0.043773 | C39: 0.1838324+0.043773i | D39: -1.084697346 | E39: -1.247861226 | F39: -1.412114339 | G39: -1.833509763 | H39: -1.893352627
A40: 0.1595531 | B40: 0.0421139 | C40: 0.1595531+0.0421139i | D40: -1.083600299 | E40: -1.261452835 | F40: -1.441052925 | G40: -1.905111864 | H40: -1.971518598
A41: 0.1353884 | B41: 0.0401635 | C41: 0.1353884+0.0401635i | D41: -1.082581602 | E41: -1.278585441 | F41: -1.477148431 | G41: -1.99391208 | H41: -2.068426009
A42: 0.1113411 | B42: 0.037814 | C42: 0.1113411+0.037814i | D42: -1.077266387 | E42: -1.295692077 | F42: -1.517702484 | G42: -2.099765184 | H42: -2.184342068
A43: 0.0882253 | B43: 0.0351538 | C43: 0.0882253+0.0351538i | D43: -1.080371675 | E43: -1.330208999 | F43: -1.585007925 | G43: -2.258045377 | H43: -2.356594116
A44: 0.0672435 | B44: 0.0320543 | C44: 0.0672435+0.0320543i | D44: -1.070642752 | E44: -1.358462144 | F44: -1.652984536 | G44: -2.436671704 | H44: -2.552275481
A45: 0.0499471 | B45: 0.0289005 | C45: 0.0499471+0.0289005i | D45: -1.063688366 | E45: -1.400025589 | F45: -1.745259196 | G45: -2.670026906 | H45: -2.807351366
A46: 0.0368281 | B46: 0.0259248 | C46: 0.0368281+0.0259248i | D46: -1.057321968 | E46: -1.451976631 | F46: -1.858152776 | G46: -2.952401005 | H46: -3.11580954
A47: 0.0270141 | B47: 0.0230926 | C47: 0.0270141+0.0230926i | D47: -1.041085378 | E47: -1.50159117 | F47: -1.976633999 | G47: -3.262690147 | H47: -3.455660211
A48: 0.0196239 | B48: 0.0203696 | C48: 0.0196239+0.0203696i | D48: -1.012818695 | E48: -1.547927809 | F48: -2.101046319 | G48: -3.604875999 | H48: -3.831454207
A49: 0.013855 | B49: 0.0176052 | C49: 0.013855+0.0176052i | D49: -0.9469490928 | E49: -1.555778728 | F49: -2.18626428 | G49: -3.907106926 | H49: -4.167347618
A50: 0.00927 | B50: 0.0148558 | C50: 0.00927+0.0148558i | D50: -0.8681628236 | E50: -1.569249877 | F50: -2.296535591 | G50: -4.288784161 | H50: -4.591108264
A51: 0.0057037 | B51: 0.0121121 | C51: 0.0057037+0.0121121i | D51: -0.7682477441 | E51: -1.594988599 | F51: -2.454073356 | G51: -4.815620553 | H51: -5.17517383
A52: 0.0030892 | B52: 0.0091709 | C52: 0.0030892+0.0091709i | D52: -0.5731272495 | E52: -1.497672542 | F52: -2.460010795 | G52: -5.114625467 | H52: -5.520122146
A53: 0.0013311 | B53: 0.0060699 | C53: 0.0013311+0.0060699i | D53: -0.3121956881 | E53: -1.298751292 | F53: -2.327333247 | G53: -5.174329546 | H53: -5.610590436
A54: 0.0003403 | B54: 0.0029943 | C54: 0.0003403+0.0029943i | D54: -0.02880643053 | E54: -1.054414155 | F54: -2.125389826 | G54: -5.099242546 | H54: -5.556296418
A55: 0 | B55: 0 | C55: 0 | D55: 0.2597903652 | E55: -0.7852839282 | F55: -1.878227818 | G55: -4.922369677 | H55: -5.391543882
A56: 0.0002721 | B56: -0.0029889 | C56: 0.0002721-0.0029889i | D56: 0.5395869109 | E56: -0.4893247352 | F56: -1.566975953 | G56: -4.577627196 | H56: -5.042927078
A57: 0.0011861 | B57: -0.0060559 | C57: 0.0011861-0.0060559i | D57: 0.8037996434 | E57: -0.187796893 | F57: -1.227975504 | G57: -4.143027858 | H57: -4.594834227
A58: 0.0028537 | B58: -0.0091634 | C58: 0.0028537-0.0091634i | D58: 1.036939387 | E58: 0.1041917272 | F58: -0.8758482263 | G58: -3.631345672 | H58: -4.05968473
A59: 0.00537 | B59: -0.012131 | C59: 0.00537-0.012131i | D59: 1.191668246 | E59: 0.3522013014 | F59: -0.5312946821 | G59: -3.023598113 | H59: -3.412179779
A60: 0.0088266 | B60: -0.0148905 | C60: 0.0088266-0.0148905i | D60: 1.232502353 | E60: 0.5186393526 | F60: -0.2339082406 | G60: -2.363796585 | H60: -2.696848371
A61: 0.0132961 | B61: -0.0176382 | C61: 0.0132961-0.0176382i | D61: 1.259212137 | E61: 0.6419143183 | F61: -0.009932671928 | G61: -1.860969538 | H61: -2.15127376
A62: 0.0189208 | B62: -0.0204123 | C62: 0.0189208-0.0204123i | D62: 1.28829782 | E62: 0.7450983117 | F62: 0.1704741663 | G62: -1.467000142 | H62: -1.724604809
A63: 0.0261032 | B63: -0.0231452 | C63: 0.0261032-0.0231452i | D63: 1.280126006 | E63: 0.8115710187 | F63: 0.314951569 | G63: -1.105591808 | H63: -1.329809392
A64: 0.035621 | B64: -0.025971 | C64: 0.035621-0.025971i | D64: 1.259949393 | E64: 0.858637086 | F64: 0.4323600031 | G64: -0.79215 | H64: -0.9861385088
A65: 0.0483459 | B65: -0.02895 | C65: 0.0483459-0.02895i | D65: 1.235677198 | E65: 0.8933109163 | F65: 0.5287344556 | G65: -0.5236142276 | H65: -0.6910249765
A66: 0.0652641 | B66: -0.0321187 | C66: 0.0652641-0.0321187i | D66: 1.214227277 | E66: 0.9218678466 | F66: 0.6096399714 | G66: -0.2966145714 | H66: -0.4414678509
A67: 0.0862104 | B67: -0.03529 | C67: 0.0862104-0.03529i | D67: 1.194767512 | E67: 0.9431933739 | F67: 0.6736718465 | G67: -0.1133350808 | H67: -0.2397672041
A68: 0.1097485 | B68: -0.0382949 | C68: 0.1097485-0.0382949i | D68: 1.188711682 | E68: 0.9669015655 | F68: 0.7284997794 | G68: 0.02812659761 | H68: -0.08495931015
A69: 0.1341519 | B69: -0.0408168 | C69: 0.1341519-0.0408168i | D69: 1.177532917 | E69: 0.9796490001 | F69: 0.7662990327 | G69: 0.1358696752 | H69: 0.0335874917
A70: 0.1589043 | B70: -0.0429708 | C70: 0.1589043-0.0429708i | D70: 1.17264212 | E70: 0.9928749775 | F70: 0.7984738193 | G70: 0.220834398 | H70: 0.1266901477
A71: =IMREAL(C71) -> 0.1843245 | B71: =IMAGINARY(C71) -> -0.0447758 | C71: 0.1843245-0.0447758i | D71: 1.165311825 | E71: 1.001024248 | F71: 0.8228314546 | G71: 0.290448374 | H71: 0.203294991
A72: 0.2096222 | B72: -0.0462634 | C72: 0.2096222-0.0462634i | D72: 1.159861021 | E72: 1.008218068 | F72: 0.8432621785 | G72: 0.3478214399 | H72: 0.2663722118
A73: 0.234732 | B73: -0.0474918 | C73: 0.234732-0.0474918i | D73: 1.158532448 | E73: 1.017173937 | F73: 0.8629666002 | G73: 0.3974240752 | H73: 0.3205772983
A74: 0.2595451 | B74: -0.0483981 | C74: 0.2595451-0.0483981i | D74: 1.151364365 | E74: 1.019564139 | F74: 0.8753800933 | G74: 0.4379088313 | H74: 0.365410236
A75: 0.2848709 | B75: -0.0491316 | C75: 0.2848709-0.0491316i | D75: 1.148997768 | E75: 1.025305566 | F75: 0.8896029231 | G75: 0.4757659032 | H75: 0.4069114956
A76: 0.3103638 | B76: -0.049646 | C76: 0.3103638-0.049646i | D76: 1.14655059 | E76: 1.030194079 | F76: 0.9021666759 | G76: 0.5097272615 | H76: 0.4441735593
A77: 0.3360279 | B77: -0.0499144 | C77: 0.3360279-0.0499144i | D77: 1.139545357 | E77: 1.030303135 | F77: 0.909745604 | G77: 0.5382797576 | H77: 0.4759823315
A78: 0.3615286 | B78: -0.0500685 | C78: 0.3615286-0.0500685i | D78: 1.140329093 | E78: 1.036837878 | F78: 0.9222822213 | G78: 0.5674622091 | H78: 0.5077202599
A79: 0.3870247 | B79: -0.0500208 | C79: 0.3870247-0.0500208i | D79: 1.139469631 | E79: 1.041448071 | F79: 0.9326097681 | G79: 0.5936980757 | H79: 0.5364057055
A80: 0.41249 | B80: -0.0497584 | C80: 0.41249-0.0497584i | D80: 1.138687731 | E80: 1.045747708 | F80: 0.9422209705 | G80: 0.6180879739 | H80: 0.5630711668
A81: 0.4377243 | B81: -0.0492689 | C81: 0.4377243-0.0492689i | D81: 1.137940614 | E81: 1.049722162 | F81: 0.9511308459 | G81: 0.6407306393 | H81: 0.5878284447
A82: 0.4623994 | B82: -0.0485419 | C82: 0.4623994-0.0485419i | D82: 1.135979256 | E82: 1.052211829 | F82: 0.9582802677 | G82: 0.6608861494 | H82: 0.6099923782
A83: 0.4873629 | B83: -0.0475583 | C83: 0.4873629-0.0475583i | D83: 1.133892495 | E83: 1.054400442 | F83: 0.964945898 | G83: 0.6800543179 | H83: 0.631092128
A84: 0.5119759 | B84: -0.0463507 | C84: 0.5119759-0.0463507i | D84: 1.137341142 | E84: 1.061510606 | F84: 0.9758605629 | G84: 0.7014257249 | H84: 0.6540553946
A85: 0.5365458 | B85: -0.0447201 | C85: 0.5365458-0.0447201i | D85: 1.132200328 | E85: 1.060443788 | F85: 0.9790777722 | G85: 0.7167075108 | H85: 0.6712153417
A86: 0.5611514 | B86: -0.0426767 | C86: 0.5611514-0.0426767i | D86: 1.129481186 | E86: 1.061491616 | F86: 0.9840752326 | G86: 0.7327629373 | H86: 0.6889831484
A87: 0.5855467 | B87: -0.0400387 | C87: 0.5855467-0.0400387i | D87: 1.108315441 | E87: 1.04496903 | F87: 0.9725220249 | G87: 0.7356926682 | H87: 0.694235814
A88: 0.6094869 | B88: -0.0370819 | C88: 0.6094869-0.0370819i | D88: 1.088627752 | E88: 1.029520382 | F88: 0.9616123134 | G88: 0.7380228089 | H88: 0.6986910517
A89: 0.6332552 | B89: -0.0338771 | C89: 0.6332552-0.0338771i | D89: 1.070777879 | E89: 1.015578145 | F89: 0.9518524657 | G89: 0.7404534308 | H89: 0.7030770733
A90: 0.6573064 | B90: -0.0303543 | C90: 0.6573064-0.0303543i | D90: 1.050712097 | E90: 0.9993814332 | F90: 0.9398104395 | G90: 0.7405960931 | H90: 0.7051843392
A91: 0.6826333 | B91: -0.0263382 | C91: 0.6826333-0.0263382i | D91: 1.020245134 | E91: 0.9732104956 | F91: 0.9182991107 | G91: 0.7330060221 | H91: 0.699873216
A92: 0.7095098 | B92: -0.0220538 | C92: 0.7095098-0.0220538i | D92: 0.9963005018 | E92: 0.9531903093 | F92: 0.9025134511 | G92: 0.7297514069 | H92: 0.6986541178
A93: 0.7367419 | B93: -0.0177132 | C93: 0.7367419-0.0177132i | D93: 0.9733016999 | E93: 0.9339233022 | F93: 0.8872744008 | G93: 0.7264392458 | H93: 0.6972802861
A94: 0.7633856 | B94: -0.0134681 | C94: 0.7633856-0.0134681i | D94: 0.9482139463 | E94: 0.9124229121 | F94: 0.8696629765 | G94: 0.72043574 | H94: 0.6931755871
A95: 0.7883137 | B95: -0.0095754 | C95: 0.7883137-0.0095754i | D95: 0.9210942048 | E95: 0.888640183 | F95: 0.8495192768 | G95: 0.711270993 | H95: 0.6858222077
A96: 0.812308 | B96: -0.0061129 | C96: 0.812308-0.0061129i | D96: 0.9013101885 | E96: 0.8717271572 | F96: 0.8357169484 | G96: 0.7067444875 | H96: 0.682811828
A97: 0.8362793 | B97: -0.0029312 | C97: 0.8362793-0.0029312i | D97: 0.8794467071 | E97: 0.8527193591 | F97: 0.8198156593 | G97: 0.7001741779 | H97: 0.6777755949
A98: 0.8605198 | B98: -0.0001128 | C98: 0.8605198-0.0001128i | D98: 0.8561359967 | E98: 0.832259289 | F98: 0.8024650425 | G98: 0.6922092029 | H98: 0.6713596914
A99: 0.8843994 | B99: 0.0020457 | C99: 0.8843994+0.0020457i | D99: 0.8365554614 | E99: 0.8153440101 | F99: 0.7884444389 | G99: 0.6868578562 | H99: 0.6674302934
A100: 0.9075972 | B100: 0.0033281 | C100: 0.9075972+0.0033281i | D100: 0.8241326062 | E100: 0.8053731215 | F100: 0.7811048558 | G100: 0.6872260866 | H100: 0.6690400649
A101: 0.9300987 | B101: 0.0035906 | C101: 0.9300987+0.0035906i | D101: 0.8247379931 | E101: 0.8082161828 | F101: 0.7862814971 | G101: 0.6988651135 | H101: 0.681669829
A102: 0.9519627 | B102: 0.0028758 | C102: 0.9519627+0.0028758i | D102: 0.8361901 | E102: 0.8219694348 | F102: 0.8023730754 | G102: 0.7210838739 | H102: 0.7047783919
A103: 0.9723427 | B103: 0.0013335 | C103: 0.9723427+0.0013335i | D103: 0.8573349471 | E103: 0.845733065 | F103: 0.8287517769 | G103: 0.754047131 | H103: 0.7386576195
A104: 0.9901642 | B104: -0.0008678 | C104: 0.9901642-0.0008678i | D104: 0.9229295415 | E104: 0.9142775834 | F104: 0.9000050095 | G104: 0.8307173376 | H104: 0.8158618487
C105: 1-0.00245i | D105: 1.383734191 | E105: 1.380812594 | F105: 1.369910265 | G105: 1.295183257 | H105: 1.277392783

Sheet Streamline
C1: alpha | D1: 21
A5: x | B5: y | C5: z | D5: x | E5: y
A6: =IMREAL(C6) -> 0.9510633213 | B6: =IMAGINARY(C6) -> -0.2664886901 | C6: 0.951063321349287-0.266488690114057i | D6: 0.1161686663 | E6: 0.008741589268
A7: =IMREAL(C7) -> 0.9423313476 | B7: =IMAGINARY(C7) -> -0.261192457 | C7: 0.942331347565005-0.261192457030949i | D7: 0.1161910186 | E7: 0.008728923226
A8: 0.9257063154 | B8: -0.2514265296 | C8: 0.925706315404566-0.251426529610352i | D8: 0.1162132621 | E8: 0.008716310792
A9: 0.906190815 | B9: -0.2403604987 | C9: 0.906190815000743-0.240360498692341i | D9: 0.1162354019 | E9: 0.008703749117
A10: 0.8852497738 | B10: -0.2288029535 | C10: 0.885249773760813-0.228802953456542i | D10: 0.1162574427 | E10: 0.008691235356
A11: 0.8630377433 | B11: -0.2167818362 | C11: 0.863037743325505-0.216781836171075i | D11: 0.1162793898 | E11: 0.008678766669
A12: 0.8405879771 | B12: -0.2047962842 | C12: 0.840587977099747-0.204796284233061i | D12: 0.116301248 | E12: 0.008666340218
A13: 0.8178226912 | B13: -0.1927581689 | C13: 0.817822691219555-0.192758168926954i | D13: 0.1163230223 | E13: 0.008653953163
A14: 0.7946571016 | B14: -0.1807985085 | C14: 0.794657101609298-0.180798508535907i | D14: 0.1163447175 | E14: 0.008641602662
A15: 0.7715804014 | B15: -0.1689030688 | C15: 0.771580401384868-0.168903068757497i | D15: 0.1163663387 | E15: 0.008629285866
A16: 0.7485308291 | B16: -0.1572980397 | C16: 0.748530829085616-0.157298039715243i | D16: 0.1163878908 | E16: 0.008616999918
A17: 0.725656324 | B17: -0.1459236694 | C17: 0.725656323980224-0.145923669398457i | D17: 0.1164093788 | E17: 0.008604741947
A18: 0.7025996957 | B18: -0.1345842537 | C18: 0.702599695735398-0.134584253653371i | D18: 0.1164308075 | E18: 0.008592509073
A19: 0.6794542787 | B19: -0.1234878603 | C19: 0.679454278739817-0.123487860310008i | D19: 0.1164521819 | E19: 0.008580298394
A20: 0.6563899343 | B20: -0.1125460908 | C20: 0.656389934313566-0.112546090828005i | D20: 0.1164735071 | E20: 0.00856810699
A21: 0.6332359783 | B21: -0.1017858655 | C21: 0.633235978312754-0.101785865516123i | D21: 0.1164947881 | E21: 0.008555931919
A22: 0.6097990617 | B22: -0.09112600218 | C22: 0.609799061671659-0.0911260021793639i | D22: 0.1165160298 | E22: 0.008543770212
A23: 0.5865036686 | B23: -0.08071776955 | C23: 0.586503668583069-0.0807177695523497i | D23: 0.1165372374 | E23: 0.008531618868
A24: 0.563138651 | B24: -0.07050068147 | C24: 0.563138650985033-0.0705006814719085i | D24: 0.116558416 | E24: 0.008519474857
A25: 0.539684382 | B25: -0.06046698966 | C25: 0.539684382004144-0.0604669896582195i | D25: 0.1165795707 | E25: 0.00850733511
A26: 0.5159565368 | B26: -0.05051284006 | C26: 0.515956536826776-0.0505128400642641i | D26: 0.1166007067 | E26: 0.008495196517
A27: 0.4923153145 | B27: -0.04081270485 | C27: 0.492315314490321-0.0408127048467367i | D27: 0.1166218294 | E27: 0.008483055925
A28: 0.4686065326 | B28: -0.0311897872 | C28: 0.468606532573227-0.031189787198867i | D28: 0.1166429439 | E28: 0.008470910131
A29: 0.4446416454 | B29: -0.02170581856 | C29: 0.444641645380573-0.0217058185626175i | D29: 0.1166640559 | E29: 0.008458755881
A30: 0.4206341473 | B30: -0.01237526962 | C30: 0.420634147290399-0.0123752696168009i | D30: 0.1166851706 | E30: 0.008446589861
A31: 0.3960999399 | B31: -0.002934011711 | C31: 0.396099939938693-0.00293401171101886i | D31: 0.1167062937 | E31: 0.008434408697
A32: 0.3718191582 | B32: 0.006199163888 | C32: 0.371819158182511+0.00619916388833636i | D32: 0.1167274309 | E32: 0.008422208945
A33: 0.3472649679 | B33: 0.01536959484 | C33: 0.34726496786936+0.0153695948359848i | D33: 0.1167485878 | E33: 0.008409987091
A34: 0.3231069896 | B34: 0.02415688826 | C34: 0.323106989581812+0.0241568882616285i | D34: 0.1167697703 | E34: 0.008397739539
A35: 0.2990341704 | B35: 0.03280941205 | C35: 0.299034170407179+0.032809412048675i | D35: 0.1167909845 | E35: 0.008385462611
A36: 0.2749839519 | B36: 0.0412216787 | C36: 0.274983951903574+0.0412216787033217i | D36: 0.1168122363 | E36: 0.008373152537
A37: 0.2510690811 | B37: 0.04934055415 | C37: 0.251069081132876+0.0493405541495161i | D37: 0.1168335321 | E37: 0.00836080545
A38: 0.2276322079 | B38: 0.05704993193 | C38: 0.227632207917737+0.0570499319316392i | D38: 0.1168548782 | E38: 0.008348417376
A39: 0.203914064 | B39: 0.06457796315 | C39: 0.20391406402715+0.0645779631473956i | D39: 0.1168762812 | E39: 0.008335984229
A40: 0.1806528165 | B40: 0.07172998282 | C40: 0.180652816513006+0.0717299828191893i | D40: 0.1168977477 | E40: 0.008323501803
A41: 0.1573941647 | B41: 0.07856898155 | C41: 0.157394164732036+0.0785689815457265i | D41: 0.1169192847 | E41: 0.00831096576
A42: 0.1341020906 | B42: 0.08499331593 | C42: 0.134102090644473+0.084993315926772i | D42: 0.1169408993 | E42: 0.008298371623
A43: 0.1115683018 | B43: 0.09079376712 | C43: 0.111568301802269+0.0907937671243034i | D43: 0.1169625986 | E43: 0.008285714767
A44: 0.09086934255 | B44: 0.09541933924 | C44: 0.090869342549974+0.0954193392361449i | D44: 0.1169843903 | E44: 0.008272990404
A45: 0.07359154122 | B45: 0.09867348869 | C45: 0.073591541221832+0.0986734886895733i | D45: 0.1170062822 | E45: 0.008260193575
A46: 0.0602775041 | B46: 0.1005968625 | C46: 0.060277504099153+0.10059686254453i | D46: 0.1170282821 | E46: 0.008247319136
A47: 0.05010037609 | B47: 0.1014697991 | C47: 0.050100376086807+0.101469799117443i | D47: 0.1170503985 | E47: 0.008234361745
A48: 0.04222519409 | B48: 0.1015760704 | C48: 0.042225194092296+0.10157607043682i | D48: 0.1170726399 | E48: 0.008221315845
A49: 0.03584878961 | B49: 0.1010626696 | C49: 0.035848789610153+0.101062669569943i | D49: 0.1170950152 | E49: 0.008208175652
A50: 0.03058302651 | B50: 0.1001390006 | C50: 0.030583026514184+0.100139000593997i | D50: 0.1171175338 | E50: 0.008194935133
A51: 0.0262703445 | B51: 0.0988555836 | C51: 0.026270344495999+0.0988555835962802i | D51: 0.1171402051 | E51: 0.008181587993
A52: 0.02277546666 | B52: 0.09704668985 | C52: 0.02277546665772+0.0970466898499528i | D52: 0.1171630392 | E52: 0.00816812765
A53: 0.0200228399 | B53: 0.09478170364 | C53: 0.020022839898355+0.0947817036394806i | D53: 0.1171860466 | E53: 0.008154547212
A54: 0.01799565195 | B54: 0.09226545464 | C54: 0.01799565194616+0.0922654546441553i | D54: 0.1172092381 | E54: 0.008140839459
A55: 0.01660489338 | B55: 0.08959198739 | C55: 0.0166048933757+0.089591987386325i | D55: 0.1172326253 | E55: 0.008126996811
A56: 0.01578779465 | B56: 0.08670409693 | C56: 0.015787794645353+0.0867040969304962i | D56: 0.1172562199 | E56: 0.008113011302
A57: 0.01554197265 | B57: 0.08351325746 | C57: 0.015541972653916+0.0835132574565449i | D57: 0.1172800345 | E57: 0.008098874544
A58: 0.01598518297 | B58: 0.08001454189 | C58: 0.015985182969931+0.0800145418885431i | D58: 0.1173040822 | E58: 0.0080845777
A59: 0.01727085867 | B59: 0.07634228734 | C59: 0.017270858670055+0.0763422873434292i | D59: 0.1173283767 | E59: 0.008070111438
A60: 0.01950895642 | B60: 0.0725273375 | C60: 0.019508956415515+0.0725273375021119i | D60: 0.1173529327 | E60: 0.008055465893
A61: 0.02269690652 | B61: 0.06836041301 | C61: 0.022696906516779+0.0683604130137328i | D61: 0.1173777654 | E61: 0.00804063062
A62: 0.02695386781 | B62: 0.06375485535 | C62: 0.026953867812864+0.0637548553467795i | D62: 0.1174028909 | E62: 0.00802559454
A63: 0.0326798321 | B63: 0.05862953144 | C63: 0.032679832098825+0.0586295314383911i | D63: 0.1174283263 | E63: 0.008010345885
A64: 0.04055278773 | B64: 0.0525805454 | C64: 0.040552787730315+0.052580545399013i | D64: 0.1174540897 | E64: 0.007994872136
A65: 0.05136492718 | B65: 0.04523921299 | C65: 0.051364927177754+0.0452392129873089i | D65: 0.1174802001 | E65: 0.007979159945
A66: 0.06602386703 | B66: 0.03621803605 | C66: 0.066023867027595+0.0362180360458699i | D66: 0.1175066781 | E66: 0.007963195063
A67: 0.08444243044 | B67: 0.02575088986 | C67: 0.08444243043674+0.0257508898577586i | D67: 0.1175335451 | E67: 0.007946962247
A68: 0.10534028 | B68: 0.0145102734 | C68: 0.105340280022085+0.0145102734009849i | D68: 0.1175608243 | E68: 0.00793044516
A69: 0.1272190485 | B69: 0.003410480503 | C69: 0.127219048470109+0.00341048050346787i | D69: 0.1175885403 | E69: 0.007913626262
A70: 0.1495554801 | B70: -0.00747091857 | C70: 0.149555480055618-0.00747091856953219i | D70: 0.1176167194 | E70: 0.007896486674
A71: =IMREAL(C71) -> 0.1726404271 | B71: =IMAGINARY(C71) -> -0.01826581619 | C71: 0.172640427064333-0.0182658161903911i | D71: 0.1176453899 | E71: 0.007879006044
A72: 0.1957247565 | B72: -0.02872049531 | C72: 0.195724756457987-0.0287204953100604i | D72: 0.1176745821 | E72: 0.007861162374
A73: 0.2187265551 | B73: -0.03886585305 | C73: 0.218726555062025-0.0388658530454622i | D73: 0.1177043286 | E73: 0.007842931836
A74: 0.2415667907 | B74: -0.04860417675 | C74: 0.24156679067007-0.0486041767548591i | D74: 0.1177346645 | E74: 0.007824288557
A75: 0.2649475989 | B75: -0.05836491301 | C75: 0.264947598944461-0.0583649130142891i | D75: 0.1177656278 | E75: 0.007805204371
A76: 0.2885629269 | B76: -0.06798098509 | C76: 0.288562926925866-0.0679809850866427i | D76: 0.1177972597 | E76: 0.007785648531
A77: 0.3124262424 | B77: -0.07742874897 | C77: 0.312426242391875-0.0774287489670401i | D77: 0.1178296048 | E77: 0.007765587381
A78: 0.3361779723 | B78: -0.08671124728 | C78: 0.336177972272827-0.0867112472817331i | D78: 0.1178627117 | E78: 0.007744983969
A79: 0.3599977263 | B79: -0.09580370057 | C79: 0.359997726336036-0.0958037005737911i | D79: 0.1178966335 | E79: 0.007723797593
A80: 0.3838656677 | B80: -0.1046846764 | C80: 0.383865667720875-0.104684676415434i | D80: 0.1179314283 | E80: 0.007701983274
A81: 0.4075993374 | B81: -0.1132708531 | C81: 0.407599337388536-0.113270853145875i | D81: 0.1179671597 | E81: 0.00767949112
A82: 0.4308960613 | B82: -0.1214349052 | C82: 0.430896061269717-0.121434905167637i | D82: 0.118003898 | E82: 0.007656265582
A83: 0.454553987 | B83: -0.1294627538 | C83: 0.454553986961752-0.129462753768608i | D83: 0.1180417206 | E83: 0.007632244559
A84: 0.4779649671 | B84: -0.1371558724 | C84: 0.477964967134999-0.137155872387728i | D84: 0.1180807136 | E84: 0.007607358311
A85: 0.5014872996 | B85: -0.1444386408 | C85: 0.501487299634521-0.144438640827815i | D85: 0.1181209725 | E85: 0.007581528151
A86: 0.5251908952 | B86: -0.151348821 | C86: 0.525190895244842-0.151348821003643i | D86: 0.1181626043 | E86: 0.007554664837
A87: 0.5489112445 | B87: -0.1576285295 | C87: 0.548911244474269-0.157628529478085i | D87: 0.1182057288 | E87: 0.007526666589
A88: 0.572320969 | B88: -0.1634475193 | C88: 0.572320968953913-0.163447519258723i | D88: 0.1182504815 | E88: 0.007497416617
A89: 0.5956590862 | B89: -0.1689733776 | C89: 0.595659086209729-0.168973377643062i | D89: 0.1182970153 | E89: 0.007466780014
A90: 0.6193752744 | B90: -0.1743037397 | C90: 0.619375274376157-0.174303739744702i | D90: 0.118345505 | E90: 0.007434599802
A91: 0.644459214 | B91: -0.1796307366 | C91: 0.644459214002178-0.179630736615185i | D91: 0.1183961505 | E91: 0.007400691842
A92: 0.67108598 | B92: -0.1852625808 | C92: 0.671085979977962-0.185262580831855i | D92: 0.1184491823 | E92: 0.007364838192
A93: 0.6980648674 | B93: -0.1909693935 | C93: 0.698064867432173-0.190969393471414i | D93: 0.1185048681 | E93: 0.007326778323
A94: 0.724460212 | B94: -0.1965544993 | C94: 0.724460212024251-0.196554499340191i | D94: 0.1185635207 | E94: 0.007286197295
A95: 0.7491276172 | B95: -0.2018537829 | C95: 0.749127617171211-0.201853782897025i | D95: 0.118625509 | E95: 0.007242709573
A96: 0.772769075 | B96: -0.2072200488 | C96: 0.772769075024013-0.207220048762053i | D96: 0.1186912711 | E96: 0.007195836409
A97: 0.7962884308 | B97: -0.2128402215 | C97: 0.796288430806774-0.212840221548002i | D97: 0.1187613323 | E97: 0.007144973516
A98: 0.8199289114 | B98: -0.2188960368 | C98: 0.819928911364278-0.218896036754916i | D98: 0.1188363279 | E98: 0.007089343673
A99: 0.8429959757 | B99: -0.2254385867 | C99: 0.842995975735954-0.225438586692283i | D99: 0.1189170332 | E99: 0.007027925205
A100: 0.8651125588 | B100: -0.2325547112 | C100: 0.865112558812247-0.232554711173305i | D100: 0.1190044009 | E100: 0.006959340474
A101: 0.8862135904 | B101: -0.2403734627 | C101: 0.88621359036583-0.240373462728043i | D101: 0.1190996046 | E101: 0.006881675542
A102: 0.9063692314 | B102: -0.2488761429 | C102: 0.90636923140043-0.248876142865762i | D102: 0.1192040778 | E102: 0.006792176509
A103: 0.9248428896 | B103: -0.2576195428 | C103: 0.924842889603859-0.257619542769282i | D103: 0.1193195065 | E103: 0.006686716285
A104: 0.9406918178 | B104: -0.2660612878 | C104: 0.940691817807345-0.266061287774952i | D104: 0.1194476236 | E104: 0.006558823839
A105: 0.9493073184 | B105: -0.2710632342 | C105: 0.949307318396515-0.271063234203893i | D105: 0.1195892852 | E105: 0.006397909685
D106: 0.1197410236 | E106: 0.006186444089
D107: 0.1198839588 | E107: 0.005899298954
D108: 0.1199651314 | E108: 0.005527340296
D109: 0.1199404209 | E109: 0.005134576151
D110: 0.1198546894 | E110: 0.004785090022
D111: 0.1197506199 | E111: 0.00447667323
D112: 0.1196418528 | E112: 0.004196133352
D113: 0.1195322905 | E113: 0.003934492428
D114: 0.1194230386 | E114: 0.003686066415
D115: 0.1193143102 | E115: 0.003447099839
D116: 0.1192060114 | E116: 0.003214980742
D117: 0.1190979445 | E117: 0.002987808043
D118: 0.1189898825 | E118: 0.002764143831
D119: 0.1188815987 | E119: 0.002542864496
D120: 0.118772877 | E120: 0.002323067151
D121: 0.1186635148 | E121: 0.002104008408
D122: 0.1185533232 | E122: 0.001885062936
D123: 0.1184421257 | E123: 0.001665694564
D124: 0.1183297565 | E124: 0.001445435596
D125: 0.1182160591 | E125: 0.001223871675
D126: 0.1181008845 | E126: 0.001000630479
D127: 0.11798409 | E127: 0.0007753731272
D128: 0.117865538 | E128: 0.0005477875448
D129: 0.1177450949 | E129: 0.0003175832615
D130: 0.1176226301 | E130: 8.448728095e-05
D131: 0.1174980155 | E131: -0.0001517592383
D132: 0.1173711244 | E132: -0.0003914036817
D133: 0.1172418312 | E133: -0.0006346841963
D134: 0.1171100109 | E134: -0.0008818315299
D135: 0.1169755382 | E135: -0.001133070573
D136: 0.1168382874 | E136: -0.001388621662
D137: 0.1166981322 | E137: -0.001648701689
D138: 0.1165549447 | E138: -0.001913525062
D139: 0.1164085957 | E139: -0.002183304529
D140: 0.1162589539 | E140: -0.002458251905
D141: 0.116105886 | E141: -0.002738578713
D142: 0.1159492561 | E142: -0.003024496751
D143: 0.1157889255 | E143: -0.003316218602
D144: 0.1156247527 | E144: -0.003613958089
D145: 0.1154565928 | E145: -0.0039179307
D146: 0.1152842972 | E146: -0.004228353965
D147: 0.1151077138 | E147: -0.004545447814
D148: 0.1149266863 | E148: -0.004869434903
D149: 0.1147410541 | E149: -0.005200540925
D150: 0.1145506521 | E150: -0.005538994898
D151: 0.1143553103 | E151: -0.005885029444
D152: 0.1141548536 | E152: -0.006238881052
D153: 0.1139491018 | E153: -0.006600790332
D154: 0.1137378687 | E154: -0.006971002258
D155: 0.1135209625 | E155: -0.007349766411
D156: 0.1132981849 | E156: -0.007737337209
D157: 0.1130693313 | E157: -0.008133974137
D158: 0.1128341902 | E158: -0.008539941973
D159: 0.1125925429 | E159: -0.008955511008
D160: 0.1123441633 | E160: -0.009380957274
D161: 0.1120888173 | E161: -0.009816562761
D162: 0.1118262626 | E162: -0.01026261564
D163: 0.1115562485 | E163: -0.01071941048
D164: 0.1112785151 | E164: -0.01118724848
D165: 0.110992793 | E165: -0.01166643769
D166: 0.1106988032 | E166: -0.01215729324
D167: 0.1103962562 | E167: -0.01266013756
D168: 0.1100848517 | E168: -0.01317530062
D169: 0.1097642781 | E169: -0.01370312019
D170: 0.1094342121 | E170: -0.01424394203
D171: 0.1090943178 | E171: -0.01479812019
D172: 0.1087442465 | E172: -0.01536601722
D173: 0.1083836358 | E173: -0.01594800444
D174: 0.1080121091 | E174: -0.01654446222
D175: 0.1076292751 | E175: -0.01715578023
D176: 0.1072347265 | E176: -0.01778235769
D177: 0.10682804 | E177: -0.01842460372
D178: 0.106408775 | E178: -0.01908293757
D179: 0.1059764728 | E179: -0.01975778892
D180: 0.1055306561 | E180: -0.02044959823
D181: 0.1050708276 | E181: -0.02115881702
D182: 0.1045964694 | E182: -0.0218859082
D183: 0.1041070416 | E183: -0.02263134643
D184: 0.1036019817 | E184: -0.02339561844
D185: 0.103080703 | E185: -0.0241792234
D186: 0.1025425935 | E186: -0.02498267329
D187: 0.1019870149 | E187: -0.02580649329
D188: 0.1014133008 | E188: -0.02665122219
D189: 0.1008207556 | E189: -0.02751741279
D190: 0.1002086527 | E190: -0.02840563235
D191: 0.09957623324 | E191: -0.029316463
D192: 0.09892270401 | E192: -0.03025050229
D193: 0.09824723587 | E193: -0.03120836359
D194: 0.09754896173 | E194: -0.03219067666
D195: 0.09682697449 | E195: -0.03319808819
D196: 0.09608032491 | E196: -0.03423126231
D197: 0.09530801925 | E197: -0.03529088124
D198: 0.09450901681 | E198: -0.03637764587
D199: 0.09368222729 | E199: -0.03749227642
D200: 0.09282650801 | E200: -0.03863551315
D201: 0.09194066091 | E201: -0.03980811704
D202: 0.09102342934 | E202: -0.0410108706
D203: 0.09007349469 | E203: -0.04224457863
... 8904 more rows

Sheet グラフ管理
D2: plot | E2: plot | F2: plot | G2: plot | H2: Streamline
D3: 1 | E3: 2 | F3: 3 | G3: 4 | H3: 1
D4: グラフ 8 | E4: グラフ 4 | F4: グラフ 5 | G4: Chart 6 | H4: Chart 3
D5: 24.83970905 | E5: 4.575733299 | F5: 7.84411961 | G5: 12.41985237 | H5: 113.5947803
D6: 24.83970474 | E6: 16.34191164 | F6: 16.34191164 | G6: 15.2835783 | H6: 101.0006137
D7: 10 | E7: 10 | F7: 10 | G7: 10 | H7: 10
D8: FALSE | E8: FALSE | F8: FALSE | G8: FALSE | H8: FALSE
D13: 23.91784722 | E13: 3.655908333 | F13: 6.703233333 | G13: 11.10734167 | H13: 109.3789972
D14: 24.4805 | E14: 15.99166667 | F14: 15.23729444 | G14: 13.43466667 | H14: 99.54004167
D15: 0.3198222222 | E15: 0.3188 | F15: 0.3275944444 | G15: 0.2469444444 | H15: 1.966788889
D16: 0.006427777778 | E16: -0.1411111111 | F16: 0.49775 | G16: 0.7833444444 | H16: 0.4587972222
D17: FALSE | E17: FALSE | F17: Cp | G17: cl | H17: FALSE
D18: 2 | E18: 0.1 | F18: 2 | G18: 2 | H18: 2
D19: -2 | E19: -0.1 | F19: -8 | G19: -1.5 | H19: -2
D20: 0.2 | E20: 0.1 | F20: 1 | G20: 0.5 | H20: 0.2
D21: FALSE | E21: 0.02 | F21: FALSE | G21: FALSE | H21: FALSE
D22: 0.0_ | E22: 0.0_ | F22: 0_ | G22: #,##0.0_ | H22: 0.0_
D23: FALSE | E23: FALSE | F23: x | G23: α [deg] | H23: FALSE
D24: 2 | E24: 1 | F24: 1 | G24: 30 | H24: 2
D25: -2 | E25: 0 | F25: 0 | G25: -20 | H25: -2
D26: 0.2 | E26: 0.1 | F26: 0.1 | G26: 5 | H26: 0.2
D27: FALSE | E27: 0.02 | F27: FALSE | G27: FALSE | H27: FALSE
D28: 0.0_ | E28: 0.0_ | F28: 0_ | G28: #,##0.0_ | H28: 0.0_
D29: FALSE | E29: FALSE | F29: TRUE | G29: FALSE | H29: FALSE
F30: 1.340555556
F31: 2.043644444
F32: 1.104241667
F33: 12.97711389
F34: -1
F35: -1
D36: 5 | E36: 1 | F36: 2 | G36: 6 | H36: 2
E37: dat!$A$1 | F37: "Upper" | G37: polar!$C$10
D38: plot!$G$3:$G$300 | E38: dat!$A$2:$A$101 | F38: dat!$A$2:$A$52 | G38: polar!$B$12:$B$60 | H38: Streamline!$A$5:$A$217
D39: plot!$H$3:$H$300 | E39: dat!$B$2:$B$101 | F39: plot!$E$3:$E$53 | G39: polar!$C$12:$C$60 | H39: Streamline!$B$5:$B$104
A40: 0 | F40: "Lower" | G40: polar!$D$10
A41: =ADDRESS(5,4+2*A40)&":"&ADDRESS(999,4+2*A40) -> $D$5:$D$999 | D41: plot!$B$3:$B$101 | F41: dat!$A$52:$A$101 | G41: polar!$B$12:$B$60 | H41: Streamline!$D$5:$D$999
A42: =ADDRESS(5,5+2*A40)&":"&ADDRESS(999,5+2*A40) -> $E$5:$E$999 | D42: plot!$C$3:$C$101 | F42: plot!$E$53:$E$102 | G42: polar!$D$12:$D$60 | H42: Streamline!$E$5:$E$999
A43: =A40+1 -> 1 | G43: polar!$F$10
A44: =ADDRESS(5,4+2*A43)&":"&ADDRESS(999,4+2*A43) -> $F$5:$F$999 | D44: plot!$I$3:$I$300 | G44: polar!$B$12:$B$60
A45: =ADDRESS(5,5+2*A43)&":"&ADDRESS(999,5+2*A43) -> $G$5:$G$999 | D45: plot!$J$3:$J$300 | G45: polar!$F$12:$F$60
D46: plot!$L$1 | G46: plot!$Q$11
D47: plot!$L$3:$L$300 | G47: plot!$R$2
D48: plot!$M$3:$M$300 | G48: plot!$R$11
D49: plot!$N$1 | G49: plot!$Q$12
D50: plot!$N$3:$N$300 | G50: plot!$R$2
D51: plot!$O$3:$O$300 | G51: plot!$R$12
G52: plot!$Q$13
G53: plot!$R$2
G54: plot!$R$13
